Workbook

Sheet Instructions
B2: ARInc Reserves Analysis Spreadsheet!
B3: =Main!D7 -> Analysis File V4.1, 9/14
B9: This File will enable you to:
B10: 1) | C10: Work with Reserve Data
B11: 2) | C11: Compute your Percent Funded
B12: 3) | C12: Test various Funding Plans
B14: This file is provided and intended only for same-year adjustments of Reserve Study information,
B15: not multi-year updating of Reserve Studies. Multi-year use is not intended or supported.
B17: Think of the Main sheet as your control panel, where you enter information about
B18: your association and test your Funding Plan ideas.
B20: The left-most portion of the Data Sheet is where your Reserve Component data goes.
B22: Only make entries in cells that are colored orange, as shown below:
C23: 25.55
B25: Macros are provided to print key pages, add rows, and delete rows.

Sheet Main
D7: Analysis File V4.1, 9/14
D9: Starting Information:
C10: Client #: | D10: 16151-1
C11: Name: | D11: Kings Row HOA
C12: Location: | D12: Carbondale, CO
C13: # Units: | D13: 45
C14: Base Yr: | D14: 2015
C15: Period Start: | D15: 2015-01-01
C16: Period End: | D16: 2015-12-31 | E16: date problem?
C17: Site Inspection Date: | D17: 2014-09-28
C18: Total Assessmts. | E18: Per Unit: | F18: =D18/D13 -> 0
C19: Budgeted Res Contribs. | D19: 170 | E19: Per Unit: | F19: =D19/D13 -> 3.777777778
C20: Starting Reserve Bal: | D20: 175103.11
C21: Interest: | D21: 0.01
C22: Inflation: | D22: 0.03
D24: Status:
C25: Proportional FFB: | D25: =Data!DV$42+(1-D61)*(Data!DW42-Data!DV42) -> 102591.6667
C26: Percent Funded: | D26: =D20/D25 -> 1.706796621
C27: Swain Factor: | D27: =10*STDEV(Data!BB42:BF42,Data!BI42:BM42,Data!BP42:BT42,Data!BW42:CA42,Data!CD42:CH42,Data!CK42:CP42)/SUM(Data!BB42:BF42,Data!BI42:BM42,Data!BP42:BT42,Data!BW42:CA42,Data!CD42:CH42,Data!CK42:CP42)/31 -> 0.01832042423
A29: TempStorage | D29: Recommendation:
A30: 700 | C30: Recommended Contrib Rate: | D30: 720 | E30: Per Unit: | F30: =D30/D13 -> 16
C31: Alternate Contrib Rate: | D31: 495 | E31: Per Unit: | F31: =D31/D13 -> 11
C32: Annual Increase: | D32: 0.03
C33: # of Years: | D33: 25
C34: Secondary Increase: | D34: 0.025
C35: # of Years: | D35: 30
C36: 1st Yr S.A.: | D36: 0 | E36: Per Unit: | F36: =D36/D$13 -> 0
C37: 2nd Yr S.A.: | D37: 0 | E37: Per Unit: | F37: =D37/D$13 -> 0
C38: 3rd Yr S.A.: | D38: 0 | E38: Per Unit: | F38: =D38/D$13 -> 0
C39: 4th Yr S.A.: | D39: 0 | E39: Per Unit: | F39: =D39/D$13 -> 0
C40: 5th Yr S.A.: | D40: 0 | E40: Per Unit: | F40: =D40/D$13 -> 0
C42: Minimum Balance(Full): | D42: =MIN('30-yr'!C14:C43) -> 128598.5715
C43: Min Margin (Full): | D43: =Solver!MinEndBalanceMargin -> 1
C44: Minimum Balance(Alt): | D44: =MIN(Data!BB7:BF7,Data!BI7:BM7,Data!BP7:BT7,Data!BW7:CA7,Data!CD7:CH7,Data!CK7:CP7) -> 18461.65136
C45: Min Margin (Alt): | D45: =MIN(Data!BB9:BF9,Data!BI9:BM9,Data!BP9:BT9,Data!BW9:CA9,Data!CD9:CH9,Data!CK9:CP9) -> -0.3304751982
D46: System Defaults:
C47: Current Annual Increase: | D47: 0.03
C48: Budget Cycles Per Year: | D48: 12
C50: Project Manager Notes:
C59: Risk of Special Assessment: | D59: =OFFSET(C77,MATCH(PercentFunded,C77:C87,-1)-1,1) -> under 1%
C60: Text Budget Cycles: | D60: =LOOKUP(D48,C89:C91,D89:D91) -> Monthly | E60: (Monthly/Annual/Quarterly)
C61: Initial Year Fraction: | D61: =ROUND((EndDate-StartDate)/30,0)/12 -> 1
C62: System Information
C63: Period Start: | D63: =D15 -> 2015-01-01
C64: Period End: | D64: =D16 -> 2015-12-31
C65: SI Date: | D65: =D17 -> 2014-09-28
C66: Cycles this first Yr: | D66: =IF(D48=12,ROUND((D16-D15)/30,0),D48) -> 12
C67: Annualized Cmpnded Int.: | D67: =(1+(D21/12))^12-1 -> 0.01004596089
C68: Deficit per unit: | D68: =(FullyFunded-StartingBalance)/NumUnits -> -1611.365407
C69: Solver Success: | D69: Success
C70: Solver Cycle1: | D70: 296
C71: Solver Cycle2: | D71: 9
C72: Solver Cycle3: | D72: 7
C73: Expense total, first 5 yrs: | D73: =SUM(Data!BB42:BF42) -> 52846.16685
C74: Expense total, second 5 yrs: | D74: =SUM(Data!BI42:BM42) -> 17062.33503
C75: Expense total, first 10 years: | D75: =D73+D74 -> 69908.50187
C76: Special Assmt Risk Ranges - lookup based on Percent Funded
B77: up to | C77: 99999999 | D77: under 1%
B78: up to | C78: 1 | D78: under 1%
B79: up to | C79: 0.9 | D79: approx 1%
B80: up to | C80: 0.8 | D80: approx 2%
B81: up to | C81: 0.7 | D81: approx 3%
B82: up to | C82: 0.6 | D82: approx 6%
B83: up to | C83: 0.5 | D83: approx 13%
B84: up to | C84: 0.4 | D84: approx 20%
B85: up to | C85: 0.3 | D85: approx 35%
B86: up to | C86: 0.2 | D86: approx 48%
B87: up to | C87: 0.1 | D87: approx 58%
C89: 1 | D89: Annual
C90: 4 | D90: Quarterly
C91: 12 | D91: Monthly

Sheet Data
BA2: Year Increment | BB2: 0 | BC2: 1 | BD2: 2 | BE2: 3 | BF2: 4 | BH2: Year Increment | BI2: 5 | BJ2: 6 | BK2: 7 | BL2: 8 | BM2: 9 | BO2: Year Increment | BP2: 10 | BQ2: 11 | BR2: 12 | BS2: 13 | BT2: 14 | BV2: Year Increment | BW2: 15 | BX2: 16 | BY2: 17 | BZ2: 18 | CA2: 19 | CC2: Year Increment | CD2: 20 | CE2: 21 | CF2: 22 | CG2: 23 | CH2: 24 | CJ2: Year Increment | CK2: 25 | CL2: 26 | CM2: 27 | CN2: 28 | CO2: 29 | CP2: 30
BA3: Inflation | BB3: =(1+Main!$D$22)^BB2 -> 1 | BC3: =(1+Main!$D$22)^BC2 -> 1.03 | BD3: =(1+Main!$D$22)^BD2 -> 1.0609 | BE3: =(1+Main!$D$22)^BE2 -> 1.092727 | BF3: =(1+Main!$D$22)^BF2 -> 1.12550881 | BH3: Inflation | BI3: =(1+Main!$D$22)^BI2 -> 1.159274074 | BJ3: =(1+Main!$D$22)^BJ2 -> 1.194052297 | BK3: =(1+Main!$D$22)^BK2 -> 1.229873865 | BL3: =(1+Main!$D$22)^BL2 -> 1.266770081 | BM3: =(1+Main!$D$22)^BM2 -> 1.304773184 | BO3: Inflation | BP3: =(1+Main!$D$22)^BP2 -> 1.343916379 | BQ3: =(1+Main!$D$22)^BQ2 -> 1.384233871 | BR3: =(1+Main!$D$22)^BR2 -> 1.425760887 | BS3: =(1+Main!$D$22)^BS2 -> 1.468533713 | BT3: =(1+Main!$D$22)^BT2 -> 1.512589725 | BV3: Inflation | BW3: =(1+Main!$D$22)^BW2 -> 1.557967417 | BX3: =(1+Main!$D$22)^BX2 -> 1.604706439 | BY3: =(1+Main!$D$22)^BY2 -> 1.652847632 | BZ3: =(1+Main!$D$22)^BZ2 -> 1.702433061 | CA3: =(1+Main!$D$22)^CA2 -> 1.753506053 | CC3: Inflation | CD3: =(1+Main!$D$22)^CD2 -> 1.806111235 | CE3: =(1+Main!$D$22)^CE2 -> 1.860294572 | CF3: =(1+Main!$D$22)^CF2 -> 1.916103409 | CG3: =(1+Main!$D$22)^CG2 -> 1.973586511 | CH3: =(1+Main!$D$22)^CH2 -> 2.032794106 | CJ3: Inflation | CK3: =(1+Main!$D$22)^CK2 -> 2.09377793 | CL3: =(1+Main!$D$22)^CL2 -> 2.156591268 | CM3: =(1+Main!$D$22)^CM2 -> 2.221289006 | CN3: =(1+Main!$D$22)^CN2 -> 2.287927676 | CO3: =(1+Main!$D$22)^CO2 -> 2.356565506 | CP3: =(1+Main!$D$22)^CP2 -> 2.427262471
BA4: Alt Contribution rate (total) | BB4: =Main!$D48*Main!$D61*Main!$D31 -> 5940 | BC4: =IF(BC2<=Main!$D33,(Main!$D31*Main!$D48)*(1+Main!$D32),IF(BC2<=(Main!$D33+Main!$D35),(Main!$D31*Main!$D48)*(1+Main!$D34),(Main!$D31*Main!$D48))) -> 6118.2 | BD4: =IF(BD2<=Main!$D33,BC4*(1+Main!$D32),IF(BD2<=(Main!$D35),BC4*(1+Main!$D34),BC4)) -> 6301.746 | BE4: =IF(BE2<=Main!$D33,BD4*(1+Main!$D32),IF(BE2<=(Main!$D35),BD4*(1+Main!$D34),BD4)) -> 6490.79838 | BF4: =IF(BF2<=Main!$D33,BE4*(1+Main!$D32),IF(BF2<=(Main!$D35),BE4*(1+Main!$D34),BE4)) -> 6685.522331 | BH4: Alt Contribution rate (total) | BI4: =IF(BI2<=Main!$D33,BF4*(1+Main!$D32),IF(BI2<=(Main!$D35),BF4*(1+Main!$D34),BF4)) -> 6886.088001 | BJ4: =IF(BJ2<=Main!$D33,BI4*(1+Main!$D32),IF(BJ2<=(Main!$D35),BI4*(1+Main!$D34),BI4)) -> 7092.670641 | BK4: =IF(BK2<=Main!$D33,BJ4*(1+Main!$D32),IF(BK2<=(Main!$D35),BJ4*(1+Main!$D34),BJ4)) -> 7305.450761 | BL4: =IF(BL2<=Main!$D33,BK4*(1+Main!$D32),IF(BL2<=(Main!$D35),BK4*(1+Main!$D34),BK4)) -> 7524.614283 | BM4: =IF(BM2<=Main!$D33,BL4*(1+Main!$D32),IF(BM2<=(Main!$D35),BL4*(1+Main!$D34),BL4)) -> 7750.352712 | BO4: Alt Contribution rate (total) | BP4: =IF(BP2<=Main!$D33,BM4*(1+Main!$D32),IF(BP2<=(Main!$D35),BM4*(1+Main!$D34),BM4)) -> 7982.863293 | BQ4: =IF(BQ2<=Main!$D33,BP4*(1+Main!$D32),IF(BQ2<=(Main!$D35),BP4*(1+Main!$D34),BP4)) -> 8222.349192 | BR4: =IF(BR2<=Main!$D33,BQ4*(1+Main!$D32),IF(BR2<=(Main!$D35),BQ4*(1+Main!$D34),BQ4)) -> 8469.019668 | BS4: =IF(BS2<=Main!$D33,BR4*(1+Main!$D32),IF(BS2<=(Main!$D35),BR4*(1+Main!$D34),BR4)) -> 8723.090258 | BT4: =IF(BT2<=Main!$D33,BS4*(1+Main!$D32),IF(BT2<=(Main!$D35),BS4*(1+Main!$D34),BS4)) -> 8984.782966 | BV4: Alt Contribution rate (total) | BW4: =IF(BW2<=Main!$D33,BT4*(1+Main!$D32),IF(BW2<=(Main!$D35),BT4*(1+Main!$D34),BT4)) -> 9254.326455 | BX4: =IF(BX2<=Main!$D33,BW4*(1+Main!$D32),IF(BX2<=(Main!$D35),BW4*(1+Main!$D34),BW4)) -> 9531.956248 | BY4: =IF(BY2<=Main!$D33,BX4*(1+Main!$D32),IF(BY2<=(Main!$D35),BX4*(1+Main!$D34),BX4)) -> 9817.914936 | BZ4: =IF(BZ2<=Main!$D33,BY4*(1+Main!$D32),IF(BZ2<=(Main!$D35),BY4*(1+Main!$D34),BY4)) -> 10112.45238 | CA4: =IF(CA2<=Main!$D33,BZ4*(1+Main!$D32),IF(CA2<=(Main!$D35),BZ4*(1+Main!$D34),BZ4)) -> 10415.82596 | CC4: Alt Contribution rate (total) | CD4: =IF(CD2<=Main!$D33,CA4*(1+Main!$D32),IF(CD2<=(Main!$D35),CA4*(1+Main!$D34),CA4)) -> 10728.30073 | CE4: =IF(CE2<=Main!$D33,CD4*(1+Main!$D32),IF(CE2<=(Main!$D35),CD4*(1+Main!$D34),CD4)) -> 11050.14976 | CF4: =IF(CF2<=Main!$D33,CE4*(1+Main!$D32),IF(CF2<=(Main!$D35),CE4*(1+Main!$D34),CE4)) -> 11381.65425 | CG4: =IF(CG2<=Main!$D33,CF4*(1+Main!$D32),IF(CG2<=(Main!$D35),CF4*(1+Main!$D34),CF4)) -> 11723.10388 | CH4: =IF(CH2<=Main!$D33,CG4*(1+Main!$D32),IF(CH2<=(Main!$D35),CG4*(1+Main!$D34),CG4)) -> 12074.79699 | CJ4: Alt Contribution rate (total) | CK4: =IF(CK2<=Main!$D33,CH4*(1+Main!$D32),IF(CK2<=(Main!$D35),CH4*(1+Main!$D34),CH4)) -> 12437.0409 | CL4: =IF(CL2<=Main!$D33,CK4*(1+Main!$D32),IF(CL2<=(Main!$D35),CK4*(1+Main!$D34),CK4)) -> 12747.96692 | CM4: =IF(CM2<=Main!$D33,CL4*(1+Main!$D32),IF(CM2<=(Main!$D35),CL4*(1+Main!$D34),CL4)) -> 13066.6661 | CN4: =IF(CN2<=Main!$D33,CM4*(1+Main!$D32),IF(CN2<=(Main!$D35),CM4*(1+Main!$D34),CM4)) -> 13393.33275 | CO4: =IF(CO2<=Main!$D33,CN4*(1+Main!$D32),IF(CO2<=(Main!$D35),CN4*(1+Main!$D34),CN4)) -> 13728.16607 | CP4: =IF(CP2<=Main!$D33,CO4*(1+Main!$D32),IF(CP2<=(Main!$D35),CO4*(1+Main!$D34),CO4)) -> 14071.37022
BA5: Alt Interest Earnings | BB5: =IF((BB7+(BB4+BB26-BB42)/2)>0,(BB7+(BB4+BB26-BB42)/2)*Main!$D67,0) -> 1550.323927 | BC5: =IF((BC7+(BC4+BC26-BC42)/2)>0,(BC7+(BC4+BC26-BC42)/2)*Main!$D67,0) -> 1387.874952 | BD5: =IF((BD7+(BD4+BD26-BD42)/2)>0,(BD7+(BD4+BD26-BD42)/2)*Main!$D67,0) -> 1464.202636 | BE5: =IF((BE7+(BE4+BE26-BE42)/2)>0,(BE7+(BE4+BE26-BE42)/2)*Main!$D67,0) -> 1543.168658 | BF5: =IF((BF7+(BF4+BF26-BF42)/2)>0,(BF7+(BF4+BF26-BF42)/2)*Main!$D67,0) -> 1598.00198 | BH5: Alt Interest Earnings | BI5: =IF((BI7+(BI4+BI26-BI42)/2)>0,(BI7+(BI4+BI26-BI42)/2)*Main!$D67,0) -> 1640.81416 | BJ5: =IF((BJ7+(BJ4+BJ26-BJ42)/2)>0,(BJ7+(BJ4+BJ26-BJ42)/2)*Main!$D67,0) -> 1712.955218 | BK5: =IF((BK7+(BK4+BK26-BK42)/2)>0,(BK7+(BK4+BK26-BK42)/2)*Main!$D67,0) -> 1793.218533 | BL5: =IF((BL7+(BL4+BL26-BL42)/2)>0,(BL7+(BL4+BL26-BL42)/2)*Main!$D67,0) -> 1863.731892 | BM5: =IF((BM7+(BM4+BM26-BM42)/2)>0,(BM7+(BM4+BM26-BM42)/2)*Main!$D67,0) -> 1897.300931 | BO5: Alt Interest Earnings | BP5: =IF((BP7+(BP4+BP26-BP42)/2)>0,(BP7+(BP4+BP26-BP42)/2)*Main!$D67,0) -> 1875.355012 | BQ5: =IF((BQ7+(BQ4+BQ26-BQ42)/2)>0,(BQ7+(BQ4+BQ26-BQ42)/2)*Main!$D67,0) -> 1904.713331 | BR5: =IF((BR7+(BR4+BR26-BR42)/2)>0,(BR7+(BR4+BR26-BR42)/2)*Main!$D67,0) -> 2007.688426 | BS5: =IF((BS7+(BS4+BS26-BS42)/2)>0,(BS7+(BS4+BS26-BS42)/2)*Main!$D67,0) -> 1819.156572 | BT5: =IF((BT7+(BT4+BT26-BT42)/2)>0,(BT7+(BT4+BT26-BT42)/2)*Main!$D67,0) -> 1595.232288 | BV5: Alt Interest Earnings | BW5: =IF((BW7+(BW4+BW26-BW42)/2)>0,(BW7+(BW4+BW26-BW42)/2)*Main!$D67,0) -> 1373.322008 | BX5: =IF((BX7+(BX4+BX26-BX42)/2)>0,(BX7+(BX4+BX26-BX42)/2)*Main!$D67,0) -> 1171.899165 | BY5: =IF((BY7+(BY4+BY26-BY42)/2)>0,(BY7+(BY4+BY26-BY42)/2)*Main!$D67,0) -> 1264.745225 | BZ5: =IF((BZ7+(BZ4+BZ26-BZ42)/2)>0,(BZ7+(BZ4+BZ26-BZ42)/2)*Main!$D67,0) -> 1377.560651 | CA5: =IF((CA7+(CA4+CA26-CA42)/2)>0,(CA7+(CA4+CA26-CA42)/2)*Main!$D67,0) -> 1076.140948 | CC5: Alt Interest Earnings | CD5: =IF((CD7+(CD4+CD26-CD42)/2)>0,(CD7+(CD4+CD26-CD42)/2)*Main!$D67,0) -> 679.5299437 | CE5: =IF((CE7+(CE4+CE26-CE42)/2)>0,(CE7+(CE4+CE26-CE42)/2)*Main!$D67,0) -> 700.492561 | CF5: =IF((CF7+(CF4+CF26-CF42)/2)>0,(CF7+(CF4+CF26-CF42)/2)*Main!$D67,0) -> 820.2041947 | CG5: =IF((CG7+(CG4+CG26-CG42)/2)>0,(CG7+(CG4+CG26-CG42)/2)*Main!$D67,0) -> 944.4986822 | CH5: =IF((CH7+(CH4+CH26-CH42)/2)>0,(CH7+(CH4+CH26-CH42)/2)*Main!$D67,0) -> 596.1739439 | CJ5: Alt Interest Earnings | CK5: =IF((CK7+(CK4+CK26-CK42)/2)>0,(CK7+(CK4+CK26-CK42)/2)*Main!$D67,0) -> 221.6435267 | CL5: =IF((CL7+(CL4+CL26-CL42)/2)>0,(CL7+(CL4+CL26-CL42)/2)*Main!$D67,0) -> 324.0814367 | CM5: =IF((CM7+(CM4+CM26-CM42)/2)>0,(CM7+(CM4+CM26-CM42)/2)*Main!$D67,0) -> 440.2673061 | CN5: =IF((CN7+(CN4+CN26-CN42)/2)>0,(CN7+(CN4+CN26-CN42)/2)*Main!$D67,0) -> 560.8620342 | CO5: =IF((CO7+(CO4+CO26-CO42)/2)>0,(CO7+(CO4+CO26-CO42)/2)*Main!$D67,0) -> 613.949822 | CP5: =IF((CP7+(CP4+CP26-CP42)/2)>0,(CP7+(CP4+CP26-CP42)/2)*Main!$D67,0) -> 116.2365141
BA6: Alt Starting Balance (for charts) | BB6: =Main!D20 -> 175103.11 | BC6: =IF(BB7+BB5+BB4+BB26-BB42>0,BB7+BB5+BB26+BB4-BB42,0) -> 135093.4339 | BD6: =IF(BC7+BC5+BC4+BC26-BC42>0,BC7+BC5+BC26+BC4-BC42,0) -> 142599.5089 | BE6: =IF(BD7+BD5+BD4+BD26-BD42>0,BD7+BD5+BD26+BD4-BD42,0) -> 150365.4575 | BF6: =IF(BE7+BE5+BE4+BE26-BE42>0,BE7+BE5+BE26+BE4-BE42,0) -> 158399.4246 | BH6: Alt Starting Balance (for charts) | BI6: =IF(BF7+BF5+BF4+BF26-BF42>0,BF7+BF5+BF4+BF26-BF42,0) -> 161336.782 | BJ6: =IF(BI7+BI5+BI4+BI26-BI42>0,BI7+BI5+BI26+BI4-BI42,0) -> 166965.499 | BK6: =IF(BJ7+BJ5+BJ4+BJ26-BJ42>0,BJ7+BJ5+BJ26+BJ4-BJ42,0) -> 175771.1249 | BL6: =IF(BK7+BK5+BK4+BK26-BK42>0,BK7+BK5+BK26+BK4-BK42,0) -> 183024.9833 | BM6: =IF(BL7+BL5+BL4+BL26-BL42>0,BL7+BL5+BL26+BL4-BL42,0) -> 189879.7894 | BO6: Alt Starting Balance (for charts) | BP6: =IF(BM7+BM5+BM4+BM26-BM42>0,BM7+BM5+BM4+BM26-BM42,0) -> 189741.6441 | BQ6: =IF(BP7+BP5+BP4+BP26-BP42>0,BP7+BP5+BP26+BP4-BP42,0) -> 185488.7404 | BR6: =IF(BQ7+BQ5+BQ4+BQ26-BQ42>0,BQ7+BQ5+BQ26+BQ4-BQ42,0) -> 195615.803 | BS6: =IF(BR7+BR5+BR4+BR26-BR42>0,BR7+BR5+BR26+BR4-BR42,0) -> 206092.5111 | BT6: =IF(BS7+BS5+BS4+BS26-BS42>0,BS7+BS5+BS26+BS4-BS42,0) -> 157893.4094 | BV6: Alt Starting Balance (for charts) | BW6: =IF(BT7+BT5+BT4+BT26-BT42>0,BT7+BT5+BT4+BT26-BT42,0) -> 161288.6234 | BX6: =IF(BW7+BW5+BW4+BW26-BW42>0,BW7+BW5+BW26+BW4-BW42,0) -> 113492.4938 | BY6: =IF(BX7+BX5+BX4+BX26-BX42>0,BX7+BX5+BX26+BX4-BX42,0) -> 120986.9363 | BZ6: =IF(BY7+BY5+BY4+BY26-BY42>0,BY7+BY5+BY26+BY4-BY42,0) -> 132069.5965 | CA6: =IF(BZ7+BZ5+BZ4+BZ26-BZ42>0,BZ7+BZ5+BZ26+BZ4-BZ42,0) -> 143559.6095 | CC6: Alt Starting Balance (for charts) | CD6: =IF(CA7+CA5+CA4+CA26-CA42>0,CA7+CA5+CA4+CA26-CA42,0) -> 71760.03887 | CE6: =IF(CD7+CD5+CD4+CD26-CD42>0,CD7+CD5+CD26+CD4-CD42,0) -> 64203.70158 | CF6: =IF(CE7+CE5+CE4+CE26-CE42>0,CE7+CE5+CE26+CE4-CE42,0) -> 75954.3439 | CG6: =IF(CF7+CF5+CF4+CF26-CF42>0,CF7+CF5+CF26+CF4-CF42,0) -> 88156.20234 | CH6: =IF(CG7+CG5+CG4+CG26-CG42>0,CG7+CG5+CG26+CG4-CG42,0) -> 100823.8049 | CJ6: Alt Starting Balance (for charts) | CK6: =IF(CH7+CH5+CH4+CH26-CH42>0,CH7+CH5+CH4+CH26-CH42,0) -> 18461.65136 | CL6: =IF(CK7+CK5+CK4+CK26-CK42>0,CK7+CK5+CK26+CK4-CK42,0) -> 25885.89096 | CM6: =IF(CL7+CL5+CL4+CL26-CL42>0,CL7+CL5+CL26+CL4-CL42,0) -> 38957.93933 | CN6: =IF(CM7+CM5+CM4+CM26-CM42>0,CM7+CM5+CM26+CM4-CM42,0) -> 49132.93922 | CO6: =IF(CN7+CN5+CN4+CN26-CN42>0,CN7+CN5+CN26+CN4-CN42,0) -> 63087.13401 | CP6: =IF(CO7+CO5+CO4+CO26-CO42>0,CO7+CO5+CO26+CO4-CO42,0) -> 59755.0086
BA7: Alt Starting Balance (for calcs) | BB7: =Main!D20 -> 175103.11 | BC7: =BB7+BB5+BB4+BB26-BB42 -> 135093.4339 | BD7: =BC7+BC5+BC4+BC26-BC42 -> 142599.5089 | BE7: =BD7+BD5+BD4+BD26-BD42 -> 150365.4575 | BF7: =BE7+BE5+BE4+BE26-BE42 -> 158399.4246 | BH7: Alt Starting Balance (for calcs) | BI7: =BF7+BF5+BF4+BF26-BF42 -> 161336.782 | BJ7: =BI7+BI5+BI4+BI26-BI42 -> 166965.499 | BK7: =BJ7+BJ5+BJ4+BJ26-BJ42 -> 175771.1249 | BL7: =BK7+BK5+BK4+BK26-BK42 -> 183024.9833 | BM7: =BL7+BL5+BL4+BL26-BL42 -> 189879.7894 | BO7: Alt Starting Balance (for calcs) | BP7: =BM7+BM5+BM4+BM26-BM42 -> 189741.6441 | BQ7: =BP7+BP5+BP4+BP26-BP42 -> 185488.7404 | BR7: =BQ7+BQ5+BQ4+BQ26-BQ42 -> 195615.803 | BS7: =BR7+BR5+BR4+BR26-BR42 -> 206092.5111 | BT7: =BS7+BS5+BS4+BS26-BS42 -> 157893.4094 | BV7: Alt Starting Balance (for calcs) | BW7: =BT7+BT5+BT4+BT26-BT42 -> 161288.6234 | BX7: =BW7+BW5+BW4+BW26-BW42 -> 113492.4938 | BY7: =BX7+BX5+BX4+BX26-BX42 -> 120986.9363 | BZ7: =BY7+BY5+BY4+BY26-BY42 -> 132069.5965 | CA7: =BZ7+BZ5+BZ4+BZ26-BZ42 -> 143559.6095 | CC7: Alt Starting Balance (for calcs) | CD7: =CA7+CA5+CA4+CA26-CA42 -> 71760.03887 | CE7: =CD7+CD5+CD4+CD26-CD42 -> 64203.70158 | CF7: =CE7+CE5+CE4+CE26-CE42 -> 75954.3439 | CG7: =CF7+CF5+CF4+CF26-CF42 -> 88156.20234 | CH7: =CG7+CG5+CG4+CG26-CG42 -> 100823.8049 | CJ7: Alt Starting Balance (for calcs) | CK7: =CH7+CH5+CH4+CH26-CH42 -> 18461.65136 | CL7: =CK7+CK5+CK4+CK26-CK42 -> 25885.89096 | CM7: =CL7+CL5+CL4+CL26-CL42 -> 38957.93933 | CN7: =CM7+CM5+CM4+CM26-CM42 -> 49132.93922 | CO7: =CN7+CN5+CN4+CN26-CN42 -> 63087.13401 | CP7: =CO7+CO5+CO4+CO26-CO42 -> 59755.0086
BA8: Alt Percent Funded | BB8: =IF(BB6/DV42<0,0,BB6/DV42) -> 1.706796621 | BC8: =IF(BC6/DW42<0,0,BC6/DW42) -> 2.057659935 | BD8: =IF(BD6/DX42<0,0,BD6/DX42) -> 1.856756722 | BE8: =IF(BE6/DY42<0,0,BE6/DY42) -> 1.697962295 | BF8: =IF(BF6/DZ42<0,0,BF6/DZ42) -> 1.569107168 | BH8: Alt Percent Funded | BI8: =IF(BI6/EA42<0,0,BI6/EA42) -> 1.486996977 | BJ8: =IF(BJ6/EB42<0,0,BJ6/EB42) -> 1.401931424 | BK8: =IF(BK6/EC42<0,0,BK6/EC42) -> 1.318533186 | BL8: =IF(BL6/ED42<0,0,BL6/ED42) -> 1.250471939 | BM8: =IF(BM6/EE42<0,0,BM6/EE42) -> 1.190973588 | BO8: Alt Percent Funded | BP8: =IF(BP6/EF42<0,0,BP6/EF42) -> 1.144670788 | BQ8: =IF(BQ6/EG42<0,0,BQ6/EG42) -> 1.102964642 | BR8: =IF(BR6/EH42<0,0,BR6/EH42) -> 1.054243364 | BS8: =IF(BS6/EI42<0,0,BS6/EI42) -> 1.011148399 | BT8: =IF(BT6/EJ42<0,0,BT6/EJ42) -> 0.9715611046 | BV8: Alt Percent Funded | BW8: =IF(BW6/EK42<0,0,BW6/EK42) -> 0.9297959427 | BX8: =IF(BX6/EL42<0,0,BX6/EL42) -> 0.8573565406 | BY8: =IF(BY6/EM42<0,0,BY6/EM42) -> 0.8211545613 | BZ8: =IF(BZ6/EN42<0,0,BZ6/EN42) -> 0.7932881341 | CA8: =IF(CA6/EO42<0,0,CA6/EO42) -> 0.7691540528 | CC8: Alt Percent Funded | CD8: =IF(CD6/EP42<0,0,CD6/EP42) -> 0.5878208898 | CE8: =IF(CE6/EQ42<0,0,CE6/EQ42) -> 0.5249738111 | CF8: =IF(CF6/ER42<0,0,CF6/ER42) -> 0.532855416 | CG8: =IF(CG6/ES42<0,0,CG6/ES42) -> 0.5378988897 | CH8: =IF(CH6/ET42<0,0,CH6/ET42) -> 0.5409284492 | CJ8: Alt Percent Funded | CK8: =IF(CK6/EU42<0,0,CK6/EU42) -> 0.164529078 | CL8: 0.2009175811 | CM8: 0.2564411539 | CN8: 0.2842784187 | CO8: 0.3179744134 | CP8: 0.2884672086
BA9: Alt Min Expense Margin | BB9: =IF(BB42>0,(BB5+BB7+BB4-BB42)/BB42,1) -> 2.844072293 | BC9: =IF(BC42>0,(BC5+BC7+BC4-BC42)/BC42,1) -> 1 | BD9: =IF(BD42>0,(BD5+BD7+BD4-BD42)/BD42,1) -> 1 | BE9: =IF(BE42>0,(BE5+BE7+BE4-BE42)/BE42,1) -> 1 | BF9: =IF(BF42>0,(BF5+BF7+BF4-BF42)/BF42,1) -> 30.17802972 | BH9: Alt Min Expense Margin | BI9: =IF(BI42>0,(BI5+BI7+BI4-BI42)/BI42,1) -> 57.61036245 | BJ9: =IF(BJ42>0,(BJ5+BJ7+BJ4-BJ42)/BJ42,1) -> 1 | BK9: =IF(BK42>0,(BK5+BK7+BK4-BK42)/BK42,1) -> 99.21070688 | BL9: =IF(BL42>0,(BL5+BL7+BL4-BL42)/BL42,1) -> 74.94642957 | BM9: =IF(BM42>0,(BM5+BM7+BM4-BM42)/BM42,1) -> 19.38948945 | BO9: Alt Min Expense Margin | BP9: =IF(BP42>0,(BP5+BP7+BP4-BP42)/BP42,1) -> 13.14486124 | BQ9: =IF(BQ42>0,(BQ5+BQ7+BQ4-BQ42)/BQ42,1) -> 1 | BR9: =IF(BR42>0,(BR5+BR7+BR4-BR42)/BR42,1) -> 1 | BS9: =IF(BS42>0,(BS5+BS7+BS4-BS42)/BS42,1) -> 2.687943217 | BT9: =IF(BT42>0,(BT5+BT7+BT4-BT42)/BT42,1) -> 22.44858543 | BV9: Alt Min Expense Margin | BW9: =IF(BW42>0,(BW5+BW7+BW4-BW42)/BW42,1) -> 1.942573682 | BX9: =IF(BX42>0,(BX5+BX7+BX4-BX42)/BX42,1) -> 37.69752939 | BY9: =IF(BY42>0,(BY5+BY7+BY4-BY42)/BY42,1) -> 1 | BZ9: =IF(BZ42>0,(BZ5+BZ7+BZ4-BZ42)/BZ42,1) -> 1 | CA9: =IF(CA42>0,(CA5+CA7+CA4-CA42)/CA42,1) -> 0.8615525779 | CC9: Alt Min Expense Margin | CD9: =IF(CD42>0,(CD5+CD7+CD4-CD42)/CD42,1) -> 3.385526942 | CE9: =IF(CE42>0,(CE5+CE7+CE4-CE42)/CE42,1) -> 1 | CF9: =IF(CF42>0,(CF5+CF7+CF4-CF42)/CF42,1) -> 1 | CG9: =IF(CG42>0,(CG5+CG7+CG4-CG42)/CG42,1) -> 1 | CH9: =IF(CH42>0,(CH5+CH7+CH4-CH42)/CH42,1) -> 0.194265436 | CJ9: Alt Min Expense Margin | CK9: =IF(CK42>0,(CK5+CK7+CK4-CK42)/CK42,1) -> 4.945298276 | CL9: 1 | CM9: 14.74607434 | CN9: 1 | CO9: 3.380909404 | CP9: -0.3304751982
BA10: Current Contribution rate (period) | BB10: =Main!D19 -> 170 | BC10: =BB10*(1+Main!$D47) -> 175.1 | BD10: =BC10*(1+Main!$D47) -> 180.353 | BE10: =BD10*(1+Main!$D47) -> 185.76359 | BF10: =BE10*(1+Main!$D47) -> 191.3364977 | BH10: Current Contribution rate (period) | BI10: =BF10*(1+Main!$D47) -> 197.0765926 | BJ10: =BI10*(1+Main!$D47) -> 202.9888904 | BK10: =BJ10*(1+Main!$D47) -> 209.0785571 | BL10: =BK10*(1+Main!$D47) -> 215.3509138 | BM10: =BL10*(1+Main!$D47) -> 221.8114413 | BO10: Current Contribution rate (period) | BP10: =BM10*(1+Main!$D47) -> 228.4657845 | BQ10: =BP10*(1+Main!$D47) -> 235.319758 | BR10: =BQ10*(1+Main!$D47) -> 242.3793508 | BS10: =BR10*(1+Main!$D47) -> 249.6507313 | BT10: =BS10*(1+Main!$D47) -> 257.1402532 | BV10: Current Contribution rate (period) | BW10: =BT10*(1+Main!$D47) -> 264.8544608 | BX10: =BW10*(1+Main!$D47) -> 272.8000946 | BY10: =BX10*(1+Main!$D47) -> 280.9840975 | BZ10: =BY10*(1+Main!$D47) -> 289.4136204 | CA10: =BZ10*(1+Main!$D47) -> 298.096029 | CC10: Current Contribution rate (period) | CD10: =CA10*(1+Main!$D47) -> 307.0389099 | CE10: =CD10*(1+Main!$D47) -> 316.2500772 | CF10: =CE10*(1+Main!$D47) -> 325.7375795 | CG10: =CF10*(1+Main!$D47) -> 335.5097069 | CH10: =CG10*(1+Main!$D47) -> 345.5749981 | CJ10: Current Contribution rate (period) | CK10: =CH10*(1+Main!$D47) -> 355.942248 | CL10: =CK10*(1+Main!$D47) -> 366.6205155 | CM10: =CL10*(1+Main!$D47) -> 377.6191309 | CN10: =CM10*(1+Main!$D47) -> 388.9477049 | CO10: =CN10*(1+Main!$D47) -> 400.616136 | CP10: =CO10*(1+Main!$D47) -> 412.6346201
BA11: Current Contribution rate (total) | BB11: =Main!D48*Main!D19*Main!D61 -> 2040 | BC11: =BC10*Main!$D48 -> 2101.2 | BD11: =BD10*Main!$D48 -> 2164.236 | BE11: =BE10*Main!$D48 -> 2229.16308 | BF11: =BF10*Main!$D48 -> 2296.037972 | BH11: Current Contribution rate (total) | BI11: =BI10*Main!$D48 -> 2364.919112 | BJ11: =BJ10*Main!$D48 -> 2435.866685 | BK11: =BK10*Main!$D48 -> 2508.942685 | BL11: =BL10*Main!$D48 -> 2584.210966 | BM11: =BM10*Main!$D48 -> 2661.737295 | BO11: Current Contribution rate (total) | BP11: =BP10*Main!$D48 -> 2741.589414 | BQ11: =BQ10*Main!$D48 -> 2823.837096 | BR11: =BR10*Main!$D48 -> 2908.552209 | BS11: =BS10*Main!$D48 -> 2995.808775 | BT11: =BT10*Main!$D48 -> 3085.683039 | BV11: Current Contribution rate (total) | BW11: =BW10*Main!$D48 -> 3178.25353 | BX11: =BX10*Main!$D48 -> 3273.601136 | BY11: =BY10*Main!$D48 -> 3371.80917 | BZ11: =BZ10*Main!$D48 -> 3472.963445 | CA11: =CA10*Main!$D48 -> 3577.152348 | CC11: Current Contribution rate (total) | CD11: =CD10*Main!$D48 -> 3684.466919 | CE11: =CE10*Main!$D48 -> 3795.000926 | CF11: =CF10*Main!$D48 -> 3908.850954 | CG11: =CG10*Main!$D48 -> 4026.116483 | CH11: =CH10*Main!$D48 -> 4146.899977 | CJ11: Current Contribution rate (total) | CK11: =CK10*Main!$D48 -> 4271.306976 | CL11: =CL10*Main!$D48 -> 4399.446186 | CM11: =CM10*Main!$D48 -> 4531.429571 | CN11: =CN10*Main!$D48 -> 4667.372459 | CO11: =CO10*Main!$D48 -> 4807.393632 | CP11: =CP10*Main!$D48 -> 4951.615441
BA12: Current Interest Earnings | BB12: =IF((BB14+(BB11-BB42)/2)>0,(BB14+(BB11-BB42)/2)*Main!$D67,0) -> 1530.734303 | BC12: =IF((BC14+(BC11-BC42)/2)>0,(BC14+(BC11-BC42)/2)*Main!$D67,0) -> 1328.321596 | BD12: =IF((BD14+(BD11-BD42)/2)>0,(BD14+(BD11-BD42)/2)*Main!$D67,0) -> 1363.091064 | BE12: =IF((BE14+(BE11-BE42)/2)>0,(BE14+(BE11-BE42)/2)*Main!$D67,0) -> 1398.852581 | BF12: =IF((BF14+(BF11-BF42)/2)>0,(BF14+(BF11-BF42)/2)*Main!$D67,0) -> 1408.781705 | BH12: Current Interest Earnings | BI12: =IF((BI14+(BI11-BI42)/2)>0,(BI14+(BI11-BI42)/2)*Main!$D67,0) -> 1404.934948 | BJ12: =IF((BJ14+(BJ11-BJ42)/2)>0,(BJ14+(BJ11-BJ42)/2)*Main!$D67,0) -> 1428.605595 | BK12: =IF((BK14+(BK11-BK42)/2)>0,(BK14+(BK11-BK42)/2)*Main!$D67,0) -> 1458.528543 | BL12: =IF((BL14+(BL11-BL42)/2)>0,(BL14+(BL11-BL42)/2)*Main!$D67,0) -> 1476.771304 | BM12: =IF((BM14+(BM11-BM42)/2)>0,(BM14+(BM11-BM42)/2)*Main!$D67,0) -> 1456.077387 | BO12: Current Interest Earnings | BP12: =IF((BP14+(BP11-BP42)/2)>0,(BP14+(BP11-BP42)/2)*Main!$D67,0) -> 1377.812122 | BQ12: =IF((BQ14+(BQ11-BQ42)/2)>0,(BQ14+(BQ11-BQ42)/2)*Main!$D67,0) -> 1348.728707 | BR12: =IF((BR14+(BR11-BR42)/2)>0,(BR14+(BR11-BR42)/2)*Main!$D67,0) -> 1391.071662 | BS12: =IF((BS14+(BS11-BS42)/2)>0,(BS14+(BS11-BS42)/2)*Main!$D67,0) -> 1139.647159 | BT12: =IF((BT14+(BT11-BT42)/2)>0,(BT14+(BT11-BT42)/2)*Main!$D67,0) -> 850.497463 | BV12: Current Interest Earnings | BW12: =IF((BW14+(BW11-BW42)/2)>0,(BW14+(BW11-BW42)/2)*Main!$D67,0) -> 560.9545473 | BX12: =IF((BX14+(BX11-BX42)/2)>0,(BX14+(BX11-BX42)/2)*Main!$D67,0) -> 289.4151015 | BY12: =IF((BY14+(BY11-BY42)/2)>0,(BY14+(BY11-BY42)/2)*Main!$D67,0) -> 309.5815021 | BZ12: =IF((BZ14+(BZ11-BZ42)/2)>0,(BZ14+(BZ11-BZ42)/2)*Main!$D67,0) -> 347.0727048 | CA12: =IF((CA14+(CA11-CA42)/2)>0,(CA14+(CA11-CA42)/2)*Main!$D67,0) -> 0 | CC12: Current Interest Earnings | CD12: =IF((CD14+(CD11-CD42)/2)>0,(CD14+(CD11-CD42)/2)*Main!$D67,0) -> 0 | CE12: =IF((CE14+(CE11-CE42)/2)>0,(CE14+(CE11-CE42)/2)*Main!$D67,0) -> 0 | CF12: =IF((CF14+(CF11-CF42)/2)>0,(CF14+(CF11-CF42)/2)*Main!$D67,0) -> 0 | CG12: =IF((CG14+(CG11-CG42)/2)>0,(CG14+(CG11-CG42)/2)*Main!$D67,0) -> 0 | CH12: =IF((CH14+(CH11-CH42)/2)>0,(CH14+(CH11-CH42)/2)*Main!$D67,0) -> 0 | CJ12: Current Interest Earnings | CK12: =IF((CK14+(CK11-CK42)/2)>0,(CK14+(CK11-CK42)/2)*Main!$D67,0) -> 0 | CL12: =IF((CL14+(CL11-CL42)/2)>0,(CL14+(CL11-CL42)/2)*Main!$D67,0) -> 0 | CM12: =IF((CM14+(CM11-CM42)/2)>0,(CM14+(CM11-CM42)/2)*Main!$D67,0) -> 0 | CN12: =IF((CN14+(CN11-CN42)/2)>0,(CN14+(CN11-CN42)/2)*Main!$D67,0) -> 0 | CO12: =IF((CO14+(CO11-CO42)/2)>0,(CO14+(CO11-CO42)/2)*Main!$D67,0) -> 0 | CP12: =IF((CP14+(CP11-CP42)/2)>0,(CP14+(CP11-CP42)/2)*Main!$D67,0) -> 0
BA13: Current Starting Balance (for charts) | BB13: =Main!D20 -> 175103.11 | BC13: =IF(BB14+BB12+BB11-BB42>0,BB14+BB12+BB11-BB42, 0) -> 131173.8443 | BD13: =IF(BC14+BC12+BC11-BC42>0,BC14+BC12+BC11-BC42, 0) -> 134603.3659 | BE13: =IF(BD14+BD12+BD11-BD42>0,BD14+BD12+BD11-BD42, 0) -> 138130.693 | BF13: =IF(BE14+BE12+BE11-BE42>0,BE14+BE12+BE11-BE42, 0) -> 141758.7086 | BH13: Current Starting Balance (for charts) | BI13: =IF(BF14+BF12+BF11-BF42>0,BF14+BF12+BF11-BF42, 0) -> 140117.3615 | BJ13: =IF(BI14+BI12+BI11-BI42>0,BI14+BI12+BI11-BI42, 0) -> 140989.0303 | BK13: =IF(BJ14+BJ12+BJ11-BJ42>0,BJ14+BJ12+BJ11-BJ42, 0) -> 144853.5026 | BL13: =IF(BK14+BK12+BK11-BK42>0,BK14+BK12+BK11-BK42, 0) -> 146976.163 | BM13: =IF(BL14+BL12+BL11-BL42>0,BL14+BL12+BL11-BL42, 0) -> 148503.6051 | BO13: Current Starting Balance (for charts) | BP13: =IF(BM14+BM12+BM11-BM42>0,BM14+BM12+BM11-BM42, 0) -> 142835.6209 | BQ13: =IF(BP14+BP12+BP11-BP42>0,BP14+BP12+BP11-BP42, 0) -> 132843.9005 | BR13: =IF(BQ14+BQ12+BQ11-BQ42>0,BQ14+BQ12+BQ11-BQ42, 0) -> 137016.4663 | BS13: =IF(BR14+BR12+BR11-BR42>0,BR14+BR12+BR11-BR42, 0) -> 141316.0902 | BT13: =IF(BS14+BS12+BS11-BS42>0,BS14+BS12+BS11-BS42, 0) -> 86710.19757 | BV13: Current Starting Balance (for charts) | BW13: =IF(BT14+BT12+BT11-BT42>0,BT14+BT12+BT11-BT42, 0) -> 83461.57688 | BX13: =IF(BW14+BW12+BW11-BW42>0,BW14+BW12+BW11-BW42, 0) -> 28777.00683 | BY13: =IF(BX14+BX12+BX11-BX42>0,BX14+BX12+BX11-BX42, 0) -> 29130.61019 | BZ13: =IF(BY14+BY12+BY11-BY42>0,BY14+BY12+BY11-BY42, 0) -> 32812.00087 | CA13: =IF(BZ14+BZ12+BZ11-BZ42>0,BZ14+BZ12+BZ11-BZ42, 0) -> 36632.03702 | CC13: Current Starting Balance (for charts) | CD13: =IF(CA14+CA12+CA11-CA42>0,CA14+CA12+CA11-CA42, 0) -> 0 | CE13: =IF(CD14+CD12+CD11-CD42>0,CD14+CD12+CD11-CD42, 0) -> 0 | CF13: =IF(CE14+CE12+CE11-CE42>0,CE14+CE12+CE11-CE42, 0) -> 0 | CG13: =IF(CF14+CF12+CF11-CF42>0,CF14+CF12+CF11-CF42, 0) -> 0 | CH13: =IF(CG14+CG12+CG11-CG42>0,CG14+CG12+CG11-CG42, 0) -> 0 | CJ13: Current Starting Balance (for charts) | CK13: =IF(CH14+CH12+CH11-CH42>0,CH14+CH12+CH11-CH42, 0) -> 0 | CL13: =IF(CK14+CK12+CK11-CK42>0,CK14+CK12+CK11-CK42, 0) -> 0 | CM13: =IF(CL14+CL12+CL11-CL42>0,CL14+CL12+CL11-CL42, 0) -> 0 | CN13: =IF(CM14+CM12+CM11-CM42>0,CM14+CM12+CM11-CM42, 0) -> 0 | CO13: =IF(CN14+CN12+CN11-CN42>0,CN14+CN12+CN11-CN42, 0) -> 0 | CP13: =IF(CO14+CO12+CO11-CO42>0,CO14+CO12+CO11-CO42, 0) -> 0
BA14: Current Starting Balance (for calcs) | BB14: =Main!D20 -> 175103.11 | BC14: =BB14+BB12+BB11-BB42 -> 131173.8443 | BD14: =BC14+BC12+BC11-BC42 -> 134603.3659 | BE14: =BD14+BD12+BD11-BD42 -> 138130.693 | BF14: =BE14+BE12+BE11-BE42 -> 141758.7086 | BH14: Current Starting Balance (for calcs) | BI14: =BF14+BF12+BF11-BF42 -> 140117.3615 | BJ14: =BI14+BI12+BI11-BI42 -> 140989.0303 | BK14: =BJ14+BJ12+BJ11-BJ42 -> 144853.5026 | BL14: =BK14+BK12+BK11-BK42 -> 146976.163 | BM14: =BL14+BL12+BL11-BL42 -> 148503.6051 | BO14: Current Starting Balance (for calcs) | BP14: =BM14+BM12+BM11-BM42 -> 142835.6209 | BQ14: =BP14+BP12+BP11-BP42 -> 132843.9005 | BR14: =BQ14+BQ12+BQ11-BQ42 -> 137016.4663 | BS14: =BR14+BR12+BR11-BR42 -> 141316.0902 | BT14: =BS14+BS12+BS11-BS42 -> 86710.19757 | BV14: Current Starting Balance (for calcs) | BW14: =BT14+BT12+BT11-BT42 -> 83461.57688 | BX14: =BW14+BW12+BW11-BW42 -> 28777.00683 | BY14: =BX14+BX12+BX11-BX42 -> 29130.61019 | BZ14: =BY14+BY12+BY11-BY42 -> 32812.00087 | CA14: =BZ14+BZ12+BZ11-BZ42 -> 36632.03702 | CC14: Current Starting Balance (for calcs) | CD14: =CA14+CA12+CA11-CA42 -> -43082.34816 | CE14: =CD14+CD12+CD11-CD42 -> -58362.0492 | CF14: =CE14+CE12+CE11-CE42 -> -54567.04828 | CG14: =CF14+CF12+CF11-CF42 -> -50658.19732 | CH14: =CG14+CG12+CG11-CG42 -> -46632.08084 | CJ14: Current Starting Balance (for calcs) | CK14: =CH14+CH12+CH11-CH42 -> -137518.3053 | CL14: =CK14+CK12+CK11-CK42 -> -138481.4432 | CM14: =CL14+CL12+CL11-CL42 -> -134081.997 | CN14: =CM14+CM12+CM11-CM42 -> -132882.5009 | CO14: =CN14+CN12+CN11-CN42 -> -128215.1285 | CP14: =CO14+CO12+CO11-CO42 -> -141081.9761
BA15: Current Percent Funded | BB15: =IF(BB13/DV42<0,0,BB13/DV42) -> 1.706796621 | BC15: =IF(BC13/DW42<0,0,BC13/DW42) -> 1.997959162 | BD15: =IF(BD13/DX42<0,0,BD13/DX42) -> 1.75264071 | BE15: =IF(BE13/DY42<0,0,BE13/DY42) -> 1.559804441 | BF15: =IF(BF13/DZ42<0,0,BF13/DZ42) -> 1.404263977 | BH15: Current Percent Funded | BI15: =IF(BI13/EA42<0,0,BI13/EA42) -> 1.291423384 | BJ15: =IF(BJ13/EB42<0,0,BJ13/EB42) -> 1.183819132 | BK15: =IF(BK13/EC42<0,0,BK13/EC42) -> 1.086607089 | BL15: =IF(BL13/ED42<0,0,BL13/ED42) -> 1.004177486 | BM15: =IF(BM13/EE42<0,0,BM13/EE42) -> 0.9314517995 | BO15: Current Percent Funded | BP15: =IF(BP13/EF42<0,0,BP13/EF42) -> 0.8616967749 | BQ15: =IF(BQ13/EG42<0,0,BQ13/EG42) -> 0.7899246329 | BR15: =IF(BR13/EH42<0,0,BR13/EH42) -> 0.7384306286 | BS15: =IF(BS13/EI42<0,0,BS13/EI42) -> 0.6933368788 | BT15: =IF(BT13/EJ42<0,0,BT13/EJ42) -> 0.5335514362 | BV15: Current Percent Funded | BW15: =IF(BW13/EK42<0,0,BW13/EK42) -> 0.4811389291 | BX15: =IF(BX13/EL42<0,0,BX13/EL42) -> 0.2173901922 | BY15: =IF(BY13/EM42<0,0,BY13/EM42) -> 0.1977133579 | BZ15: =IF(BZ13/EN42<0,0,BZ13/EN42) -> 0.1970882901 | CA15: =IF(CA13/EO42<0,0,CA13/EO42) -> 0.1962646724 | CC15: Current Percent Funded | CD15: =IF(CD13/EP42<0,0,CD13/EP42) -> 0 | CE15: =IF(CE13/EQ42<0,0,CE13/EQ42) -> 0 | CF15: =IF(CF13/ER42<0,0,CF13/ER42) -> 0 | CG15: =IF(CG13/ES42<0,0,CG13/ES42) -> 0 | CH15: =IF(CH13/ET42<0,0,CH13/ET42) -> 0 | CJ15: Current Percent Funded | CK15: =IF(CK13/EU42<0,0,CK13/EU42) -> 0 | CL15: 0 | CM15: 0 | CN15: 0 | CO15: 0 | CP15: 0
BA16: Recommended Annual Avg. Balance | BB16: =BB24+(BB25+BB26-BB42)/2 -> 155673.11 | BC16: =BC24+(BC25+BC26-BC42)/2 -> 142256.596 | BD16: =BD24+(BD25+BD26-BD42)/2 -> 152718.3882 | BE16: =BE24+(BE25+BE26-BE42)/2 -> 163556.2598 | BF16: =BF24+(BF25+BF26-BF42)/2 -> 172109.0348 | BH16: Recommended Annual Avg. Balance | BI16: =BI24+(BI25+BI26-BI42)/2 -> 179586.1215 | BJ16: =BJ24+(BJ25+BJ26-BJ42)/2 -> 190107.514 | BK16: =BK24+(BK25+BK26-BK42)/2 -> 201566.2823 | BL16: =BL24+(BL25+BL26-BL42)/2 -> 212187.5356 | BM16: =BM24+(BM25+BM26-BM42)/2 -> 219268.5607 | BO16: Recommended Annual Avg. Balance | BP16: =BP24+(BP25+BP26-BP42)/2 -> 220965.2026 | BQ16: =BQ24+(BQ25+BQ26-BQ42)/2 -> 227915.0584 | BR16: =BR24+(BR25+BR26-BR42)/2 -> 242343.8615 | BS16: =BS24+(BS25+BS26-BS42)/2 -> 227911.1169 | BT16: =BT24+(BT25+BT26-BT42)/2 -> 210116.0815 | BV16: Recommended Annual Avg. Balance | BW16: =BW24+(BW25+BW26-BW42)/2 -> 192687.4166 | BX16: =BX24+(BX25+BX26-BX42)/2 -> 177469.3024 | BY16: =BY24+(BY25+BY26-BY42)/2 -> 191720.0792 | BZ16: =BZ24+(BZ25+BZ26-BZ42)/2 -> 208140.9042 | CA16: =CA24+(CA25+CA26-CA42)/2 -> 183515.7678 | CC16: Recommended Annual Avg. Balance | CD16: =CD24+(CD25+CD26-CD42)/2 -> 149609.054 | CE16: =CE24+(CE25+CE26-CE42)/2 -> 157468.8098 | CF16: =CF24+(CF25+CF26-CF42)/2 -> 175364.7746 | CG16: =CG24+(CG25+CG26-CG42)/2 -> 193929.9427 | CH16: =CH24+(CH25+CH26-CH42)/2 -> 165669.1573 | CJ16: Recommended Annual Avg. Balance | CK16: =CK24+(CK25+CK26-CK42)/2 -> 135026.4698 | CL16: 152082.0873 | CM16: 170718.2098 | CN16: 190010.907 | CO16: 202807.355 | CP16: 161005.2524
BA17: Recommended Periodic Reserve Contribs | BB17: =Main!D30 -> 720 | BC17: =BC25/Main!$D48 -> 741.6 | BD17: =BD25/Main!$D48 -> 763.848 | BE17: =BE25/Main!$D48 -> 786.76344 | BF17: =BF25/Main!$D48 -> 810.3663432 | BH17: Recommended Periodic Reserve Contribs | BI17: =BI25/Main!$D48 -> 834.6773335 | BJ17: =BJ25/Main!$D48 -> 859.7176535 | BK17: =BK25/Main!$D48 -> 885.5091831 | BL17: =BL25/Main!$D48 -> 912.0744586 | BM17: =BM25/Main!$D48 -> 939.4366924 | BO17: Recommended Periodic Reserve Contribs | BP17: =BP25/Main!$D48 -> 967.6197931 | BQ17: =BQ25/Main!$D48 -> 996.6483869 | BR17: =BR25/Main!$D48 -> 1026.547839 | BS17: =BS25/Main!$D48 -> 1057.344274 | BT17: =BT25/Main!$D48 -> 1089.064602 | BV17: Recommended Periodic Reserve Contribs | BW17: =BW25/Main!$D48 -> 1121.73654 | BX17: =BX25/Main!$D48 -> 1155.388636 | BY17: =BY25/Main!$D48 -> 1190.050295 | BZ17: =BZ25/Main!$D48 -> 1225.751804 | CA17: =CA25/Main!$D48 -> 1262.524358 | CC17: Recommended Periodic Reserve Contribs | CD17: =CD25/Main!$D48 -> 1300.400089 | CE17: =CE25/Main!$D48 -> 1339.412092 | CF17: =CF25/Main!$D48 -> 1379.594454 | CG17: =CG25/Main!$D48 -> 1420.982288 | CH17: =CH25/Main!$D48 -> 1463.611757 | CJ17: Recommended Periodic Reserve Contribs | CK17: =CK25/Main!$D48 -> 1507.520109 | CL17: =CL25/Main!$D48 -> 1545.208112 | CM17: =CM25/Main!$D48 -> 1583.838315 | CN17: =CN25/Main!$D48 -> 1623.434273 | CO17: =CO25/Main!$D48 -> 1664.02013 | CP17: =CP25/Main!$D48 -> 1705.620633
BA18: Recommended Percent Funded | BB18: =IF(BB24/DV42<0,0,BB24/DV42) -> 1.706796621 | BC18: =IF(BC24/DW42<0,0,BC24/DW42) -> 2.09899124 | BD18: =IF(BD24/DX42<0,0,BD24/DX42) -> 1.928837038 | BE18: =IF(BE24/DY42<0,0,BE24/DY42) -> 1.79361004 | BF18: =IF(BF24/DZ42<0,0,BF24/DZ42) -> 1.683229378 | BH18: Recommended Percent Funded | BI18: =IF(BI24/EA42<0,0,BI24/EA42) -> 1.62239408 | BJ18: =IF(BJ24/EB42<0,0,BJ24/EB42) -> 1.552932242 | BK18: =IF(BK24/EC42<0,0,BK24/EC42) -> 1.479097407 | BL18: =IF(BL24/ED42<0,0,BL24/ED42) -> 1.420983484 | BM18: =IF(BM24/EE42<0,0,BM24/EE42) -> 1.370642519 | BO18: Recommended Percent Funded | BP18: =IF(BP24/EF42<0,0,BP24/EF42) -> 1.340575874 | BQ18: =IF(BQ24/EG42<0,0,BQ24/EG42) -> 1.319684649 | BR18: =IF(BR24/EH42<0,0,BR24/EH42) -> 1.27288295 | BS18: =IF(BS24/EI42<0,0,BS24/EI42) -> 1.231171759 | BT18: =IF(BT24/EJ42<0,0,BT24/EJ42) -> 1.274798567 | BV18: Recommended Percent Funded | BW18: =IF(BW24/EK42<0,0,BW24/EK42) -> 1.240404644 | BX18: =IF(BX24/EL42<0,0,BX24/EL42) -> 1.300410166 | BY18: =IF(BY24/EM42<0,0,BY24/EM42) -> 1.252767702 | BZ18: =IF(BZ24/EN42<0,0,BZ24/EN42) -> 1.206041872 | CA18: =IF(CA24/EO42<0,0,CA24/EO42) -> 1.165769778 | CC18: Recommended Percent Funded | CD18: =IF(CD24/EP42<0,0,CD24/EP42) -> 1.239278596 | CE18: =IF(CE24/EQ42<0,0,CE24/EQ42) -> 1.221862006 | CF18: =IF(CF24/ER42<0,0,CF24/ER42) -> 1.172195283 | CG18: =IF(CG24/ES42<0,0,CG24/ES42) -> 1.131271872 | CH18: =IF(CH24/ET42<0,0,CH24/ET42) -> 1.096645434 | CJ18: Recommended Percent Funded | CK18: =IF(CK24/EU42<0,0,CK24/EU42) -> 1.146062397 | CL18: 1.108449707 | CM18: 1.072167315 | CN18: 1.043026471 | CO18: 1.016416961 | CP18: 0.9944248433
BA19: Reference Point | BB19: 1 | BC19: 1 | BD19: 1 | BE19: 1 | BF19: 1 | BH19: Reference Point | BI19: 1 | BJ19: 1 | BK19: 1 | BL19: 1 | BM19: 1 | BO19: Reference Point | BP19: 1 | BQ19: 1 | BR19: 1 | BS19: 1 | BT19: 1 | BV19: Reference Point | BW19: 1 | BX19: 1 | BY19: 1 | BZ19: 1 | CA19: 1 | CC19: Reference Point | CD19: 1 | CE19: 1 | CF19: 1 | CG19: 1 | CH19: 1 | CJ19: Reference Point | CK19: 1 | CL19: 1 | CM19: 1 | CN19: 1 | CO19: 1 | CP19: 1
AZ21: Table 6: 30-Year Income/Expense Detail (yrs 0 through 4) | BF21: =Main!$D$10 -> 16151-1 | BG21: Table 6: 30-Year Income/Expense Detail (yrs 5 through 9) | BM21: =Main!$D$10 -> 16151-1 | BN21: Table 6: 30-Year Income/Expense Detail (yrs 10 through 14) | BT21: =Main!$D$10 -> 16151-1 | BU21: Table 6: 30-Year Income/Expense Detail (yrs 15 through 19) | CA21: =Main!$D$10 -> 16151-1 | CB21: Table 6: 30-Year Income/Expense Detail (yrs 20 through 24) | CH21: =Main!$D$10 -> 16151-1 | CI21: Table 6: 30-Year Income/Expense Detail (yrs 25 through 29) | CO21: =Main!$D$10 -> 16151-1
BB22: 1 | BC22: 1 | BD22: 1 | BE22: 1 | BF22: 1 | BI22: 1 | BJ22: 1 | BK22: 1 | BL22: 1 | BM22: 1 | BP22: 1 | BQ22: 1 | BR22: 1 | BS22: 1 | BT22: 1 | BW22: 1 | BX22: 1 | BY22: 1 | BZ22: 1 | CA22: 1 | CD22: 1 | CE22: 1 | CF22: 1 | CG22: 1 | CH22: 1 | CK22: 1 | CL22: 1 | CM22: 1 | CN22: 1 | CO22: 1
BA23: Fiscal Year | BB23: =Main!D14 -> 2015 | BC23: =BB23+1 -> 2016 | BD23: =BC23+1 -> 2017 | BE23: 2018 | BF23: 2019 | BH23: Fiscal Year | BI23: =BF23+1 -> 2020 | BJ23: 2021 | BK23: 2022 | BL23: 2023 | BM23: 2024 | BO23: Fiscal Year | BP23: =BM23+1 -> 2025 | BQ23: 2026 | BR23: 2027 | BS23: 2028 | BT23: 2029 | BV23: Fiscal Year | BW23: =BT23+1 -> 2030 | BX23: 2031 | BY23: 2032 | BZ23: 2033 | CA23: 2034 | CC23: Fiscal Year | CD23: =CA23+1 -> 2035 | CE23: 2036 | CF23: 2037 | CG23: 2038 | CH23: 2039 | CJ23: Fiscal Year | CK23: =CH23+1 -> 2040 | CL23: 2041 | CM23: 2042 | CN23: 2043 | CO23: 2044 | CP23: 2045
BA24: Starting Reserve Balance | BB24: =Main!D20 -> 175103.11 | BC24: =+BB44 -> 137806.996 | BD24: 148135.3002 | BE24: 158835.6791 | BF24: 169919.9202 | BH24: Starting Reserve Balance | BI24: =+BF44 -> 176027.1501 | BJ24: 184949.2081 | BK24: 197175.6326 | BL24: 207981.8589 | BM24: 218524.84 | BO24: Starting Reserve Balance | BP24: =+BM44 -> 222215.0448 | BQ24: 221935.1681 | BR24: 236184.5745 | BS24: 250937.7255 | BT24: 207174.0944 | BV24: Starting Reserve Balance | BW24: =+BT44 -> 215168.8864 | BX24: 172141.677 | BY24: 184579.7774 | BZ24: 200786.3934 | CA24: 217586.3904 | CC24: Starting Reserve Balance | CD24: =+CA44 -> 151288.7374 | CE24: 149432.3372 | CF24: 167087.2078 | CG24: 185404.049 | CH24: 204404.049 | CJ24: Starting Reserve Balance | CK24: =+CH44 -> 128598.5715 | CL24: 142810.8386 | CM24: 162881.1467 | CN24: 180270.3014 | CO24: 201660.3548 | CP24: 205991.7498 | FD24: RowCount | FE24: =COUNTA(F30:F42)-1 -> 11
BA25: Annual Reserve Contribution | BB25: =Main!D48*Main!D30*Main!D61 -> 8640 | BC25: =IF(BC2<=Main!$D33,(Main!$D30*Main!$D48)*(1+Main!$D32),IF(BC2<=(Main!$D33+Main!$D35),(Main!$D30*Main!$D48)*(1+Main!$D34),(Main!$D30*Main!$D48))) -> 8899.2 | BD25: =IF(BD2<=Main!$D33,BC25*(1+Main!$D32),IF(BD2<=(Main!$D33+Main!$D35),BC25*(1+Main!$D34),BC25)) -> 9166.176 | BE25: =IF(BE2<=Main!$D33,BD25*(1+Main!$D32),IF(BE2<=(Main!$D33+Main!$D35),BD25*(1+Main!$D34),BD25)) -> 9441.16128 | BF25: =IF(BF2<=Main!$D33,BE25*(1+Main!$D32),IF(BF2<=(Main!$D33+Main!$D35),BE25*(1+Main!$D34),BE25)) -> 9724.396118 | BH25: Annual Reserve Contribution | BI25: =IF(BI2<=Main!$D33,BF25*(1+Main!$D32),IF(BI2<=(Main!$D33+Main!$D35),BF25*(1+Main!$D34),BF25)) -> 10016.128 | BJ25: =IF(BJ2<=Main!$D33,BI25*(1+Main!$D32),IF(BJ2<=(Main!$D33+Main!$D35),BI25*(1+Main!$D34),BI25)) -> 10316.61184 | BK25: =IF(BK2<=Main!$D33,BJ25*(1+Main!$D32),IF(BK2<=(Main!$D33+Main!$D35),BJ25*(1+Main!$D34),BJ25)) -> 10626.1102 | BL25: =IF(BL2<=Main!$D33,BK25*(1+Main!$D32),IF(BL2<=(Main!$D33+Main!$D35),BK25*(1+Main!$D34),BK25)) -> 10944.8935 | BM25: =IF(BM2<=Main!$D33,BL25*(1+Main!$D32),IF(BM2<=(Main!$D33+Main!$D35),BL25*(1+Main!$D34),BL25)) -> 11273.24031 | BO25: Annual Reserve Contribution | BP25: =IF(BP2<=Main!$D33,BM25*(1+Main!$D32),IF(BP2<=(Main!$D33+Main!$D35),BM25*(1+Main!$D34),BM25)) -> 11611.43752 | BQ25: =IF(BQ2<=Main!$D33,BP25*(1+Main!$D32),IF(BQ2<=(Main!$D33+Main!$D35),BP25*(1+Main!$D34),BP25)) -> 11959.78064 | BR25: =IF(BR2<=Main!$D33,BQ25*(1+Main!$D32),IF(BR2<=(Main!$D33+Main!$D35),BQ25*(1+Main!$D34),BQ25)) -> 12318.57406 | BS25: =IF(BS2<=Main!$D33,BR25*(1+Main!$D32),IF(BS2<=(Main!$D33+Main!$D35),BR25*(1+Main!$D34),BR25)) -> 12688.13128 | BT25: =IF(BT2<=Main!$D33,BS25*(1+Main!$D32),IF(BT2<=(Main!$D33+Main!$D35),BS25*(1+Main!$D34),BS25)) -> 13068.77522 | BV25: Annual Reserve Contribution | BW25: =IF(BW2<=Main!$D33,BT25*(1+Main!$D32),IF(BW2<=(Main!$D33+Main!$D35),BT25*(1+Main!$D34),BT25)) -> 13460.83848 | BX25: =IF(BX2<=Main!$D33,BW25*(1+Main!$D32),IF(BX2<=(Main!$D33+Main!$D35),BW25*(1+Main!$D34),BW25)) -> 13864.66363 | BY25: =IF(BY2<=Main!$D33,BX25*(1+Main!$D32),IF(BY2<=(Main!$D33+Main!$D35),BX25*(1+Main!$D34),BX25)) -> 14280.60354 | BZ25: =IF(BZ2<=Main!$D33,BY25*(1+Main!$D32),IF(BZ2<=(Main!$D33+Main!$D35),BY25*(1+Main!$D34),BY25)) -> 14709.02165 | CA25: =IF(CA2<=Main!$D33,BZ25*(1+Main!$D32),IF(CA2<=(Main!$D33+Main!$D35),BZ25*(1+Main!$D34),BZ25)) -> 15150.2923 | CC25: Annual Reserve Contribution | CD25: =IF(CD2<=Main!$D33,CA25*(1+Main!$D32),IF(CD2<=(Main!$D33+Main!$D35),CA25*(1+Main!$D34),CA25)) -> 15604.80107 | CE25: =IF(CE2<=Main!$D33,CD25*(1+Main!$D32),IF(CE2<=(Main!$D33+Main!$D35),CD25*(1+Main!$D34),CD25)) -> 16072.9451 | CF25: =IF(CF2<=Main!$D33,CE25*(1+Main!$D32),IF(CF2<=(Main!$D33+Main!$D35),CE25*(1+Main!$D34),CE25)) -> 16555.13345 | CG25: =IF(CG2<=Main!$D33,CF25*(1+Main!$D32),IF(CG2<=(Main!$D33+Main!$D35),CF25*(1+Main!$D34),CF25)) -> 17051.78746 | CH25: =IF(CH2<=Main!$D33,CG25*(1+Main!$D32),IF(CH2<=(Main!$D33+Main!$D35),CG25*(1+Main!$D34),CG25)) -> 17563.34108 | CJ25: Annual Reserve Contribution | CK25: =IF(CK2<=Main!$D33,CH25*(1+Main!$D32),IF(CK2<=(Main!$D33+Main!$D35),CH25*(1+Main!$D34),CH25)) -> 18090.24131 | CL25: =IF(CL2<=Main!$D33,CK25*(1+Main!$D32),IF(CL2<=(Main!$D33+Main!$D35),CK25*(1+Main!$D34),CK25)) -> 18542.49735 | CM25: =IF(CM2<=Main!$D33,CL25*(1+Main!$D32),IF(CM2<=(Main!$D33+Main!$D35),CL25*(1+Main!$D34),CL25)) -> 19006.05978 | CN25: =IF(CN2<=Main!$D33,CM25*(1+Main!$D32),IF(CN2<=(Main!$D33+Main!$D35),CM25*(1+Main!$D34),CM25)) -> 19481.21127 | CO25: =IF(CO2<=Main!$D33,CN25*(1+Main!$D32),IF(CO2<=(Main!$D33+Main!$D35),CN25*(1+Main!$D34),CN25)) -> 19968.24155 | CP25: =IF(CP2<=Main!$D33,CO25*(1+Main!$D32),IF(CP2<=(Main!$D33+Main!$D35),CO25*(1+Main!$D34),CO25)) -> 20467.44759 | FD25: Years
C26: Raw Data for Reserve Analysis goes below double line | N26: Table 1: Executive Summary | R26: =Main!$D$10 -> 16151-1 | S26: Table 2: Reserve Component List Detail | Y26: =Main!$D$10 -> 16151-1 | Z26: Table 3: Fully Funded Balance | AH26: =Main!$D$10 -> 16151-1 | AJ26: Table 4: Component Significance | AO26: =Main!$D$10 -> 16151-1 | AQ26: Accounting - Tax Summary | AX26: =Main!$D$10 -> 16151-1 | BA26: Recommended Special Assessments | BB26: =Main!D36 -> 0 | BC26: =Main!D37 -> 0 | BD26: =Main!D38 -> 0 | BE26: =Main!D39 -> 0 | BF26: =Main!D40 -> 0 | BH26: Recommended Special Assessments | BI26: 0 | BJ26: 0 | BK26: 0 | BL26: 0 | BM26: 0 | BO26: Recommended Special Assessments | BP26: 0 | BQ26: 0 | BR26: 0 | BS26: 0 | BT26: 0 | BV26: Recommended Special Assessments | BW26: 0 | BX26: 0 | BY26: 0 | BZ26: 0 | CA26: 0 | CC26: Recommended Special Assessments | CD26: 0 | CE26: 0 | CF26: 0 | CG26: 0 | CH26: 0 | CJ26: Recommended Special Assessments | CK26: 0 | CL26: 0 | CM26: 0 | CN26: 0 | CO26: 0 | CP26: 0 | CQ26: RUL Calculations | DV26: FFB Calculations | FD26: Inflation
BA27: Interest Earnings | BB27: =IF(BB16>0,BB16*Main!$D67,0) -> 1563.885974 | BC27: =IF(BC16>0,BC16*Main!$D67,0) -> 1429.104199 | BD27: =IF(BD16>0,BD16*Main!$D67,0) -> 1534.202954 | BE27: =IF(BE16>0,BE16*Main!$D67,0) -> 1643.079788 | BF27: =IF(BF16>0,BF16*Main!$D67,0) -> 1729.000632 | BH27: Interest Earnings | BI27: =IF(BI16>0,BI16*Main!$D67,0) -> 1804.115153 | BJ27: =IF(BJ16>0,BJ16*Main!$D67,0) -> 1909.81265 | BK27: =IF(BK16>0,BK16*Main!$D67,0) -> 2024.926988 | BL27: =IF(BL16>0,BL16*Main!$D67,0) -> 2131.627684 | BM27: =IF(BM16>0,BM16*Main!$D67,0) -> 2202.763384 | BO27: Interest Earnings | BP27: =IF(BP16>0,BP16*Main!$D67,0) -> 2219.807782 | BQ27: =IF(BQ16>0,BQ16*Main!$D67,0) -> 2289.625763 | BR27: =IF(BR16>0,BR16*Main!$D67,0) -> 2434.576954 | BS27: =IF(BS16>0,BS16*Main!$D67,0) -> 2289.586166 | BT27: =IF(BT16>0,BT16*Main!$D67,0) -> 2110.817936 | BV27: Interest Earnings | BW27: =IF(BW16>0,BW16*Main!$D67,0) -> 1935.73025 | BX27: =IF(BX16>0,BX16*Main!$D67,0) -> 1782.84967 | BY27: =IF(BY16>0,BY16*Main!$D67,0) -> 1926.012417 | BZ27: =IF(BZ16>0,BZ16*Main!$D67,0) -> 2090.975383 | CA27: =IF(CA16>0,CA16*Main!$D67,0) -> 1843.592226 | CC27: Interest Earnings | CD27: =IF(CD16>0,CD16*Main!$D67,0) -> 1502.966705 | CE27: =IF(CE16>0,CE16*Main!$D67,0) -> 1581.925504 | CF27: =IF(CF16>0,CF16*Main!$D67,0) -> 1761.707666 | CG27: =IF(CG16>0,CG16*Main!$D67,0) -> 1948.212619 | CH27: =IF(CH16>0,CH16*Main!$D67,0) -> 1664.305875 | CJ27: Interest Earnings | CK27: =IF(CK16>0,CK16*Main!$D67,0) -> 1356.470634 | CL27: =IF(CL16>0,CL16*Main!$D67,0) -> 1527.810701 | CM27: =IF(CM16>0,CM16*Main!$D67,0) -> 1715.028459 | CN27: =IF(CN16>0,CN16*Main!$D67,0) -> 1908.84214 | CO27: =IF(CO16>0,CO16*Main!$D67,0) -> 2037.394755 | CP27: =IF(CP16>0,CP16*Main!$D67,0) -> 1617.452468 | DV27: 0 | DW27: 1 | DX27: 2 | DY27: 3 | DZ27: 4 | EA27: 5 | EB27: 6 | EC27: 7 | ED27: 8 | EE27: 9 | EF27: 10 | EG27: 11 | EH27: 12 | EI27: 13 | EJ27: 14 | EK27: 15 | EL27: 16 | EM27: 17 | EN27: 18 | EO27: 19 | EP27: 20 | EQ27: 21 | ER27: 22 | ES27: 23 | ET27: 24 | EU27: 25 | EV27: 26 | EW27: 27 | EX27: 28 | EY27: 29 | EZ27: 30
I28: Remaining | P28: Useful | Q28: Rem. | R28: Current | W28: Rem. | AB28: Current | AH28: Fully | AM28: Current | AU28: Current | AV28: Fully | AW28: Current | AX28: Proportional | BA28: Total Income | BB28: =SUM(BB24:BB27) -> 185306.996 | BC28: 148135.3002 | BD28: 158835.6791 | BE28: 169919.9202 | BF28: 181373.3169 | BH28: Total Income | BI28: 187847.3933 | BJ28: 197175.6326 | BK28: 209826.6697 | BL28: 221058.3801 | BM28: 232000.8437 | BO28: Total Income | BP28: 236046.2901 | BQ28: 236184.5745 | BR28: 250937.7255 | BS28: 265915.443 | BT28: 222353.6876 | BV28: Total Income | BW28: 230565.4551 | BX28: 187789.1903 | BY28: 200786.3934 | BZ28: 217586.3904 | CA28: 234580.275 | CC28: Total Income | CD28: 168396.5052 | CE28: 167087.2078 | CF28: 185404.049 | CG28: 204404.049 | CH28: 223631.696 | CJ28: Total Income | CK28: 148045.2835 | CL28: 162881.1467 | CM28: 183602.2349 | CN28: 201660.3548 | CO28: 223665.9911 | CP28: 228076.6499 | CQ28: 0 | CR28: 1 | CS28: 2 | CT28: 3 | CU28: 4 | CV28: 5 | CW28: 6 | CX28: 7 | CY28: 8 | CZ28: 9 | DA28: 10 | DB28: 11 | DC28: 12 | DD28: 13 | DE28: 14 | DF28: 15 | DG28: 16 | DH28: 17 | DI28: 18 | DJ28: 19 | DK28: 20 | DL28: 21 | DM28: 22 | DN28: 23 | DO28: 24 | DP28: 25 | DQ28: 26 | DR28: 27 | DS28: 28 | DT28: 29 | DU28: 30 | DV28: =(1+Main!$D$22)^DV27 -> 1 | DW28: =(1+Main!$D$22)^DW27 -> 1.03 | DX28: =(1+Main!$D$22)^DX27 -> 1.0609 | DY28: =(1+Main!$D$22)^DY27 -> 1.092727 | DZ28: =(1+Main!$D$22)^DZ27 -> 1.12550881 | EA28: =(1+Main!$D$22)^EA27 -> 1.159274074 | EB28: =(1+Main!$D$22)^EB27 -> 1.194052297 | EC28: =(1+Main!$D$22)^EC27 -> 1.229873865 | ED28: =(1+Main!$D$22)^ED27 -> 1.266770081 | EE28: =(1+Main!$D$22)^EE27 -> 1.304773184 | EF28: =(1+Main!$D$22)^EF27 -> 1.343916379 | EG28: =(1+Main!$D$22)^EG27 -> 1.384233871 | EH28: =(1+Main!$D$22)^EH27 -> 1.425760887 | EI28: =(1+Main!$D$22)^EI27 -> 1.468533713 | EJ28: =(1+Main!$D$22)^EJ27 -> 1.512589725 | EK28: =(1+Main!$D$22)^EK27 -> 1.557967417 | EL28: =(1+Main!$D$22)^EL27 -> 1.604706439 | EM28: =(1+Main!$D$22)^EM27 -> 1.652847632 | EN28: =(1+Main!$D$22)^EN27 -> 1.702433061 | EO28: =(1+Main!$D$22)^EO27 -> 1.753506053 | EP28: =(1+Main!$D$22)^EP27 -> 1.806111235 | EQ28: =(1+Main!$D$22)^EQ27 -> 1.860294572 | ER28: =(1+Main!$D$22)^ER27 -> 1.916103409 | ES28: =(1+Main!$D$22)^ES27 -> 1.973586511 | ET28: =(1+Main!$D$22)^ET27 -> 2.032794106 | EU28: =(1+Main!$D$22)^EU27 -> 2.09377793 | EV28: =(1+Main!$D$22)^EV27 -> 2.156591268 | EW28: =(1+Main!$D$22)^EW27 -> 2.221289006 | EX28: =(1+Main!$D$22)^EX27 -> 2.287927676 | EY28: =(1+Main!$D$22)^EY27 -> 2.356565506 | EZ28: =(1+Main!$D$22)^EZ27 -> 2.427262471 | FD28: Remaining | FE28: Inflation
C29: Additional | H29: Useful | I29: Useful | J29: | --- Current Cost Est --- | | P29: Life | Q29: Useful | R29: Cost | V29: Useful | W29: Useful | X29: [ --- Current Cost Estimate --- ] | AB29: Cost | AD29: Effective | AF29: Useful | AH29: Funded | AL29: Useful | AM29: Cost | AN29: Deterioration | AO29: Deterioration | AP29: Fully Funded | AU29: Cost | AV29: Funded | AW29: Fund | AX29: Reserve | FD29: Useful | FE29: Adjusted
C30: Sort 1 | D30: Category | E30: # | F30: Component Title | G30: Description | H30: Life | I30: Life | J30: Best | K30: Worst | M30: Cost | N30: # | O30: Component | P30: (yrs) | Q30: Life (yrs) | R30: Estimate | S30: # | T30: Component | U30: Quantity | V30: Life | W30: Life | X30: Best Case | Y30: Worst Case | Z30: # | AA30: Component | AB30: Estimate | AC30: X | AD30: Age | AE30: / | AF30: Life | AG30: = | AH30: Balance | AJ30: # | AK30: Component | AL30: Life | AM30: Estimate | AN30: Cost/yr | AO30: Significance | AP30: Running Total | AQ30: # | AR30: Component | AS30: UL | AT30: RUL | AU30: Estimate | AV30: Balance | AW30: Balance | AX30: Contribs | AZ30: # | BA30: Component | BG30: # | BH30: Component | BN30: # | BO30: Component | BU30: # | BV30: Component | CB30: # | CC30: Component | CI30: # | CJ30: Component | CQ30: =Main!D14 -> 2015 | CR30: =CQ30+1 -> 2016 | CS30: 2017 | CT30: 2018 | CU30: 2019 | CV30: 2020 | CW30: 2021 | CX30: 2022 | CY30: 2023 | CZ30: 2024 | DA30: 2025 | DB30: 2026 | DC30: 2027 | DD30: 2028 | DE30: 2029 | DF30: 2030 | DG30: 2031 | DH30: 2032 | DI30: 2033 | DJ30: 2034 | DK30: 2035 | DL30: 2036 | DM30: 2037 | DN30: 2038 | DO30: 2039 | DP30: 2040 | DQ30: 2041 | DR30: 2042 | DS30: 2043 | DT30: 2044 | DU30: 2045 | DV30: =Main!AI14 -> 0 | DW30: =DV30+1 -> 1 | DX30: =DW30+1 -> 2 | DY30: 3 | DZ30: 4 | EA30: 5 | EB30: 6 | EC30: 7 | ED30: 8 | EE30: 9 | EF30: 10 | EG30: 11 | EH30: 12 | EI30: 13 | EJ30: 14 | EK30: 15 | EL30: 16 | EM30: 17 | EN30: 18 | EO30: 19 | EP30: 20 | EQ30: 21 | ER30: 22 | ES30: 23 | ET30: 24 | EU30: 25 | EV30: 26 | EW30: 27 | EX30: 28 | EY30: 29 | EZ30: 30 | FD30: Life | FE30: Cost
A31: =AND(ISBLANK(E31),ISBLANK(G31)) -> FALSE | E31: 2128 | F31: Well #2 - Replace | G31: (1) Well | H31: 50 | I31: 13 | J31: 30000 | K31: 50000 | M31: =(J31+K31)/2 -> 40000 | N31: =E31 -> 2128 | O31: =F31 -> Well #2 - Replace | P31: =H31 -> 50 | Q31: =I31 -> 13 | R31: =M31 -> 40000 | S31: =E31 -> 2128 | T31: =F31 -> Well #2 - Replace | U31: =G31 -> (1) Well | V31: =H31 -> 50 | W31: =I31 -> 13 | X31: =J31 -> 30000 | Y31: =K31 -> 50000 | Z31: =E31 -> 2128 | AA31: =F31 -> Well #2 - Replace | AB31: =M31 -> 40000 | AC31: X | AD31: =IF(H31-I31<0,0,H31-I31) -> 37 | AE31: / | AF31: =H31 -> 50 | AG31: = | AH31: =DV31+(1-Main!$D$61)*(DW31-DV31) -> 29600 | AJ31: =E31 -> 2128 | AK31: =F31 -> Well #2 - Replace | AL31: =H31 -> 50 | AM31: =M31 -> 40000 | AN31: =IF(H31>0,M31/H31,0) -> 800 | AO31: =AN31/AN$42 -> 0.09248554913 | AP31: =SUM(AV$31:AV31) -> 29600 | AQ31: =E31 -> 2128 | AR31: =F31 -> Well #2 - Replace | AS31: =H31 -> 50 | AT31: =I31 -> 13 | AU31: =M31 -> 40000 | AV31: =DV31+(1-Main!$D$61)*(DW31-DV31) -> 29600 | AW31: =IF(Main!D$26>1,Main!D$26*AV31,IF((AP31-AV31)>=Main!D$20,0,IF(AP31<=Main!D$20,AV31,Main!D$20-AP31+AV31))) -> 50521.17998 | AX31: =AO31*Main!RecommendContrib -> 66.58959538 | AZ31: =$E31 -> 2128 | BA31: =$F31 -> Well #2 - Replace | BB31: =IF(CQ31=0,$M31*BB$3,0) -> 0 | BC31: =IF(CR31=0,$M31*BC$3,0) -> 0 | BD31: =IF(CS31=0,$M31*BD$3,0) -> 0 | BE31: =IF(CT31=0,$M31*BE$3,0) -> 0 | BF31: =IF(CU31=0,$M31*BF$3,0) -> 0 | BG31: =$E31 -> 2128 | BH31: =$F31 -> Well #2 - Replace | BI31: =IF(CV31=0,$M31*BI$3,0) -> 0 | BJ31: =IF(CW31=0,$M31*BJ$3,0) -> 0 | BK31: =IF(CX31=0,$M31*BK$3,0) -> 0 | BL31: =IF(CY31=0,$M31*BL$3,0) -> 0 | BM31: =IF(CZ31=0,$M31*BM$3,0) -> 0 | BN31: =$E31 -> 2128 | BO31: =$F31 -> Well #2 - Replace | BP31: =IF(DA31=0,$M31*BP$3,0) -> 0 | BQ31: =IF(DB31=0,$M31*BQ$3,0) -> 0 | BR31: =IF(DC31=0,$M31*BR$3,0) -> 0 | BS31: =IF(DD31=0,$M31*BS$3,0) -> 58741.34854 | BT31: =IF(DE31=0,$M31*BT$3,0) -> 0 | BU31: =$E31 -> 2128 | BV31: =$F31 -> Well #2 - Replace | BW31: =IF(DF31=0,$M31*BW$3,0) -> 0 | BX31: =IF(DG31=0,$M31*BX$3,0) -> 0 | BY31: =IF(DH31=0,$M31*BY$3,0) -> 0 | BZ31: =IF(DI31=0,$M31*BZ$3,0) -> 0 | CA31: =IF(DJ31=0,$M31*CA$3,0) -> 0 | CB31: =$E31 -> 2128 | CC31: =$F31 -> Well #2 - Replace | CD31: =IF(DK31=0,$M31*CD$3,0) -> 0 | CE31: =IF(DL31=0,$M31*CE$3,0) -> 0 | CF31: =IF(DM31=0,$M31*CF$3,0) -> 0 | CG31: =IF(DN31=0,$M31*CG$3,0) -> 0 | CH31: =IF(DO31=0,$M31*CH$3,0) -> 0 | CI31: =$E31 -> 2128 | CJ31: =$F31 -> Well #2 - Replace | CK31: =IF(DP31=0,$M31*CK$3,0) -> 0 | CL31: =IF(DQ31=0,$M31*CL$3,0) -> 0 | CM31: =IF(DR31=0,$M31*CM$3,0) -> 0 | CN31: =IF(DS31=0,$M31*CN$3,0) -> 0 | CO31: =IF(DT31=0,$M31*CO$3,0) -> 0 | CP31: =IF(DU31=0,$M31*CP$3,0) -> 0 | CQ31: =IF(H31=0,I31,IF($I31>$H31,$H31,$I31)) -> 13 | CR31: =IF(AND($H31>0,$I31-CR$28>=$H31),$H31,IF(CQ31=999,999,IF(CQ31-1<0,IF($H31=0,999,$H31-1),CQ31-1))) -> 12 | CS31: 11 | CT31: 10 | CU31: 9 | CV31: 8 | CW31: 7 | CX31: 6 | CY31: 5 | CZ31: 4 | DA31: 3 | DB31: 2 | DC31: 1 | DD31: 0 | DE31: 49 | DF31: 48 | DG31: 47 | DH31: 46 | DI31: 45 | DJ31: 44 | DK31: 43 | DL31: 42 | DM31: 41 | DN31: 40 | DO31: 39 | DP31: 38 | DQ31: 37 | DR31: 36 | DS31: 35 | DT31: 34 | DU31: 33 | DV31: =IF($H31>0,$M31*($H31-CQ31)/$H31,$M31/(CQ31+1)) -> 29600 | DW31: =IF(CR31=999,0,IF($H31>0,DW$28*$M31*($H31-CR31)/$H31,DW$28*$M31/(CR31+1))) -> 31312 | DX31: =IF(CS31=999,0,IF($H31>0,DX$28*$M31*($H31-CS31)/$H31,DX$28*$M31/(CS31+1))) -> 33100.08 | DY31: =IF(CT31=999,0,IF($H31>0,DY$28*$M31*($H31-CT31)/$H31,DY$28*$M31/(CT31+1))) -> 34967.264 | DZ31: =IF(CU31=999,0,IF($H31>0,DZ$28*$M31*($H31-CU31)/$H31,DZ$28*$M31/(CU31+1))) -> 36916.68897 | EA31: =IF(CV31=999,0,IF($H31>0,EA$28*$M31*($H31-CV31)/$H31,EA$28*$M31/(CV31+1))) -> 38951.6089 | EB31: =IF(CW31=999,0,IF($H31>0,EB$28*$M31*($H31-CW31)/$H31,EB$28*$M31/(CW31+1))) -> 41075.399 | EC31: =IF(CX31=999,0,IF($H31>0,EC$28*$M31*($H31-CX31)/$H31,EC$28*$M31/(CX31+1))) -> 43291.56006 | ED31: =IF(CY31=999,0,IF($H31>0,ED$28*$M31*($H31-CY31)/$H31,ED$28*$M31/(CY31+1))) -> 45603.72293 | EE31: =IF(CZ31=999,0,IF($H31>0,EE$28*$M31*($H31-CZ31)/$H31,EE$28*$M31/(CZ31+1))) -> 48015.65316 | EF31: =IF(DA31=999,0,IF($H31>0,EF$28*$M31*($H31-DA31)/$H31,EF$28*$M31/(DA31+1))) -> 50531.25586 | EG31: =IF(DB31=999,0,IF($H31>0,EG$28*$M31*($H31-DB31)/$H31,EG$28*$M31/(DB31+1))) -> 53154.58064 | EH31: =IF(DC31=999,0,IF($H31>0,EH$28*$M31*($H31-DC31)/$H31,EH$28*$M31/(DC31+1))) -> 55889.82676 | EI31: =IF(DD31=999,0,IF($H31>0,EI$28*$M31*($H31-DD31)/$H31,EI$28*$M31/(DD31+1))) -> 58741.34854 | EJ31: =IF(DE31=999,0,IF($H31>0,EJ$28*$M31*($H31-DE31)/$H31,EJ$28*$M31/(DE31+1))) -> 1210.07178 | EK31: =IF(DF31=999,0,IF($H31>0,EK$28*$M31*($H31-DF31)/$H31,EK$28*$M31/(DF31+1))) -> 2492.747867 | EL31: =IF(DG31=999,0,IF($H31>0,EL$28*$M31*($H31-DG31)/$H31,EL$28*$M31/(DG31+1))) -> 3851.295454 | EM31: =IF(DH31=999,0,IF($H31>0,EM$28*$M31*($H31-DH31)/$H31,EM$28*$M31/(DH31+1))) -> 5289.112423 | EN31: =IF(DI31=999,0,IF($H31>0,EN$28*$M31*($H31-DI31)/$H31,EN$28*$M31/(DI31+1))) -> 6809.732245 | EO31: =IF(DJ31=999,0,IF($H31>0,EO$28*$M31*($H31-DJ31)/$H31,EO$28*$M31/(DJ31+1))) -> 8416.829055 | EP31: =IF(DK31=999,0,IF($H31>0,EP$28*$M31*($H31-DK31)/$H31,EP$28*$M31/(DK31+1))) -> 10114.22291 | EQ31: =IF(DL31=999,0,IF($H31>0,EQ$28*$M31*($H31-DL31)/$H31,EQ$28*$M31/(DL31+1))) -> 11905.88526 | ER31: =IF(DM31=999,0,IF($H31>0,ER$28*$M31*($H31-DM31)/$H31,ER$28*$M31/(DM31+1))) -> 13795.94454 | ES31: =IF(DN31=999,0,IF($H31>0,ES$28*$M31*($H31-DN31)/$H31,ES$28*$M31/(DN31+1))) -> 15788.69209 | ET31: =IF(DO31=999,0,IF($H31>0,ET$28*$M31*($H31-DO31)/$H31,ET$28*$M31/(DO31+1))) -> 17888.58814 | EU31: =IF(DP31=999,0,IF($H31>0,EU$28*$M31*($H31-DP31)/$H31,EU$28*$M31/(DP31+1))) -> 20100.26812 | EV31: =IF(DQ31=999,0,IF($H31>0,EV$28*$M31*($H31-DQ31)/$H31,EV$28*$M31/(DQ31+1))) -> 22428.54918 | EW31: =IF(DR31=999,0,IF($H31>0,EW$28*$M31*($H31-DR31)/$H31,EW$28*$M31/(DR31+1))) -> 24878.43686 | EX31: =IF(DS31=999,0,IF($H31>0,EX$28*$M31*($H31-DS31)/$H31,EX$28*$M31/(DS31+1))) -> 27455.13211 | EY31: =IF(DT31=999,0,IF($H31>0,EY$28*$M31*($H31-DT31)/$H31,EY$28*$M31/(DT31+1))) -> 30164.03848 | EZ31: =IF(DU31=999,0,IF($H31>0,EZ$28*$M31*($H31-DU31)/$H31,EZ$28*$M31/(DU31+1))) -> 33010.76961 | FD31: =MAX(0,I31-Years) -> 13 | FE31: =K31*(1+Inflation/100)^Years -> 50000
A32: FALSE | E32: 2128 | F32: Well #3 - Replace | G32: (1) Well | H32: 30 | I32: 19 | J32: 30000 | K32: 50000 | M32: 40000 | N32: 2128 | O32: Well #3 - Replace | P32: 30 | Q32: 19 | R32: 40000 | S32: 2128 | T32: Well #3 - Replace | U32: (1) Well | V32: 30 | W32: 19 | X32: 30000 | Y32: 50000 | Z32: 2128 | AA32: Well #3 - Replace | AB32: 40000 | AC32: X | AD32: 11 | AE32: / | AF32: 30 | AG32: = | AH32: =DV32+(1-Main!$D$61)*(DW32-DV32) -> 14666.66667 | AJ32: 2128 | AK32: Well #3 - Replace | AL32: 30 | AM32: 40000 | AN32: 1333.333333 | AO32: 0.1541425819 | AP32: =SUM(AV$31:AV32) -> 44266.66667 | AQ32: 2128 | AR32: Well #3 - Replace | AS32: 30 | AT32: 19 | AU32: 40000 | AV32: =DV32+(1-Main!$D$61)*(DW32-DV32) -> 14666.66667 | AW32: =IF(Main!D$26>1,Main!D$26*AV32,IF((AP32-AV32)>=Main!D$20,0,IF(AP32<=Main!D$20,AV32,Main!D$20-AP32+AV32))) -> 25033.01711 | AX32: =AO32*Main!RecommendContrib -> 110.982659 | AZ32: 2128 | BA32: Well #3 - Replace | BB32: 0 | BC32: 0 | BD32: 0 | BE32: 0 | BF32: 0 | BG32: 2128 | BH32: Well #3 - Replace | BI32: 0 | BJ32: 0 | BK32: 0 | BL32: 0 | BM32: 0 | BN32: 2128 | BO32: Well #3 - Replace | BP32: 0 | BQ32: 0 | BR32: 0 | BS32: 0 | BT32: 0 | BU32: 2128 | BV32: Well #3 - Replace | BW32: 0 | BX32: 0 | BY32: 0 | BZ32: 0 | CA32: 70140.24212 | CB32: 2128 | CC32: Well #3 - Replace | CD32: 0 | CE32: 0 | CF32: 0 | CG32: 0 | CH32: 0 | CI32: 2128 | CJ32: Well #3 - Replace | CK32: 0 | CL32: 0 | CM32: 0 | CN32: 0 | CO32: 0 | CP32: 0 | CQ32: 19 | CR32: =IF(AND($H32>0,$I32-CR$28>=$H32),$H32,IF(CQ32=999,999,IF(CQ32-1<0,IF($H32=0,999,$H32-1),CQ32-1))) -> 18 | CS32: 17 | CT32: 16 | CU32: 15 | CV32: 14 | CW32: 13 | CX32: 12 | CY32: 11 | CZ32: 10 | DA32: 9 | DB32: 8 | DC32: 7 | DD32: 6 | DE32: 5 | DF32: 4 | DG32: 3 | DH32: 2 | DI32: 1 | DJ32: 0 | DK32: 29 | DL32: 28 | DM32: 27 | DN32: 26 | DO32: 25 | DP32: 24 | DQ32: 23 | DR32: 22 | DS32: 21 | DT32: 20 | DU32: 19 | DV32: 14666.66667 | DW32: 16480 | DX32: 18388.93333 | DY32: 20397.57067 | DZ32: 22510.1762 | EA32: 24731.18025 | EB32: 27065.18539 | EC32: 29516.97277 | ED32: 32091.50873 | EE32: 34793.95157 | EF32: 37629.65862 | EG32: 40604.19354 | EH32: 43723.33386 | EI32: 46993.07883 | EJ32: 50419.6575 | EK32: 54009.53711 | EL32: 57769.43181 | EM32: 61706.3116 | EN32: 65827.4117 | EO32: 70140.24212 | EP32: 2408.148313 | EQ32: 4960.785525 | ER32: 7664.413635 | ES32: 10525.79473 | ET32: 13551.96071 | EU32: 16750.22344 | EV32: 20128.18516 | EW32: 23693.74939 | EX32: 27455.13211 | EY32: 31420.87341 | EZ32: 35599.84958 | FD32: 19 | FE32: 50000
A33: FALSE | E33: 2128 | F33: Well #4 - Replace | G33: (1) Well | H33: 30 | I33: 24 | J33: 30000 | K33: 50000 | M33: 40000 | N33: 2128 | O33: Well #4 - Replace | P33: 30 | Q33: 24 | R33: 40000 | S33: 2128 | T33: Well #4 - Replace | U33: (1) Well | V33: 30 | W33: 24 | X33: 30000 | Y33: 50000 | Z33: 2128 | AA33: Well #4 - Replace | AB33: 40000 | AC33: X | AD33: 6 | AE33: / | AF33: 30 | AG33: = | AH33: =DV33+(1-Main!$D$61)*(DW33-DV33) -> 8000 | AJ33: 2128 | AK33: Well #4 - Replace | AL33: 30 | AM33: 40000 | AN33: 1333.333333 | AO33: 0.1541425819 | AP33: =SUM(AV$31:AV33) -> 52266.66667 | AQ33: 2128 | AR33: Well #4 - Replace | AS33: 30 | AT33: 24 | AU33: 40000 | AV33: =DV33+(1-Main!$D$61)*(DW33-DV33) -> 8000 | AW33: =IF(Main!D$26>1,Main!D$26*AV33,IF((AP33-AV33)>=Main!D$20,0,IF(AP33<=Main!D$20,AV33,Main!D$20-AP33+AV33))) -> 13654.37297 | AX33: =AO33*Main!RecommendContrib -> 110.982659 | AZ33: 2128 | BA33: Well #4 - Replace | BB33: 0 | BC33: 0 | BD33: 0 | BE33: 0 | BF33: 0 | BG33: 2128 | BH33: Well #4 - Replace | BI33: 0 | BJ33: 0 | BK33: 0 | BL33: 0 | BM33: 0 | BN33: 2128 | BO33: Well #4 - Replace | BP33: 0 | BQ33: 0 | BR33: 0 | BS33: 0 | BT33: 0 | BU33: 2128 | BV33: Well #4 - Replace | BW33: 0 | BX33: 0 | BY33: 0 | BZ33: 0 | CA33: 0 | CB33: 2128 | CC33: Well #4 - Replace | CD33: 0 | CE33: 0 | CF33: 0 | CG33: 0 | CH33: 81311.76426 | CI33: 2128 | CJ33: Well #4 - Replace | CK33: 0 | CL33: 0 | CM33: 0 | CN33: 0 | CO33: 0 | CP33: 0 | CQ33: 24 | CR33: =IF(AND($H33>0,$I33-CR$28>=$H33),$H33,IF(CQ33=999,999,IF(CQ33-1<0,IF($H33=0,999,$H33-1),CQ33-1))) -> 23 | CS33: 22 | CT33: 21 | CU33: 20 | CV33: 19 | CW33: 18 | CX33: 17 | CY33: 16 | CZ33: 15 | DA33: 14 | DB33: 13 | DC33: 12 | DD33: 11 | DE33: 10 | DF33: 9 | DG33: 8 | DH33: 7 | DI33: 6 | DJ33: 5 | DK33: 4 | DL33: 3 | DM33: 2 | DN33: 1 | DO33: 0 | DP33: 29 | DQ33: 28 | DR33: 27 | DS33: 26 | DT33: 25 | DU33: 24 | DV33: 8000 | DW33: 9613.333333 | DX33: 11316.26667 | DY33: 13112.724 | DZ33: 15006.78413 | EA33: 17002.68642 | EB33: 19104.83674 | EC33: 21317.81367 | ED33: 23646.37485 | EE33: 26095.46368 | EF33: 28670.21609 | EG33: 31375.96774 | EH33: 34218.26128 | EI33: 37202.85407 | EJ33: 40335.726 | EK33: 43623.08766 | EL33: 47071.38888 | EM33: 50687.32739 | EN33: 54477.85796 | EO33: 58450.20177 | EP33: 62611.85614 | EQ33: 66970.60458 | ER33: 71534.52726 | ES33: 76312.01176 | ET33: 81311.76426 | EU33: 2791.703906 | EV33: 5750.910047 | EW33: 8885.156022 | EX33: 12202.28094 | EY33: 15710.43671 | EZ33: 19418.09977 | FD33: 24 | FE33: 50000
A34: =AND(ISBLANK(E34),ISBLANK(G34)) -> FALSE | E34: 2157 | F34: Water Storage Tank - Repair/Paint | G34: ~ 5,200 GSF | H34: 15 | I34: 0 | J34: 30000 | K34: 40000 | M34: 35000 | N34: 2157 | O34: Water Storage Tank - Repair/Paint | P34: 15 | Q34: 0 | R34: 35000 | S34: 2157 | T34: Water Storage Tank - Repair/Paint | U34: ~ 5,200 GSF | V34: 15 | W34: 0 | X34: 30000 | Y34: 40000 | Z34: 2157 | AA34: Water Storage Tank - Repair/Paint | AB34: 35000 | AC34: X | AD34: 15 | AE34: / | AF34: 15 | AG34: = | AH34: =DV34+(1-Main!$D$61)*(DW34-DV34) -> 35000 | AJ34: 2157 | AK34: Water Storage Tank - Repair/Paint | AL34: 15 | AM34: 35000 | AN34: 2333.333333 | AO34: 0.2697495183 | AP34: =SUM(AV$31:AV34) -> 87266.66667 | AQ34: 2157 | AR34: Water Storage Tank - Repair/Paint | AS34: 15 | AT34: 0 | AU34: 35000 | AV34: =DV34+(1-Main!$D$61)*(DW34-DV34) -> 35000 | AW34: =IF(Main!D$26>1,Main!D$26*AV34,IF((AP34-AV34)>=Main!D$20,0,IF(AP34<=Main!D$20,AV34,Main!D$20-AP34+AV34))) -> 59737.88173 | AX34: =AO34*Main!RecommendContrib -> 194.2196532 | AZ34: 2157 | BA34: Water Storage Tank - Repair/Paint | BB34: 35000 | BC34: 0 | BD34: 0 | BE34: 0 | BF34: 0 | BG34: 2157 | BH34: Water Storage Tank - Repair/Paint | BI34: 0 | BJ34: 0 | BK34: 0 | BL34: 0 | BM34: 0 | BN34: 2157 | BO34: Water Storage Tank - Repair/Paint | BP34: 0 | BQ34: 0 | BR34: 0 | BS34: 0 | BT34: 0 | BU34: 2157 | BV34: Water Storage Tank - Repair/Paint | BW34: 54528.85958 | BX34: 0 | BY34: 0 | BZ34: 0 | CA34: 0 | CB34: 2157 | CC34: Water Storage Tank - Repair/Paint | CD34: 0 | CE34: 0 | CF34: 0 | CG34: 0 | CH34: 0 | CI34: 2157 | CJ34: Water Storage Tank - Repair/Paint | CK34: 0 | CL34: 0 | CM34: 0 | CN34: 0 | CO34: 0 | CP34: 84954.18649 | CQ34: 0 | CR34: =IF(AND($H34>0,$I34-CR$28>=$H34),$H34,IF(CQ34=999,999,IF(CQ34-1<0,IF($H34=0,999,$H34-1),CQ34-1))) -> 14 | CS34: 13 | CT34: 12 | CU34: 11 | CV34: 10 | CW34: 9 | CX34: 8 | CY34: 7 | CZ34: 6 | DA34: 5 | DB34: 4 | DC34: 3 | DD34: 2 | DE34: 1 | DF34: 0 | DG34: 14 | DH34: 13 | DI34: 12 | DJ34: 11 | DK34: 10 | DL34: 9 | DM34: 8 | DN34: 7 | DO34: 6 | DP34: 5 | DQ34: 4 | DR34: 3 | DS34: 2 | DT34: 1 | DU34: 0 | DV34: 35000 | DW34: 2403.333333 | DX34: 4950.866667 | DY34: 7649.089 | DZ34: 10504.74889 | EA34: 13524.8642 | EB34: 16716.73215 | EC34: 20087.9398 | ED34: 23646.37485 | EE34: 27400.23686 | EF34: 31358.04885 | EG34: 35528.66935 | EH34: 39921.30483 | EI34: 44545.52264 | EJ34: 49411.26435 | EK34: 54528.85958 | EL34: 3744.315025 | EM34: 7713.288951 | EN34: 11917.03143 | EO34: 16366.0565 | EP34: 21071.29774 | EQ34: 26044.124 | ER34: 31296.35568 | ES34: 36840.28154 | ET34: 42688.67624 | EU34: 48854.81836 | EV34: 55352.5092 | EW34: 62196.09216 | EX34: 69400.47283 | EY34: 76981.13986 | EZ34: 84954.18649 | FD34: 0 | FE34: 40000
A35: FALSE | E35: 2189 | F35: Pump House - Maintain | G35: (1) 10x8 Structure | H35: 20 | I35: 7 | J35: 1000 | K35: 2000 | M35: 1500 | N35: 2189 | O35: Pump House - Maintain | P35: 20 | Q35: 7 | R35: 1500 | S35: 2189 | T35: Pump House - Maintain | U35: (1) 10x8 Structure | V35: 20 | W35: 7 | X35: 1000 | Y35: 2000 | Z35: 2189 | AA35: Pump House - Maintain | AB35: 1500 | AC35: X | AD35: 13 | AE35: / | AF35: 20 | AG35: = | AH35: =DV35+(1-Main!$D$61)*(DW35-DV35) -> 975 | AJ35: 2189 | AK35: Pump House - Maintain | AL35: 20 | AM35: 1500 | AN35: 75 | AO35: 0.008670520231 | AP35: =SUM(AV$31:AV35) -> 88241.66667 | AQ35: 2189 | AR35: Pump House - Maintain | AS35: 20 | AT35: 7 | AU35: 1500 | AV35: =DV35+(1-Main!$D$61)*(DW35-DV35) -> 975 | AW35: =IF(Main!D$26>1,Main!D$26*AV35,IF((AP35-AV35)>=Main!D$20,0,IF(AP35<=Main!D$20,AV35,Main!D$20-AP35+AV35))) -> 1664.126705 | AX35: =AO35*Main!RecommendContrib -> 6.242774566 | AZ35: 2189 | BA35: Pump House - Maintain | BB35: 0 | BC35: 0 | BD35: 0 | BE35: 0 | BF35: 0 | BG35: 2189 | BH35: Pump House - Maintain | BI35: 0 | BJ35: 0 | BK35: 1844.810798 | BL35: 0 | BM35: 0 | BN35: 2189 | BO35: Pump House - Maintain | BP35: 0 | BQ35: 0 | BR35: 0 | BS35: 0 | BT35: 0 | BU35: 2189 | BV35: Pump House - Maintain | BW35: 0 | BX35: 0 | BY35: 0 | BZ35: 0 | CA35: 0 | CB35: 2189 | CC35: Pump House - Maintain | CD35: 0 | CE35: 0 | CF35: 0 | CG35: 0 | CH35: 0 | CI35: 2189 | CJ35: Pump House - Maintain | CK35: 0 | CL35: 0 | CM35: 3331.933508 | CN35: 0 | CO35: 0 | CP35: 0 | CQ35: 7 | CR35: =IF(AND($H35>0,$I35-CR$28>=$H35),$H35,IF(CQ35=999,999,IF(CQ35-1<0,IF($H35=0,999,$H35-1),CQ35-1))) -> 6 | CS35: 5 | CT35: 4 | CU35: 3 | CV35: 2 | CW35: 1 | CX35: 0 | CY35: 19 | CZ35: 18 | DA35: 17 | DB35: 16 | DC35: 15 | DD35: 14 | DE35: 13 | DF35: 12 | DG35: 11 | DH35: 10 | DI35: 9 | DJ35: 8 | DK35: 7 | DL35: 6 | DM35: 5 | DN35: 4 | DO35: 3 | DP35: 2 | DQ35: 1 | DR35: 0 | DS35: 19 | DT35: 18 | DU35: 17 | DV35: 975 | DW35: 1081.5 | DX35: 1193.5125 | DY35: 1311.2724 | DZ35: 1435.023733 | EA35: 1565.02 | EB35: 1701.524523 | EC35: 1844.810798 | ED35: 95.0077561 | EE35: 195.7159776 | EF35: 302.3811854 | EG35: 415.2701612 | EH35: 534.6603326 | EI35: 660.8401711 | EJ35: 794.1096055 | EK35: 934.78045 | EL35: 1083.176846 | EM35: 1239.635724 | EN35: 1404.507276 | EO35: 1578.155448 | EP35: 1760.958454 | EQ35: 1953.3093 | ER35: 2155.616335 | ES35: 2368.303813 | ET35: 2591.812486 | EU35: 2826.600205 | EV35: 3073.142556 | EW35: 3331.933508 | EX35: 171.5945757 | EY35: 353.4848259 | EZ35: 546.134056 | FD35: 7 | FE35: 2000
A36: FALSE | E36: 2531 | F36: Sensaphone - Replace | G36: (1) Unit | H36: 8 | I36: 0 | J36: 1000 | K36: 3000 | M36: 2000 | N36: 2531 | O36: Sensaphone - Replace | P36: 8 | Q36: 0 | R36: 2000 | S36: 2531 | T36: Sensaphone - Replace | U36: (1) Unit | V36: 8 | W36: 0 | X36: 1000 | Y36: 3000 | Z36: 2531 | AA36: Sensaphone - Replace | AB36: 2000 | AC36: X | AD36: 8 | AE36: / | AF36: 8 | AG36: = | AH36: =DV36+(1-Main!$D$61)*(DW36-DV36) -> 2000 | AJ36: 2531 | AK36: Sensaphone - Replace | AL36: 8 | AM36: 2000 | AN36: 250 | AO36: 0.0289017341 | AP36: =SUM(AV$31:AV36) -> 90241.66667 | AQ36: 2531 | AR36: Sensaphone - Replace | AS36: 8 | AT36: 0 | AU36: 2000 | AV36: =DV36+(1-Main!$D$61)*(DW36-DV36) -> 2000 | AW36: =IF(Main!D$26>1,Main!D$26*AV36,IF((AP36-AV36)>=Main!D$20,0,IF(AP36<=Main!D$20,AV36,Main!D$20-AP36+AV36))) -> 3413.593242 | AX36: =AO36*Main!RecommendContrib -> 20.80924855 | AZ36: 2531 | BA36: Sensaphone - Replace | BB36: 2000 | BC36: 0 | BD36: 0 | BE36: 0 | BF36: 0 | BG36: 2531 | BH36: Sensaphone - Replace | BI36: 0 | BJ36: 0 | BK36: 0 | BL36: 2533.540163 | BM36: 0 | BN36: 2531 | BO36: Sensaphone - Replace | BP36: 0 | BQ36: 0 | BR36: 0 | BS36: 0 | BT36: 0 | BU36: 2531 | BV36: Sensaphone - Replace | BW36: 0 | BX36: 3209.412878 | BY36: 0 | BZ36: 0 | CA36: 0 | CB36: 2531 | CC36: Sensaphone - Replace | CD36: 0 | CE36: 0 | CF36: 0 | CG36: 0 | CH36: 4065.588213 | CI36: 2531 | CJ36: Sensaphone - Replace | CK36: 0 | CL36: 0 | CM36: 0 | CN36: 0 | CO36: 0 | CP36: 0 | CQ36: 0 | CR36: =IF(AND($H36>0,$I36-CR$28>=$H36),$H36,IF(CQ36=999,999,IF(CQ36-1<0,IF($H36=0,999,$H36-1),CQ36-1))) -> 7 | CS36: 6 | CT36: 5 | CU36: 4 | CV36: 3 | CW36: 2 | CX36: 1 | CY36: 0 | CZ36: 7 | DA36: 6 | DB36: 5 | DC36: 4 | DD36: 3 | DE36: 2 | DF36: 1 | DG36: 0 | DH36: 7 | DI36: 6 | DJ36: 5 | DK36: 4 | DL36: 3 | DM36: 2 | DN36: 1 | DO36: 0 | DP36: 7 | DQ36: 6 | DR36: 5 | DS36: 4 | DT36: 3 | DU36: 2 | DV36: 2000 | DW36: 257.5 | DX36: 530.45 | DY36: 819.54525 | DZ36: 1125.50881 | EA36: 1449.092593 | EB36: 1791.078445 | EC36: 2152.279264 | ED36: 2533.540163 | EE36: 326.193296 | EF36: 671.9581897 | EG36: 1038.175403 | EH36: 1425.760887 | EI36: 1835.667142 | EJ36: 2268.884587 | EK36: 2726.442979 | EL36: 3209.412878 | EM36: 413.2119081 | EN36: 851.2165306 | EO36: 1315.12954 | EP36: 1806.111235 | EQ36: 2325.368215 | ER36: 2874.155113 | ES36: 3453.776394 | ET36: 4065.588213 | EU36: 523.4444824 | EV36: 1078.295634 | EW36: 1665.966754 | EX36: 2287.927676 | EY36: 2945.706883 | EZ36: 3640.893707 | FD36: 0 | FE36: 3000
A37: FALSE | E37: 2533 | F37: Submersible Transducer - Replace | G37: (1) Transducer | H37: 10 | I37: 4 | J37: 1000 | K37: 1500 | M37: 1250 | N37: 2533 | O37: Submersible Transducer - Replace | P37: 10 | Q37: 4 | R37: 1250 | S37: 2533 | T37: Submersible Transducer - Replace | U37: (1) Transducer | V37: 10 | W37: 4 | X37: 1000 | Y37: 1500 | Z37: 2533 | AA37: Submersible Transducer - Replace | AB37: 1250 | AC37: X | AD37: 6 | AE37: / | AF37: 10 | AG37: = | AH37: =DV37+(1-Main!$D$61)*(DW37-DV37) -> 750 | AJ37: 2533 | AK37: Submersible Transducer - Replace | AL37: 10 | AM37: 1250 | AN37: 125 | AO37: 0.01445086705 | AP37: =SUM(AV$31:AV37) -> 90991.66667 | AQ37: 2533 | AR37: Submersible Transducer - Replace | AS37: 10 | AT37: 4 | AU37: 1250 | AV37: =DV37+(1-Main!$D$61)*(DW37-DV37) -> 750 | AW37: =IF(Main!D$26>1,Main!D$26*AV37,IF((AP37-AV37)>=Main!D$20,0,IF(AP37<=Main!D$20,AV37,Main!D$20-AP37+AV37))) -> 1280.097466 | AX37: =AO37*Main!RecommendContrib -> 10.40462428 | AZ37: 2533 | BA37: Submersible Transducer - Replace | BB37: 0 | BC37: 0 | BD37: 0 | BE37: 0 | BF37: 1406.886012 | BG37: 2533 | BH37: Submersible Transducer - Replace | BI37: 0 | BJ37: 0 | BK37: 0 | BL37: 0 | BM37: 0 | BN37: 2533 | BO37: Submersible Transducer - Replace | BP37: 0 | BQ37: 0 | BR37: 0 | BS37: 0 | BT37: 1890.737156 | BU37: 2533 | BV37: Submersible Transducer - Replace | BW37: 0 | BX37: 0 | BY37: 0 | BZ37: 0 | CA37: 0 | CB37: 2533 | CC37: Submersible Transducer - Replace | CD37: 0 | CE37: 0 | CF37: 0 | CG37: 0 | CH37: 2540.992633 | CI37: 2533 | CJ37: Submersible Transducer - Replace | CK37: 0 | CL37: 0 | CM37: 0 | CN37: 0 | CO37: 0 | CP37: 0 | CQ37: 4 | CR37: =IF(AND($H37>0,$I37-CR$28>=$H37),$H37,IF(CQ37=999,999,IF(CQ37-1<0,IF($H37=0,999,$H37-1),CQ37-1))) -> 3 | CS37: 2 | CT37: 1 | CU37: 0 | CV37: 9 | CW37: 8 | CX37: 7 | CY37: 6 | CZ37: 5 | DA37: 4 | DB37: 3 | DC37: 2 | DD37: 1 | DE37: 0 | DF37: 9 | DG37: 8 | DH37: 7 | DI37: 6 | DJ37: 5 | DK37: 4 | DL37: 3 | DM37: 2 | DN37: 1 | DO37: 0 | DP37: 9 | DQ37: 8 | DR37: 7 | DS37: 6 | DT37: 5 | DU37: 4 | DV37: 750 | DW37: 901.25 | DX37: 1060.9 | DY37: 1229.317875 | DZ37: 1406.886012 | EA37: 144.9092593 | EB37: 298.5130741 | EC37: 461.2026995 | ED37: 633.3850407 | EE37: 815.4832399 | EF37: 1007.937285 | EG37: 1211.204637 | EH37: 1425.760887 | EI37: 1652.100428 | EJ37: 1890.737156 | EK37: 194.7459271 | EL37: 401.1766098 | EM37: 619.8178621 | EN37: 851.2165306 | EO37: 1095.941283 | EP37: 1354.583426 | EQ37: 1627.75775 | ER37: 1916.103409 | ES37: 2220.284825 | ET37: 2540.992633 | EU37: 261.7222412 | EV37: 539.1478169 | EW37: 832.9833771 | EX37: 1143.963838 | EY37: 1472.853441 | EZ37: 1820.446853 | FD37: 4 | FE37: 1500
A38: FALSE | E38: 2535 | F38: Well Motor/Pump - Replace (2014) | G38: (1) Unit | H38: 10 | I38: 9 | J38: 3000 | K38: 5000 | M38: 4000 | N38: 2535 | O38: Well Motor/Pump - Replace (2014) | P38: 10 | Q38: 9 | R38: 4000 | S38: 2535 | T38: Well Motor/Pump - Replace (2014) | U38: (1) Unit | V38: 10 | W38: 9 | X38: 3000 | Y38: 5000 | Z38: 2535 | AA38: Well Motor/Pump - Replace (2014) | AB38: 4000 | AC38: X | AD38: 1 | AE38: / | AF38: 10 | AG38: = | AH38: =DV38+(1-Main!$D$61)*(DW38-DV38) -> 400 | AJ38: 2535 | AK38: Well Motor/Pump - Replace (2014) | AL38: 10 | AM38: 4000 | AN38: 400 | AO38: 0.04624277457 | AP38: =SUM(AV$31:AV38) -> 91391.66667 | AQ38: 2535 | AR38: Well Motor/Pump - Replace (2014) | AS38: 10 | AT38: 9 | AU38: 4000 | AV38: =DV38+(1-Main!$D$61)*(DW38-DV38) -> 400 | AW38: =IF(Main!D$26>1,Main!D$26*AV38,IF((AP38-AV38)>=Main!D$20,0,IF(AP38<=Main!D$20,AV38,Main!D$20-AP38+AV38))) -> 682.7186484 | AX38: =AO38*Main!RecommendContrib -> 33.29479769 | AZ38: 2535 | BA38: Well Motor/Pump - Replace (2014) | BB38: 0 | BC38: 0 | BD38: 0 | BE38: 0 | BF38: 0 | BG38: 2535 | BH38: Well Motor/Pump - Replace (2014) | BI38: 0 | BJ38: 0 | BK38: 0 | BL38: 0 | BM38: 5219.092735 | BN38: 2535 | BO38: Well Motor/Pump - Replace (2014) | BP38: 0 | BQ38: 0 | BR38: 0 | BS38: 0 | BT38: 0 | BU38: 2535 | BV38: Well Motor/Pump - Replace (2014) | BW38: 0 | BX38: 0 | BY38: 0 | BZ38: 0 | CA38: 7014.024212 | CB38: 2535 | CC38: Well Motor/Pump - Replace (2014) | CD38: 0 | CE38: 0 | CF38: 0 | CG38: 0 | CH38: 0 | CI38: 2535 | CJ38: Well Motor/Pump - Replace (2014) | CK38: 0 | CL38: 0 | CM38: 0 | CN38: 0 | CO38: 9426.262024 | CP38: 0 | CQ38: 9 | CR38: =IF(AND($H38>0,$I38-CR$28>=$H38),$H38,IF(CQ38=999,999,IF(CQ38-1<0,IF($H38=0,999,$H38-1),CQ38-1))) -> 8 | CS38: 7 | CT38: 6 | CU38: 5 | CV38: 4 | CW38: 3 | CX38: 2 | CY38: 1 | CZ38: 0 | DA38: 9 | DB38: 8 | DC38: 7 | DD38: 6 | DE38: 5 | DF38: 4 | DG38: 3 | DH38: 2 | DI38: 1 | DJ38: 0 | DK38: 9 | DL38: 8 | DM38: 7 | DN38: 6 | DO38: 5 | DP38: 4 | DQ38: 3 | DR38: 2 | DS38: 1 | DT38: 0 | DU38: 9 | DV38: 400 | DW38: 824 | DX38: 1273.08 | DY38: 1748.3632 | DZ38: 2251.01762 | EA38: 2782.257778 | EB38: 3343.34643 | EC38: 3935.596369 | ED38: 4560.372293 | EE38: 5219.092735 | EF38: 537.5665517 | EG38: 1107.387097 | EH38: 1710.913064 | EI38: 2349.653942 | EJ38: 3025.17945 | EK38: 3739.1218 | EL38: 4493.178029 | EM38: 5289.112423 | EN38: 6128.75902 | EO38: 7014.024212 | EP38: 722.4444939 | EQ38: 1488.235657 | ER38: 2299.324091 | ES38: 3157.738418 | ET38: 4065.588213 | EU38: 5025.067031 | EV38: 6038.455549 | EW38: 7108.124818 | EX38: 8236.539633 | EY38: 9426.262024 | EZ38: 970.9049885 | FD38: 9 | FE38: 5000
A39: FALSE | E39: 2535 | F39: Well Motors/Pumps - Replace (2005) | G39: (2) Units | H39: 10 | I39: 0 | J39: 6000 | K39: 10000 | M39: 8000 | N39: 2535 | O39: Well Motors/Pumps - Replace (2005) | P39: 10 | Q39: 0 | R39: 8000 | S39: 2535 | T39: Well Motors/Pumps - Replace (2005) | U39: (2) Units | V39: 10 | W39: 0 | X39: 6000 | Y39: 10000 | Z39: 2535 | AA39: Well Motors/Pumps - Replace (2005) | AB39: 8000 | AC39: X | AD39: 10 | AE39: / | AF39: 10 | AG39: = | AH39: =DV39+(1-Main!$D$61)*(DW39-DV39) -> 8000 | AJ39: 2535 | AK39: Well Motors/Pumps - Replace (2005) | AL39: 10 | AM39: 8000 | AN39: 800 | AO39: 0.09248554913 | AP39: =SUM(AV$31:AV39) -> 99391.66667 | AQ39: 2535 | AR39: Well Motors/Pumps - Replace (2005) | AS39: 10 | AT39: 0 | AU39: 8000 | AV39: =DV39+(1-Main!$D$61)*(DW39-DV39) -> 8000 | AW39: =IF(Main!D$26>1,Main!D$26*AV39,IF((AP39-AV39)>=Main!D$20,0,IF(AP39<=Main!D$20,AV39,Main!D$20-AP39+AV39))) -> 13654.37297 | AX39: =AO39*Main!RecommendContrib -> 66.58959538 | AZ39: 2535 | BA39: Well Motors/Pumps - Replace (2005) | BB39: 8000 | BC39: 0 | BD39: 0 | BE39: 0 | BF39: 0 | BG39: 2535 | BH39: Well Motors/Pumps - Replace (2005) | BI39: 0 | BJ39: 0 | BK39: 0 | BL39: 0 | BM39: 0 | BN39: 2535 | BO39: Well Motors/Pumps - Replace (2005) | BP39: 10751.33103 | BQ39: 0 | BR39: 0 | BS39: 0 | BT39: 0 | BU39: 2535 | BV39: Well Motors/Pumps - Replace (2005) | BW39: 0 | BX39: 0 | BY39: 0 | BZ39: 0 | CA39: 0 | CB39: 2535 | CC39: Well Motors/Pumps - Replace (2005) | CD39: 14448.88988 | CE39: 0 | CF39: 0 | CG39: 0 | CH39: 0 | CI39: 2535 | CJ39: Well Motors/Pumps - Replace (2005) | CK39: 0 | CL39: 0 | CM39: 0 | CN39: 0 | CO39: 0 | CP39: 19418.09977 | CQ39: 0 | CR39: =IF(AND($H39>0,$I39-CR$28>=$H39),$H39,IF(CQ39=999,999,IF(CQ39-1<0,IF($H39=0,999,$H39-1),CQ39-1))) -> 9 | CS39: 8 | CT39: 7 | CU39: 6 | CV39: 5 | CW39: 4 | CX39: 3 | CY39: 2 | CZ39: 1 | DA39: 0 | DB39: 9 | DC39: 8 | DD39: 7 | DE39: 6 | DF39: 5 | DG39: 4 | DH39: 3 | DI39: 2 | DJ39: 1 | DK39: 0 | DL39: 9 | DM39: 8 | DN39: 7 | DO39: 6 | DP39: 5 | DQ39: 4 | DR39: 3 | DS39: 2 | DT39: 1 | DU39: 0 | DV39: 8000 | DW39: 824 | DX39: 1697.44 | DY39: 2622.5448 | DZ39: 3601.628192 | EA39: 4637.096297 | EB39: 5731.451023 | EC39: 6887.293646 | ED39: 8107.328521 | EE39: 9394.366924 | EF39: 10751.33103 | EG39: 1107.387097 | EH39: 2281.217419 | EI39: 3524.480912 | EJ39: 4840.28712 | EK39: 6231.869666 | EL39: 7702.590908 | EM39: 9255.946741 | EN39: 10895.57159 | EO39: 12625.24358 | EP39: 14448.88988 | EQ39: 1488.235657 | ER39: 3065.765454 | ES39: 4736.607627 | ET39: 6504.941141 | EU39: 8375.111719 | EV39: 10351.63808 | EW39: 12439.21843 | EX39: 14642.73712 | EY39: 16967.27164 | EZ39: 19418.09977 | FD39: 0 | FE39: 10000
A40: FALSE | E40: 2537 | F40: Pumps/Valves - Allowance | G40: Multiple Units | H40: 5 | I40: 4 | J40: 3000 | K40: 4000 | M40: 3500 | N40: 2537 | O40: Pumps/Valves - Allowance | P40: 5 | Q40: 4 | R40: 3500 | S40: 2537 | T40: Pumps/Valves - Allowance | U40: Multiple Units | V40: 5 | W40: 4 | X40: 3000 | Y40: 4000 | Z40: 2537 | AA40: Pumps/Valves - Allowance | AB40: 3500 | AC40: X | AD40: 1 | AE40: / | AF40: 5 | AG40: = | AH40: =DV40+(1-Main!$D$61)*(DW40-DV40) -> 700 | AJ40: 2537 | AK40: Pumps/Valves - Allowance | AL40: 5 | AM40: 3500 | AN40: 700 | AO40: 0.08092485549 | AP40: =SUM(AV$31:AV40) -> 100091.6667 | AQ40: 2537 | AR40: Pumps/Valves - Allowance | AS40: 5 | AT40: 4 | AU40: 3500 | AV40: =DV40+(1-Main!$D$61)*(DW40-DV40) -> 700 | AW40: =IF(Main!D$26>1,Main!D$26*AV40,IF((AP40-AV40)>=Main!D$20,0,IF(AP40<=Main!D$20,AV40,Main!D$20-AP40+AV40))) -> 1194.757635 | AX40: =AO40*Main!RecommendContrib -> 58.26589595 | AZ40: 2537 | BA40: Pumps/Valves - Allowance | BB40: 0 | BC40: 0 | BD40: 0 | BE40: 0 | BF40: 3939.280835 | BG40: 2537 | BH40: Pumps/Valves - Allowance | BI40: 0 | BJ40: 0 | BK40: 0 | BL40: 0 | BM40: 4566.706143 | BN40: 2537 | BO40: Pumps/Valves - Allowance | BP40: 0 | BQ40: 0 | BR40: 0 | BS40: 0 | BT40: 5294.064037 | BU40: 2537 | BV40: Pumps/Valves - Allowance | BW40: 0 | BX40: 0 | BY40: 0 | BZ40: 0 | CA40: 6137.271186 | CB40: 2537 | CC40: Pumps/Valves - Allowance | CD40: 0 | CE40: 0 | CF40: 0 | CG40: 0 | CH40: 7114.779373 | CI40: 2537 | CJ40: Pumps/Valves - Allowance | CK40: 0 | CL40: 0 | CM40: 0 | CN40: 0 | CO40: 8247.979271 | CP40: 0 | CQ40: 4 | CR40: =IF(AND($H40>0,$I40-CR$28>=$H40),$H40,IF(CQ40=999,999,IF(CQ40-1<0,IF($H40=0,999,$H40-1),CQ40-1))) -> 3 | CS40: 2 | CT40: 1 | CU40: 0 | CV40: 4 | CW40: 3 | CX40: 2 | CY40: 1 | CZ40: 0 | DA40: 4 | DB40: 3 | DC40: 2 | DD40: 1 | DE40: 0 | DF40: 4 | DG40: 3 | DH40: 2 | DI40: 1 | DJ40: 0 | DK40: 4 | DL40: 3 | DM40: 2 | DN40: 1 | DO40: 0 | DP40: 4 | DQ40: 3 | DR40: 2 | DS40: 1 | DT40: 0 | DU40: 4 | DV40: 700 | DW40: 1442 | DX40: 2227.89 | DY40: 3059.6356 | DZ40: 3939.280835 | EA40: 811.491852 | EB40: 1671.673215 | EC40: 2582.735117 | ED40: 3546.956228 | EE40: 4566.706143 | EF40: 940.7414655 | EG40: 1937.927419 | EH40: 2994.097862 | EI40: 4111.894398 | EJ40: 5294.064037 | EK40: 1090.577192 | EL40: 2246.589015 | EM40: 3470.980028 | EN40: 4766.812571 | EO40: 6137.271186 | EP40: 1264.277864 | EQ40: 2604.4124 | ER40: 4023.817159 | ES40: 5526.042231 | ET40: 7114.779373 | EU40: 1465.644551 | EV40: 3019.227775 | EW40: 4664.706912 | EX40: 6406.197492 | EY40: 8247.979271 | EZ40: 1699.08373 | FD40: 4 | FE40: 4000
A41: FALSE | E41: 2569 | F41: Water Storage Tank - Minor Repairs | G41: ~ 200k Gallons | H41: 5 | I41: 0 | J41: 2000 | K41: 3000 | M41: 2500 | N41: 2569 | O41: Water Storage Tank - Minor Repairs | P41: 5 | Q41: 0 | R41: 2500 | S41: 2569 | T41: Water Storage Tank - Minor Repairs | U41: ~ 200k Gallons | V41: 5 | W41: 0 | X41: 2000 | Y41: 3000 | Z41: 2569 | AA41: Water Storage Tank - Minor Repairs | AB41: 2500 | AC41: X | AD41: 5 | AE41: / | AF41: 5 | AG41: = | AH41: =DV41+(1-Main!$D$61)*(DW41-DV41) -> 2500 | AJ41: 2569 | AK41: Water Storage Tank - Minor Repairs | AL41: 5 | AM41: 2500 | AN41: 500 | AO41: 0.05780346821 | AP41: =SUM(AV$31:AV41) -> 102591.6667 | AQ41: 2569 | AR41: Water Storage Tank - Minor Repairs | AS41: 5 | AT41: 0 | AU41: 2500 | AV41: =DV41+(1-Main!$D$61)*(DW41-DV41) -> 2500 | AW41: =IF(Main!D$26>1,Main!D$26*AV41,IF((AP41-AV41)>=Main!D$20,0,IF(AP41<=Main!D$20,AV41,Main!D$20-AP41+AV41))) -> 4266.991552 | AX41: =AO41*Main!RecommendContrib -> 41.61849711 | AZ41: 2569 | BA41: Water Storage Tank - Minor Repairs | BB41: 2500 | BC41: 0 | BD41: 0 | BE41: 0 | BF41: 0 | BG41: 2569 | BH41: Water Storage Tank - Minor Repairs | BI41: 2898.185186 | BJ41: 0 | BK41: 0 | BL41: 0 | BM41: 0 | BN41: 2569 | BO41: Water Storage Tank - Minor Repairs | BP41: 3359.790948 | BQ41: 0 | BR41: 0 | BS41: 0 | BT41: 0 | BU41: 2569 | BV41: Water Storage Tank - Minor Repairs | BW41: 3894.918542 | BX41: 0 | BY41: 0 | BZ41: 0 | CA41: 0 | CB41: 2569 | CC41: Water Storage Tank - Minor Repairs | CD41: 4515.278087 | CE41: 0 | CF41: 0 | CG41: 0 | CH41: 0 | CI41: 2569 | CJ41: Water Storage Tank - Minor Repairs | CK41: 5234.444824 | CL41: 0 | CM41: 0 | CN41: 0 | CO41: 0 | CP41: 6068.156178 | CQ41: 0 | CR41: =IF(AND($H41>0,$I41-CR$28>=$H41),$H41,IF(CQ41=999,999,IF(CQ41-1<0,IF($H41=0,999,$H41-1),CQ41-1))) -> 4 | CS41: 3 | CT41: 2 | CU41: 1 | CV41: 0 | CW41: 4 | CX41: 3 | CY41: 2 | CZ41: 1 | DA41: 0 | DB41: 4 | DC41: 3 | DD41: 2 | DE41: 1 | DF41: 0 | DG41: 4 | DH41: 3 | DI41: 2 | DJ41: 1 | DK41: 0 | DL41: 4 | DM41: 3 | DN41: 2 | DO41: 1 | DP41: 0 | DQ41: 4 | DR41: 3 | DS41: 2 | DT41: 1 | DU41: 0 | DV41: 2500 | DW41: 515 | DX41: 1060.9 | DY41: 1639.0905 | DZ41: 2251.01762 | EA41: 2898.185186 | EB41: 597.0261483 | EC41: 1229.873865 | ED41: 1900.155122 | EE41: 2609.546368 | EF41: 3359.790948 | EG41: 692.1169354 | EH41: 1425.760887 | EI41: 2202.80057 | EJ41: 3025.17945 | EK41: 3894.918542 | EL41: 802.3532195 | EM41: 1652.847632 | EN41: 2553.649592 | EO41: 3507.012106 | EP41: 4515.278087 | EQ41: 930.1472859 | ER41: 1916.103409 | ES41: 2960.379767 | ET41: 4065.588213 | EU41: 5234.444824 | EV41: 1078.295634 | EW41: 2221.289006 | EX41: 3431.891514 | EY41: 4713.131012 | EZ41: 6068.156178 | FD41: 0 | FE41: 3000
A42: FALSE | N42: =SUM(IF(TopCell:CellAbove<>0,1,0)) -> 11 | O42: Total Funded Components | S42: =N42 -> 11 | T42: Total Funded Components | AH42: =SUM(TopCell:CellAbove) -> 102591.6667 | AJ42: =N42 -> 11 | AK42: Total Funded Components | AN42: =SUM(TopCell:CellAbove) -> 8650 | AO42: =IF(ISERROR(SUM(TopCell:CellAbove)),0,SUM(TopCell:CellAbove)) -> 1 | AQ42: =N42 -> 11 | AR42: Total Funded Components | AW42: =SUM(TopCell:CellAbove) -> 175103.11 | AX42: =SUM(TopCell:CellAbove) -> 720 | BA42: Total Expenses | BB42: =SUM(TopCell:CellAbove) -> 47500 | BC42: =SUM(TopCell:CellAbove) -> 0 | BD42: =SUM(TopCell:CellAbove) -> 0 | BE42: =SUM(TopCell:CellAbove) -> 0 | BF42: =SUM(TopCell:CellAbove) -> 5346.166847 | BH42: Total Expenses | BI42: =SUM(TopCell:CellAbove) -> 2898.185186 | BJ42: =SUM(TopCell:CellAbove) -> 0 | BK42: =SUM(TopCell:CellAbove) -> 1844.810798 | BL42: =SUM(TopCell:CellAbove) -> 2533.540163 | BM42: =SUM(TopCell:CellAbove) -> 9785.798879 | BO42: Total Expenses | BP42: =SUM(TopCell:CellAbove) -> 14111.12198 | BQ42: =SUM(TopCell:CellAbove) -> 0 | BR42: =SUM(TopCell:CellAbove) -> 0 | BS42: =SUM(TopCell:CellAbove) -> 58741.34854 | BT42: =SUM(TopCell:CellAbove) -> 7184.801193 | BV42: Total Expenses | BW42: =SUM(TopCell:CellAbove) -> 58423.77812 | BX42: =SUM(TopCell:CellAbove) -> 3209.412878 | BY42: =SUM(TopCell:CellAbove) -> 0 | BZ42: =SUM(TopCell:CellAbove) -> 0 | CA42: =SUM(TopCell:CellAbove) -> 83291.53752 | CC42: Total Expenses | CD42: =SUM(TopCell:CellAbove) -> 18964.16796 | CE42: =SUM(TopCell:CellAbove) -> 0 | CF42: =SUM(TopCell:CellAbove) -> 0 | CG42: =SUM(TopCell:CellAbove) -> 0 | CH42: =SUM(TopCell:CellAbove) -> 95033.12448 | CJ42: Total Expenses | CK42: =SUM(TopCell:CellAbove) -> 5234.444824 | CL42: =SUM(TopCell:CellAbove) -> 0 | CM42: =SUM(TopCell:CellAbove) -> 3331.933508 | CN42: =SUM(TopCell:CellAbove) -> 0 | CO42: =SUM(TopCell:CellAbove) -> 17674.2413 | CP42: =SUM(TopCell:CellAbove) -> 110440.4424 | DV42: =SUM(TopCell:CellAbove) -> 102591.6667 | DW42: =SUM(TopCell:CellAbove) -> 65653.91667 | DX42: =SUM(TopCell:CellAbove) -> 76800.31917 | DY42: =SUM(TopCell:CellAbove) -> 88556.41729 | DZ42: =SUM(TopCell:CellAbove) -> 100948.761 | EA42: =SUM(TopCell:CellAbove) -> 108498.3927 | EB42: =SUM(TopCell:CellAbove) -> 119096.7661 | EC42: =SUM(TopCell:CellAbove) -> 133308.0781 | ED42: =SUM(TopCell:CellAbove) -> 146364.7265 | EE42: =SUM(TopCell:CellAbove) -> 159432.41 | EF42: =SUM(TopCell:CellAbove) -> 165760.8861 | EG42: =SUM(TopCell:CellAbove) -> 168172.88 | EH42: =SUM(TopCell:CellAbove) -> 185550.8981 | EI42: =SUM(TopCell:CellAbove) -> 203820.2416 | EJ42: =SUM(TopCell:CellAbove) -> 162515.161 | EK42: =SUM(TopCell:CellAbove) -> 173466.6888 | EL42: =SUM(TopCell:CellAbove) -> 132374.9087 | EM42: =SUM(TopCell:CellAbove) -> 147337.5927 | EN42: =SUM(TopCell:CellAbove) -> 166483.7664 | EO42: =SUM(TopCell:CellAbove) -> 186646.1068 | EP42: =SUM(TopCell:CellAbove) -> 122078.0685 | EQ42: =SUM(TopCell:CellAbove) -> 122298.8656 | ER42: =SUM(TopCell:CellAbove) -> 142542.1261 | ES42: =SUM(TopCell:CellAbove) -> 163889.9132 | ET42: =SUM(TopCell:CellAbove) -> 186390.2796 | EU42: =SUM(TopCell:CellAbove) -> 112209.0489 | EV42: =SUM(TopCell:CellAbove) -> 128838.3566 | EW42: =SUM(TopCell:CellAbove) -> 151917.6572 | EX42: =SUM(TopCell:CellAbove) -> 172833.8698 | EY42: =SUM(TopCell:CellAbove) -> 198403.1776 | EZ42: =SUM(TopCell:CellAbove) -> 207146.6247
BA44: Ending Reserve Balance: | BB44: =BB28-BB42 -> 137806.996 | BC44: =BC28-BC42 -> 148135.3002 | BD44: =BD28-BD42 -> 158835.6791 | BE44: =BE28-BE42 -> 169919.9202 | BF44: =BF28-BF42 -> 176027.1501 | BH44: Ending Reserve Balance: | BI44: =BI28-BI42 -> 184949.2081 | BJ44: =BJ28-BJ42 -> 197175.6326 | BK44: =BK28-BK42 -> 207981.8589 | BL44: =BL28-BL42 -> 218524.84 | BM44: =BM28-BM42 -> 222215.0448 | BO44: Ending Reserve Balance: | BP44: =BP28-BP42 -> 221935.1681 | BQ44: =BQ28-BQ42 -> 236184.5745 | BR44: =BR28-BR42 -> 250937.7255 | BS44: =BS28-BS42 -> 207174.0944 | BT44: =BT28-BT42 -> 215168.8864 | BV44: Ending Reserve Balance: | BW44: =BW28-BW42 -> 172141.677 | BX44: =BX28-BX42 -> 184579.7774 | BY44: =BY28-BY42 -> 200786.3934 | BZ44: =BZ28-BZ42 -> 217586.3904 | CA44: =CA28-CA42 -> 151288.7374 | CC44: Ending Reserve Balance: | CD44: =CD28-CD42 -> 149432.3372 | CE44: =CE28-CE42 -> 167087.2078 | CF44: =CF28-CF42 -> 185404.049 | CG44: =CG28-CG42 -> 204404.049 | CH44: =CH28-CH42 -> 128598.5715 | CJ44: Ending Reserve Balance: | CK44: =CK28-CK42 -> 142810.8386 | CL44: 162881.1467 | CM44: 180270.3014 | CN44: 201660.3548 | CO44: 205991.7498 | CP44: 117636.2075

Sheet Starting Bal
C1: Reserve Study Starting Reserve Balance Projection
A7: Document your work in the shaded areas B, C, D, & E below
A9: A | B9: Association Name: | D9: =Main!D11 -> Kings Row HOA | G9: # | H9: =Main!ClientNumber -> 16151-1
B10: Period Start: | D10: =Main!StartDate -> 2015-01-01
A12: B | B12: Most Recent Reserve Balance: | E12: 55321
C13: as-of (mm/dd/yy): | E13: 2012-02-18
A15: C | B15: Regular Association Budgeted Assessment Income Total: | H15: 5000
B16: Regular Budgeted Reserve contribution portion of above: | H16: 1000
B17: Frequency of Above (Month, Quarter, Year): | H17: Month
A19: D | B19: ="Additional Reserve Income (Contribs) expected until " & TEXT(D10,"mm/dd/yy") & ":" -> Additional Reserve Income (Contribs) expected until 01/01/15:
B20: Description | H20: Amount
B21: 2 | C21: Periods of budgeted Reserve contributions | H21: =H16*B21 -> 2000
H22: 0
H23: 0
H24: 0
H25: 0
H26: 0
B27: Subtotal Expenses: | H27: =SUM(H21:H26) -> 2000
A29: E | B29: ="Anticipated Reserve Expenses expected until " & TEXT(D10,"mm/dd/yy") & ":" -> Anticipated Reserve Expenses expected until 01/01/15:
B30: Description | H30: Amount
B31: remainder of painting project | H31: 30000
H32: 0
H33: 0
H34: 0
H35: 0
H36: 0
B37: Subtotal Expenses: | H37: =SUM(H31:H36) -> 30000
B39: ="Projected " & TEXT(D10,"mm/dd/yy") & " Reserve Balance (A+B-C):" -> Projected 01/01/15 Reserve Balance (A+B-C): | H39: =E12+H27-H37 -> 27321
D87: Month
D88: Quarter
D89: Year

Sheet Addnl Info
B1: ='Starting Bal'!C1 -> Reserve Study Starting Reserve Balance Projection
B3: Association Name: | D3: =Main!D11 -> Kings Row HOA | G3: # | H3: =Main!ClientNumber -> 16151-1
B5: Please enter additional information, as applicable, in the shaded spaces below
B7: Significant Recent Reserve Expenses:
B8: (Description of what, when, $)
B15: Significant Planned Reserve Expenses:
B16: (Description of what, when, $)
B23: Significant Vendors - Roofer, elevator, asphalt, painter, etc.:
B24: (Company Name, Contact Person, phone)

Sheet 30-yr
B2: Table 5: 30-Year Reserve Plan Summary | L2: =Main!D10 -> 16151-1
B6: Fiscal Year Start: | E6: =Main!StartDate -> 2015-01-01 | I6: Interest: | J6: =Main!InterestRate -> 0.01 | K6: Inflation: | L6: =Main!InflationRate -> 0.03
B8: Reserve Fund Strength Calculations | I8: Projected Reserve Balance Changes
B9: (All values as of Fiscal Year Start Date)
C11: Starting | D11: Fully | F11: Special | J11: Loans or
C12: Reserve | D12: Funded | E12: Percent | F12: Assmt | I12: Reserve | J12: Special | K12: Interest | L12: Reserve
B13: Year | C13: Balance | D13: Balance | E13: Funded | F13: Risk | I13: Contribs. | J13: Assmts | K13: Income | L13: Expenses
B14: =Data!BB23 -> 2015 | C14: =Data!BB24 -> 175103.11 | D14: =Main!FullyFunded -> 102591.6667 | E14: =Main!PercentFunded -> 1.706796621 | G14: =IF(E14<D$55,E$55,IF(E14<D$56,E$56,IF(E14<D$57,E$57,E$58))) -> Low | I14: =Data!BB25 -> 8640 | J14: =Data!BB26 -> 0 | K14: =Data!BB27 -> 1563.885974 | L14: =Data!BB42 -> 47500
B15: =Data!BC23 -> 2016 | C15: =Data!BC24 -> 137806.996 | D15: =Data!DW42 -> 65653.91667 | E15: =Data!BC18 -> 2.09899124 | G15: Low | I15: =Data!BC25 -> 8899.2 | J15: =Data!BC26 -> 0 | K15: =Data!BC27 -> 1429.104199 | L15: =Data!BC42 -> 0
B16: =Data!BD23 -> 2017 | C16: =Data!BD24 -> 148135.3002 | D16: =Data!DX42 -> 76800.31917 | E16: =Data!BD18 -> 1.928837038 | G16: Low | I16: =Data!BD25 -> 9166.176 | J16: =Data!BD26 -> 0 | K16: =Data!BD27 -> 1534.202954 | L16: =Data!BD42 -> 0
B17: =Data!BE23 -> 2018 | C17: =Data!BE24 -> 158835.6791 | D17: =Data!DY42 -> 88556.41729 | E17: =Data!BE18 -> 1.79361004 | G17: Low | I17: =Data!BE25 -> 9441.16128 | J17: =Data!BE26 -> 0 | K17: =Data!BE27 -> 1643.079788 | L17: =Data!BE42 -> 0
B18: =Data!BF23 -> 2019 | C18: =Data!BF24 -> 169919.9202 | D18: =Data!DZ42 -> 100948.761 | E18: =Data!BF18 -> 1.683229378 | G18: Low | I18: =Data!BF25 -> 9724.396118 | J18: =Data!BF26 -> 0 | K18: =Data!BF27 -> 1729.000632 | L18: =Data!BF42 -> 5346.166847
B19: =Data!BI23 -> 2020 | C19: =Data!BI24 -> 176027.1501 | D19: =Data!EA42 -> 108498.3927 | E19: =Data!BI18 -> 1.62239408 | G19: Low | I19: =Data!BI25 -> 10016.128 | J19: =Data!BI26 -> 0 | K19: =Data!BI27 -> 1804.115153 | L19: =Data!BI42 -> 2898.185186
B20: =Data!BJ23 -> 2021 | C20: =Data!BJ24 -> 184949.2081 | D20: =Data!EB42 -> 119096.7661 | E20: =Data!BJ18 -> 1.552932242 | G20: Low | I20: =Data!BJ25 -> 10316.61184 | J20: =Data!BJ26 -> 0 | K20: =Data!BJ27 -> 1909.81265 | L20: =Data!BJ42 -> 0
B21: =Data!BK23 -> 2022 | C21: =Data!BK24 -> 197175.6326 | D21: =Data!EC42 -> 133308.0781 | E21: =Data!BK18 -> 1.479097407 | G21: Low | I21: =Data!BK25 -> 10626.1102 | J21: =Data!BK26 -> 0 | K21: =Data!BK27 -> 2024.926988 | L21: =Data!BK42 -> 1844.810798
B22: =Data!BL23 -> 2023 | C22: =Data!BL24 -> 207981.8589 | D22: =Data!ED42 -> 146364.7265 | E22: =Data!BL18 -> 1.420983484 | G22: Low | I22: =Data!BL25 -> 10944.8935 | J22: =Data!BL26 -> 0 | K22: =Data!BL27 -> 2131.627684 | L22: =Data!BL42 -> 2533.540163
B23: =Data!BM23 -> 2024 | C23: =Data!BM24 -> 218524.84 | D23: =Data!EE42 -> 159432.41 | E23: =Data!BM18 -> 1.370642519 | G23: Low | I23: =Data!BM25 -> 11273.24031 | J23: =Data!BM26 -> 0 | K23: =Data!BM27 -> 2202.763384 | L23: =Data!BM42 -> 9785.798879
B24: =Data!BP23 -> 2025 | C24: =Data!BP24 -> 222215.0448 | D24: =Data!EF42 -> 165760.8861 | E24: =Data!BP18 -> 1.340575874 | G24: Low | I24: =Data!BP25 -> 11611.43752 | J24: =Data!BP26 -> 0 | K24: =Data!BP27 -> 2219.807782 | L24: =Data!BP42 -> 14111.12198
B25: =Data!BQ23 -> 2026 | C25: =Data!BQ24 -> 221935.1681 | D25: =Data!EG42 -> 168172.88 | E25: =Data!BQ18 -> 1.319684649 | G25: Low | I25: =Data!BQ25 -> 11959.78064 | J25: =Data!BQ26 -> 0 | K25: =Data!BQ27 -> 2289.625763 | L25: =Data!BQ42 -> 0
B26: =Data!BR23 -> 2027 | C26: =Data!BR24 -> 236184.5745 | D26: =Data!EH42 -> 185550.8981 | E26: =Data!BR18 -> 1.27288295 | G26: Low | I26: =Data!BR25 -> 12318.57406 | J26: =Data!BR26 -> 0 | K26: =Data!BR27 -> 2434.576954 | L26: =Data!BR42 -> 0
B27: =Data!BS23 -> 2028 | C27: =Data!BS24 -> 250937.7255 | D27: =Data!EI42 -> 203820.2416 | E27: =Data!BS18 -> 1.231171759 | G27: Low | I27: =Data!BS25 -> 12688.13128 | J27: =Data!BS26 -> 0 | K27: =Data!BS27 -> 2289.586166 | L27: =Data!BS42 -> 58741.34854
B28: =Data!BT23 -> 2029 | C28: =Data!BT24 -> 207174.0944 | D28: =Data!EJ42 -> 162515.161 | E28: =Data!BT18 -> 1.274798567 | G28: Low | I28: =Data!BT25 -> 13068.77522 | J28: =Data!BT26 -> 0 | K28: =Data!BT27 -> 2110.817936 | L28: =Data!BT42 -> 7184.801193
B29: =Data!BW23 -> 2030 | C29: =Data!BW24 -> 215168.8864 | D29: =Data!EK42 -> 173466.6888 | E29: =Data!BW18 -> 1.240404644 | G29: Low | I29: =Data!BW25 -> 13460.83848 | J29: =Data!BW26 -> 0 | K29: =Data!BW27 -> 1935.73025 | L29: =Data!BW42 -> 58423.77812
B30: =Data!BX23 -> 2031 | C30: =Data!BX24 -> 172141.677 | D30: =Data!EL42 -> 132374.9087 | E30: =Data!BX18 -> 1.300410166 | G30: Low | I30: =Data!BX25 -> 13864.66363 | J30: =Data!BX26 -> 0 | K30: =Data!BX27 -> 1782.84967 | L30: =Data!BX42 -> 3209.412878
B31: =Data!BY23 -> 2032 | C31: =Data!BY24 -> 184579.7774 | D31: =Data!EM42 -> 147337.5927 | E31: =Data!BY18 -> 1.252767702 | G31: Low | I31: =Data!BY25 -> 14280.60354 | J31: =Data!BY26 -> 0 | K31: =Data!BY27 -> 1926.012417 | L31: =Data!BY42 -> 0
B32: =Data!BZ23 -> 2033 | C32: =Data!BZ24 -> 200786.3934 | D32: =Data!EN42 -> 166483.7664 | E32: =Data!BZ18 -> 1.206041872 | G32: Low | I32: =Data!BZ25 -> 14709.02165 | J32: =Data!BZ26 -> 0 | K32: =Data!BZ27 -> 2090.975383 | L32: =Data!BZ42 -> 0
B33: =Data!CA23 -> 2034 | C33: =Data!CA24 -> 217586.3904 | D33: =Data!EO42 -> 186646.1068 | E33: =Data!CA18 -> 1.165769778 | G33: Low | I33: =Data!CA25 -> 15150.2923 | J33: =Data!CA26 -> 0 | K33: =Data!CA27 -> 1843.592226 | L33: =Data!CA42 -> 83291.53752
B34: =Data!CD23 -> 2035 | C34: =Data!CD24 -> 151288.7374 | D34: =Data!EP42 -> 122078.0685 | E34: =Data!CD18 -> 1.239278596 | G34: Low | I34: =Data!CD25 -> 15604.80107 | J34: =Data!CD26 -> 0 | K34: =Data!CD27 -> 1502.966705 | L34: =Data!CD42 -> 18964.16796
B35: =Data!CE23 -> 2036 | C35: =Data!CE24 -> 149432.3372 | D35: =Data!EQ42 -> 122298.8656 | E35: =Data!CE18 -> 1.221862006 | G35: Low | I35: =Data!CE25 -> 16072.9451 | J35: =Data!CE26 -> 0 | K35: =Data!CE27 -> 1581.925504 | L35: =Data!CE42 -> 0
B36: =Data!CF23 -> 2037 | C36: =Data!CF24 -> 167087.2078 | D36: =Data!ER42 -> 142542.1261 | E36: =Data!CF18 -> 1.172195283 | G36: Low | I36: =Data!CF25 -> 16555.13345 | J36: =Data!CF26 -> 0 | K36: =Data!CF27 -> 1761.707666 | L36: =Data!CF42 -> 0
B37: =Data!CG23 -> 2038 | C37: =Data!CG24 -> 185404.049 | D37: =Data!ES42 -> 163889.9132 | E37: =Data!CG18 -> 1.131271872 | G37: Low | I37: =Data!CG25 -> 17051.78746 | J37: =Data!CG26 -> 0 | K37: =Data!CG27 -> 1948.212619 | L37: =Data!CG42 -> 0
B38: =Data!CH23 -> 2039 | C38: =Data!CH24 -> 204404.049 | D38: =Data!ET42 -> 186390.2796 | E38: =Data!CH18 -> 1.096645434 | G38: Low | I38: =Data!CH25 -> 17563.34108 | J38: =Data!CH26 -> 0 | K38: =Data!CH27 -> 1664.305875 | L38: =Data!CH42 -> 95033.12448
B39: =Data!CK23 -> 2040 | C39: =Data!CK24 -> 128598.5715 | D39: =Data!EU42 -> 112209.0489 | E39: =Data!CK18 -> 1.146062397 | G39: Low | I39: =Data!CK25 -> 18090.24131 | J39: =Data!CK26 -> 0 | K39: =Data!CK27 -> 1356.470634 | L39: =Data!CK42 -> 5234.444824
B40: =Data!CL23 -> 2041 | C40: =Data!CL24 -> 142810.8386 | D40: =Data!EV42 -> 128838.3566 | E40: =Data!CL18 -> 1.108449707 | G40: Low | I40: =Data!CL25 -> 18542.49735 | J40: =Data!CL26 -> 0 | K40: =Data!CL27 -> 1527.810701 | L40: =Data!CL42 -> 0
B41: =Data!CM23 -> 2042 | C41: =Data!CM24 -> 162881.1467 | D41: =Data!EW42 -> 151917.6572 | E41: =Data!CM18 -> 1.072167315 | G41: Low | I41: =Data!CM25 -> 19006.05978 | J41: =Data!CM26 -> 0 | K41: =Data!CM27 -> 1715.028459 | L41: =Data!CM42 -> 3331.933508
B42: =Data!CN23 -> 2043 | C42: =Data!CN24 -> 180270.3014 | D42: =Data!EX42 -> 172833.8698 | E42: =Data!CN18 -> 1.043026471 | G42: Low | I42: =Data!CN25 -> 19481.21127 | J42: =Data!CN26 -> 0 | K42: =Data!CN27 -> 1908.84214 | L42: =Data!CN42 -> 0
B43: =Data!CO23 -> 2044 | C43: =Data!CO24 -> 201660.3548 | D43: =Data!EY42 -> 198403.1776 | E43: =Data!CO18 -> 1.016416961 | G43: Low | I43: =Data!CO25 -> 19968.24155 | J43: =Data!CO26 -> 0 | K43: =Data!CO27 -> 2037.394755 | L43: =Data!CO42 -> 17674.2413
B55: Top of Weak Range: | D55: 0.3 | E55: High
B56: Top of Fair Range: | D56: 0.7 | E56: Med
B57: Top of Strong Range: | D57: 1.3 | E57: Low
B58: Named Surplus: | E58: Low

Sheet Budget Sum
E1: 4 | F1: 4 | G1: 5 | H1: 5 | I1: 9 | J1: 50 | K1: 45 | L1: 30 | N1: 46
C3: Reserve Budget Funding Summary
C4: =Main!ClientNumber -> 16151-1 | D4: =Main!ClientName -> Kings Row HOA
G7: =Main!BaseYear -> 2015 | I7: Estimated | K7: =Main!StartDate -> 2015-01-01 | L7: =Main!StartDate -> 2015-01-01
E8: Useful Life | G8: Rem. Useful Life | I8: Replacement | J8: =Main!BaseYear -> 2015 | K8: Current Fund | L8: Fully Funded | M8: Remaining Bal. | N8: =Main!BaseYear -> 2015
A9: Code | E9: Min | F9: Max | G9: Min | H9: Max | I9: ="Cost in" & " " & TEXT(Main!BaseYear,0) -> Cost in 2015 | J9: Expenditures | K9: Balance | L9: Balance | M9: to be Funded | N9: Contributions
A10: I | C10: Interiors | E10: =MIN(IF(Data!Category=$A10,OFFSET(Data!Category,0,E$1),"")) -> 0 | F10: =MAX(IF(Data!Category=$A10,OFFSET(Data!Category,0,F$1),"")) -> 0 | G10: =MIN(IF(Data!Category=$A10,OFFSET(Data!Category,0,G$1),"")) -> 0 | H10: =MAX(IF(Data!Category=$A10,OFFSET(Data!Category,0,H$1),"")) -> 0 | I10: =SUMIF(Data!Category,"=" & $A10,OFFSET(Data!Category,0,I$1)) -> 0 | J10: =SUMIF(Data!Category,"=" & $A10,OFFSET(Data!Category,0,J$1)) -> 0 | K10: =SUMIF(Data!Category,"=" & $A10,OFFSET(Data!Category,0,K$1)) -> 0 | L10: =SUMIF(Data!Category,"=" & $A10,OFFSET(Data!Category,0,L$1)) -> 0 | M10: =I10-K10 -> 0 | N10: =SUMIF(Data!Category,"=" & $A10,OFFSET(Data!Category,0,N$1))*Main!D$48 -> 0
A11: R | C11: Roofing | E11: =MIN(IF(Data!Category=$A11,OFFSET(Data!Category,0,E$1),"")) -> 0 | F11: =MAX(IF(Data!Category=$A11,OFFSET(Data!Category,0,F$1),"")) -> 0 | G11: =MIN(IF(Data!Category=$A11,OFFSET(Data!Category,0,G$1),"")) -> 0 | H11: =MAX(IF(Data!Category=$A11,OFFSET(Data!Category,0,H$1),"")) -> 0 | I11: =SUMIF(Data!Category,"=" & $A11,OFFSET(Data!Category,0,I$1)) -> 0 | J11: =SUMIF(Data!Category,"=" & $A11,OFFSET(Data!Category,0,J$1)) -> 0 | K11: =SUMIF(Data!Category,"=" & $A11,OFFSET(Data!Category,0,K$1)) -> 0 | L11: =SUMIF(Data!Category,"=" & $A11,OFFSET(Data!Category,0,L$1)) -> 0 | M11: =I11-K11 -> 0 | N11: =SUMIF(Data!Category,"=" & $A11,OFFSET(Data!Category,0,N$1))*Main!D$48 -> 0
A12: A | C12: Capital Assets | E12: =MIN(IF(Data!Category=$A12,OFFSET(Data!Category,0,E$1),"")) -> 0 | F12: =MAX(IF(Data!Category=$A12,OFFSET(Data!Category,0,F$1),"")) -> 0 | G12: =MIN(IF(Data!Category=$A12,OFFSET(Data!Category,0,G$1),"")) -> 0 | H12: =MAX(IF(Data!Category=$A12,OFFSET(Data!Category,0,H$1),"")) -> 0 | I12: =SUMIF(Data!Category,"=" & $A12,OFFSET(Data!Category,0,I$1)) -> 0 | J12: =SUMIF(Data!Category,"=" & $A12,OFFSET(Data!Category,0,J$1)) -> 0 | K12: =SUMIF(Data!Category,"=" & $A12,OFFSET(Data!Category,0,K$1)) -> 0 | L12: =SUMIF(Data!Category,"=" & $A12,OFFSET(Data!Category,0,L$1)) -> 0 | M12: =I12-K12 -> 0 | N12: =SUMIF(Data!Category,"=" & $A12,OFFSET(Data!Category,0,N$1))*Main!D$48 -> 0
A13: P | C13: Paint | E13: =MIN(IF(Data!Category=$A13,OFFSET(Data!Category,0,E$1),"")) -> 0 | F13: =MAX(IF(Data!Category=$A13,OFFSET(Data!Category,0,F$1),"")) -> 0 | G13: =MIN(IF(Data!Category=$A13,OFFSET(Data!Category,0,G$1),"")) -> 0 | H13: =MAX(IF(Data!Category=$A13,OFFSET(Data!Category,0,H$1),"")) -> 0 | I13: =SUMIF(Data!Category,"=" & $A13,OFFSET(Data!Category,0,I$1)) -> 0 | J13: =SUMIF(Data!Category,"=" & $A13,OFFSET(Data!Category,0,J$1)) -> 0 | K13: =SUMIF(Data!Category,"=" & $A13,OFFSET(Data!Category,0,K$1)) -> 0 | L13: =SUMIF(Data!Category,"=" & $A13,OFFSET(Data!Category,0,L$1)) -> 0 | M13: =I13-K13 -> 0 | N13: =SUMIF(Data!Category,"=" & $A13,OFFSET(Data!Category,0,N$1))*Main!D$48 -> 0
A14: H | C14: Hardscape | E14: =MIN(IF(Data!Category=$A14,OFFSET(Data!Category,0,E$1),"")) -> 0 | F14: =MAX(IF(Data!Category=$A14,OFFSET(Data!Category,0,F$1),"")) -> 0 | G14: =MIN(IF(Data!Category=$A14,OFFSET(Data!Category,0,G$1),"")) -> 0 | H14: =MAX(IF(Data!Category=$A14,OFFSET(Data!Category,0,H$1),"")) -> 0 | I14: =SUMIF(Data!Category,"=" & $A14,OFFSET(Data!Category,0,I$1)) -> 0 | J14: =SUMIF(Data!Category,"=" & $A14,OFFSET(Data!Category,0,J$1)) -> 0 | K14: =SUMIF(Data!Category,"=" & $A14,OFFSET(Data!Category,0,K$1)) -> 0 | L14: =SUMIF(Data!Category,"=" & $A14,OFFSET(Data!Category,0,L$1)) -> 0 | M14: =I14-K14 -> 0 | N14: =SUMIF(Data!Category,"=" & $A14,OFFSET(Data!Category,0,N$1))*Main!D$48 -> 0
I15: =SUM(I10:I14) -> 0 | J15: 0 | K15: 0 | L15: 0 | M15: 0 | N15: 0
K17: Percent Funded: | L17: =IF(L15=0,0,K15/L15) -> 0

Sheet Thermometer
A1: X | B1: Y | C1: Labels
A2: 0.15 | B2: -0.05 | C2: High
A3: 0.5 | B3: -0.05 | C3: Medium
A4: 1 | B4: -0.05 | C4: Low
A5: 1.5 | B5: -0.05
A6: =MIN(A11,C7) -> 1.59 | B6: 0.07 | C6: Max Value
B7: 0 | C7: 1.59
A8: 0.3 | B8: 0
A9: 0.7 | B9: 0
A10: 1.3 | B10: 0
A11: =Main!PercentFunded -> 1.706796621
A12: ="Reserves % Funded: " & TEXT($A$11,"0%") -> Reserves % Funded: 171%

Sheet Solver
A1: 1 | C1: Initial Settings: | J1: = administrator initial settings
A2: 2 | C2: Initial Contrib: | D2: =Data!AW42/12 -> 14591.92583 | E2: InitialContribution | J2: = computed diagnostics used by solver
A3: 3 | C3: # of units | D3: =Main!NumUnits -> 45 | E3: NumUnits
A4: 4 | C4: 1AI & 2AI | D4: 0.03 | E4: AnnualIncreasePct
A5: 5 | C5: 1AIY & 2AIY | D5: 30 | E5: AnnualIncreaseYears
A6: 6 | C6: Initial Cycle Contrib Change | D6: 0.01 | E6: ContributionChangeCycle1 | H6: Counters
A7: 7 | C7: 2nd Cycle Contrib Change | D7: 0.005 | E7: ContributionChangeCycle2 | H7: Pass # | I7: 1
A8: 8 | C8: Min Expense Remainder | D8: 0.1 | E8: MinExpRemainder | H8: Cycle1 | I8: 296
A9: 9 | C9: SA Rounder (per unit) | D9: 10 | E9: RoundFactor | H9: Cycle2 | I9: 9
A10: 10 | C10: SA Change | D10: 0.1 | E10: SAChangePct | H10: Cycle3 | I10: 7
A11: 11 | C11: Early Special Assmt Range max yr | D11: 4 | E11: MaxEarlyYears
A12: 12 | C12: Contribution rounder | D12: 10 | E12: ContribRound | H12: =Main!RecommendContrib -> 720 | I12: Main!d30 | J12: Contrib Rate
A13: 13 | C13: Change in 2AI | D13: 0.005 | E13: ChangeIn2AI | H13: =Main!D33 -> 25 | I13: Main!d32 | J13: # of Initial Years
A14: 14 | C14: 2nd Cycle Contrib Boost | D14: 0.04 | E14: Cycle2ContribBoost | H14: =Main!D34 -> 0.025 | I14: Main!d33 | J14: % of Secondary Increase
A15: 15 | C15: 1AI Change Increment | D15: 5 | E15: YearsIncrement | H15: =Main!SpecialAssessment -> 0 | I15: Main!d35 | J15: Special Assmt
A16: 16 | C16: 1AI minimum yr limit | D16: 5 | E16: YearsMinimum | H16: =D36 -> 0.05149346229 | J16: Std Dev last 5 yrs
A17: 17 | C17: 2AI Lower limit | D17: 0.005 | E17: AnnualIncreaseLowerLimit2 | H17: =D38 -> 4 | J17: #downslope yrs, last 5 yrs
A18: 18 | C18: 2AI upper limit (underfunded) | D18: 0.06 | E18: AnnualIncreaseUpperLimit2 | H18: =AvgPctFunded25_29 -> 1.07722457 | J18: Avg Pct Funded, last 5 yrs
A19: 19 | C19: Surplus Threshold | D19: 2 | E19: SurplusThreshold | H19: =D35 -> -0.01604569452 | J19: Avg Slope, last 5 yrs
A20: 20 | C20: Final Cycle Contrib Change | D20: 0.005 | E20: ContributionChangeCycle3
A21: 21 | C21: Surplus Pct Funded Flatness | D21: 0.15 | E21: SurplusPctFlatness
A22: 22 | C22: Percent Funded Flatness Criteria | D22: 0.02 | E22: FlatnessCriteria
A23: 23 | C23: Baseline Funding Minimum | D23: 0 | E23: BaselineFundingMin
A24: 24 | C24: Year | D24: 0 | E24: 1 | F24: 2 | G24: 3 | H24: 4 | I24: 5 | J24: 6 | K24: 7 | L24: 8 | M24: 9 | N24: 10 | O24: 11 | P24: 12 | Q24: 13 | R24: 14 | S24: 15 | T24: 16 | U24: 17 | V24: 18 | W24: 19 | X24: 20 | Y24: 21 | Z24: 22 | AA24: 23 | AB24: 24 | AC24: 25 | AD24: 26 | AE24: 27 | AF24: 28 | AG24: 29 | AH24: 30
A25: 25 | C25: Expenditure | D25: =Data!BB42 -> 47500 | E25: =Data!BC42 -> 0 | F25: =Data!BD42 -> 0 | G25: =Data!BE42 -> 0 | H25: =Data!BF42 -> 5346.166847 | I25: =Data!BI42 -> 2898.185186 | J25: =Data!BJ42 -> 0 | K25: =Data!BK42 -> 1844.810798 | L25: =Data!BL42 -> 2533.540163 | M25: =Data!BM42 -> 9785.798879 | N25: =Data!BP42 -> 14111.12198 | O25: =Data!BQ42 -> 0 | P25: =Data!BR42 -> 0 | Q25: =Data!BS42 -> 58741.34854 | R25: =Data!BT42 -> 7184.801193 | S25: =Data!BW42 -> 58423.77812 | T25: =Data!BX42 -> 3209.412878 | U25: =Data!BY42 -> 0 | V25: =Data!BZ42 -> 0 | W25: =Data!CA42 -> 83291.53752 | X25: =Data!CD42 -> 18964.16796 | Y25: =Data!CE42 -> 0 | Z25: =Data!CF42 -> 0 | AA25: =Data!CG42 -> 0 | AB25: =Data!CH42 -> 95033.12448 | AC25: =Data!CK42 -> 5234.444824 | AD25: =Data!CL42 -> 0 | AE25: =Data!CM42 -> 3331.933508 | AF25: =Data!CN42 -> 0 | AG25: =Data!CO42 -> 17674.2413 | AH25: =Data!CP42 -> 110440.4424
A26: 26 | C26: Ending Balance | D26: =Data!BB44 -> 137806.996 | E26: =Data!BC44 -> 148135.3002 | F26: =Data!BD44 -> 158835.6791 | G26: =Data!BE44 -> 169919.9202 | H26: =Data!BF44 -> 176027.1501 | I26: =Data!BI44 -> 184949.2081 | J26: =Data!BJ44 -> 197175.6326 | K26: =Data!BK44 -> 207981.8589 | L26: =Data!BL44 -> 218524.84 | M26: =Data!BM44 -> 222215.0448 | N26: =Data!BP44 -> 221935.1681 | O26: =Data!BQ44 -> 236184.5745 | P26: =Data!BR44 -> 250937.7255 | Q26: =Data!BS44 -> 207174.0944 | R26: =Data!BT44 -> 215168.8864 | S26: =Data!BW44 -> 172141.677 | T26: =Data!BX44 -> 184579.7774 | U26: =Data!BY44 -> 200786.3934 | V26: =Data!BZ44 -> 217586.3904 | W26: =Data!CA44 -> 151288.7374 | X26: =Data!CD44 -> 149432.3372 | Y26: =Data!CE44 -> 167087.2078 | Z26: =Data!CF44 -> 185404.049 | AA26: =Data!CG44 -> 204404.049 | AB26: =Data!CH44 -> 128598.5715 | AC26: =Data!CK44 -> 142810.8386 | AD26: =Data!CL44 -> 162881.1467 | AE26: =Data!CM44 -> 180270.3014 | AF26: =Data!CN44 -> 201660.3548 | AG26: =Data!CO44 -> 205991.7498 | AH26: =Data!CP44 -> 117636.2075
A27: 27 | C27: Early Ending Bal Minimum | D27: =MIN(OFFSET(D26,0,0,,MaxEarlyYears+1)) -> 137806.996 | E27: MinEndBalance
A28: 28 | C28: Ending Balance to expense ratio | D28: =IF(D25>0,D26/D25,1) -> 2.901199915 | E28: =IF(E25>0,E26/E25,1) -> 1 | F28: 1 | G28: 1 | H28: 32.92586167 | I28: 63.81552462 | J28: 1 | K28: 112.738856 | L28: 86.2527633 | M28: 22.70791047 | N28: 15.72767696 | O28: 1 | P28: 1 | Q28: 3.52688693 | R28: 29.9477857 | S28: 2.946431788 | T28: 57.51200747 | U28: 1 | V28: 1 | W28: 1.816375852 | X28: 7.879720192 | Y28: 1 | Z28: 1 | AA28: 1 | AB28: 1.353197343 | AC28: 27.28290075 | AD28: 1 | AE28: 54.10381118 | AF28: 1 | AG28: 11.65491329 | AH28: 1.065155163
A29: 29 | C29: $ to make margin ok | D29: =IF(D28<$D$8,$D$8*D25-D26,0) -> 0 | E29: 0 | F29: 0 | G29: 0 | H29: 0 | I29: 0 | J29: 0 | K29: 0 | L29: 0 | M29: =IF(M28<$D$8,$D$8*M25-M26,0) -> 0 | N29: 0 | O29: 0 | P29: 0 | Q29: 0 | R29: 0 | S29: 0 | T29: 0 | U29: 0 | V29: 0 | W29: 0 | X29: 0 | Y29: 0 | Z29: 0 | AA29: 0 | AB29: 0 | AC29: 0 | AD29: 0 | AE29: 0 | AF29: 0 | AG29: 0 | AH29: 0
A30: 30 | C30: Minimum Ending Balance Margin | D30: =MIN(D28:AG28) -> 1 | E30: MinEndBalanceMargin
A31: 31 | C31: Early Min Ending Bal Margin | D31: =MIN(OFFSET(D28,0,0,,MaxEarlyYears+1)) -> 1 | E31: MinEndBalanceMarginEarly
A32: 32 | C32: Early Min Ending Bal Needs | D32: =MAX(OFFSET(D29,0,0,,MaxEarlyYears+1)) -> 0 | E32: MinEndBalanceNeeds
A33: 33 | C33: Pct Funded | D33: =Data!BB18 -> 1.706796621 | E33: =Data!BC18 -> 2.09899124 | F33: =Data!BD18 -> 1.928837038 | G33: =Data!BE18 -> 1.79361004 | H33: =Data!BF18 -> 1.683229378 | I33: =Data!BI18 -> 1.62239408 | J33: =Data!BJ18 -> 1.552932242 | K33: =Data!BK18 -> 1.479097407 | L33: =Data!BL18 -> 1.420983484 | M33: =Data!BM18 -> 1.370642519 | N33: =Data!BP18 -> 1.340575874 | O33: =Data!BQ18 -> 1.319684649 | P33: =Data!BR18 -> 1.27288295 | Q33: =Data!BS18 -> 1.231171759 | R33: =Data!BT18 -> 1.274798567 | S33: =Data!BW18 -> 1.240404644 | T33: =Data!BX18 -> 1.300410166 | U33: =Data!BY18 -> 1.252767702 | V33: =Data!BZ18 -> 1.206041872 | W33: =Data!CA18 -> 1.165769778 | X33: =Data!CD18 -> 1.239278596 | Y33: =Data!CE18 -> 1.221862006 | Z33: =Data!CF18 -> 1.172195283 | AA33: =Data!CG18 -> 1.131271872 | AB33: =Data!CH18 -> 1.096645434 | AC33: =Data!CK18 -> 1.146062397 | AD33: =Data!CL18 -> 1.108449707 | AE33: =Data!CM18 -> 1.072167315 | AF33: =Data!CN18 -> 1.043026471 | AG33: =Data!CO18 -> 1.016416961 | AH33: =Data!CP18 -> 0.9944248433
A34: 34 | C34: Pct Funded Change | E34: =(E33-D33) -> 0.3921946194 | F34: =(F33-E33) -> -0.1701542018 | G34: =(G33-F33) -> -0.1352269988 | H34: =(H33-G33) -> -0.1103806618 | I34: =(I33-H33) -> -0.0608352975 | J34: =(J33-I33) -> -0.06946183825 | K34: -0.07383483532 | L34: -0.05811392295 | M34: -0.0503409649 | N34: -0.03006664463 | O34: -0.02089122541 | P34: -0.04680169894 | Q34: -0.04171119042 | R34: 0.04362680784 | S34: -0.03439392294 | T34: 0.060005522 | U34: -0.04764246419 | V34: -0.04672582987 | W34: -0.04027209464 | X34: 0.07350881875 | Y34: -0.0174165909 | Z34: -0.04966672246 | AA34: -0.04092341071 | AB34: -0.03462643858 | AC34: 0.04941696313 | AD34: -0.03761269017 | AE34: -0.03628239161 | AF34: -0.02914084363 | AG34: -0.02660951031 | AH34: -0.02199211786
A35: 35 | C35: Avg % Funded Change 25-29 | D35: =AVERAGE(AC34:AG34) -> -0.01604569452 | E35: AvgPctFundedChange25_29 | H35: ac-ag
A36: 36 | C36: Pct Funded Std Dev 25-29 | D36: =STDEV(AC33:AG33) -> 0.05149346229 | H36: ac-ag
A37: 37 | C37: Avg Pct Funded 25-29 | D37: =AVERAGE(AC33:AG33) -> 1.07722457 | E37: AvgPctFunded25_29 | H37: ac-ag
A38: 38 | C38: Yrs 25-29 with neg slope | D38: =COUNTIF(AC34:AG34,"<0") -> 4 | E38: NumMonthLessThanZero
A39: 39 | C39: Ending Balance Minimum | D39: =MIN(D26:AH26) -> 117636.2075 | E39: EndingBalanceMin
A40: 40 | C40: Constraints | D40: Minimum | E40: Maximum
A41: 41 | C41: 1st cycle underfunded | D41: 0.7 | E41: 1.2 | F41: ConstraintCycle1UnderMin | G41: ConstraintCycle1UnderMax
A42: 42 | C42: 2nd cycle | D42: 0.9 | E42: 1.1 | F42: ConstraintCycle2Min | G42: ConstraintCycle2Max
A43: 43 | C43: Final Year | D43: 0.98 | E43: 1.02 | F43: ConstraintFinalYearMin | G43: ConstraintFinalYearMax
A44: 44 | C44: # of allowable Cycle 1 iterations | D44: 500 | E44: MaxCycle1
A45: 45 | C45: # of allowable Cycle 2 iterations | D45: 1000 | E45: MaxCycle2
A46: 46 | C46: # of allowable Cycle 3 iterations | D46: 50 | E46: MaxCycle3
A47: 47 | C47: # of times through the solver | D47: 1 | E47: MaxPass

Sheet Coding-F
A1: Note: all cell references refer to "Solver" worksheet unless otherwise designated
A2: Full Funding Solver
A4: Start | B4: set annual increases
C5: Set 1AI = d4 | E5: (1st ramp annual increase)
C6: Set 1AIY = d5 | E6: (1st ramp annual increase years)
C7: Set 2AI = d4 | E7: (2nd ramp annual increase)
C8: Set 2AIY = d5 | E8: (2nd ramp annual increase years)
B9: set pass counter (integers)
C10: set pass = 0
B11: set cycle counters (integers)
C12: set cycle1 = 0
C13: set cycle2 = 0
C14: set cycle3 = 0
B15: set initial contribution rate
C16: Set contribution (Main!RecommendedContrib) to d2
B17: set flatness check
C18: set flat = 0
B19: set 2nd cycle boost check
C20: set 2boost = 0
B21: set initial special assessment
C22: set special assessment yr 1 (Main!SpecialAssessment) = $0.00
B23: if crash in first few (as defined by 0-d11) yrs, then special assessment
C24: if d27<0, goto Special Assess
C25: Goto Cycle1
A27: Restart | B27: set cycle counters (integers)
C28: set cycle1 = 0
C29: set cycle2 = 0
C30: set cycle3 = 0
C31: set pass = pass + 1
B32: set initial contribution rate
C33: Set contribution (Main!RecommendedContrib) to d2
B34: set initial special assessment
C35: set special assessment yr 1 (Main!SpecialAssessment) = $0.00
B36: if crash in first few (as defined by 0-d11) yrs, then special assessment
C37: if d27<0, goto Special Assess
C38: Goto Cycle1
A40: Special Assess | B40: set special assmt amount needed to keep from going negative
C41: Set special assessment yr 1 (Main!SpecialAssessment) = +d27
C42: divide by d3 to get individual owner special assessment
C43: round above up to nearest d9.
C44: set special assmt yr1 = rounded up individual unit owner special assessment x d3
C45: Goto-Cycle1
A47: Special Assess Small | B47: small nudges to increase special assessment
C48: if d32>0, set special assmt yr1 = special assessment yr 1 + d32, otherwise…
C49: If special assmt yr1 = 0, set special assmt to d2, otherwise…
C50: SA = SA x (1+d10)
C51: divide by d3 to get individual owner special assessment
C52: round above up to nearest d9.
C53: set special assmt yr1 = rounded up individual unit owner special assessment x d3
C54: goto-Cycle1
A56: Cycle1 | B56: begin adjusting
C57: set cycle1 = cycle1 + 1
B58: test to see if too many cycles (looping broken)
C59: if cycle1>d44 goto Cycle2
B60: test to see if early min margin is not met and small special assessment is needed
C61: if d31<d8, goto Special Assess Small
B62: test to see if min margin is not met and max constraints are exceeded
C63: if d30<d8 and d37>e41, go to Special Assess Small
B64: test to see if min margin is not met and contrib needs increasing
C65: if d30<d8 goto-Cycle1-low
B66: test to see if max constraints are exceeded and contrib needs reducing
C67: if d37>e41, goto-Cycle1-high
B68: test to see if min constraints not met and contrib needs increasing
C69: if d37<d41, goto-Cycle1-low
B70: to get here, must be good, so move on to Cycle2
C71: goto-Cycle2
A73: Cycle1-low | B73: contrib needs to be increased
C74: increase Main!D30 by d6
B75: try again to see if it passes the minimum ending balance criteria
C76: goto-Cycle1
A78: Cycle1-high | B78: contrib needs to be decreased
C79: decrease Main!D30 by d6
B80: try again to see if it has dropped down enough to pass along
C81: goto-Cycle1
A83: Cycle2 | B83: tighten up constraints and work on leveling
B84: set cycle counter
A85: A | C85: set Cycle2=Cycle2 + 1
B86: Set/Reset 2AI (Main!d33)
A87: B | C87: set Main!d33=d4
B88: test to see if too many cycles (looping broken)
A89: C | C89: if cycle2>maxcycle2, goto SolverFailure
B90: check # of declining years in final yrs & send to appropriate corrective measures.
A91: D | C91: if NumMonthLessThanZero>2, goto Cycle2-low
C92: if NumMonthLessThanZero<=2, goto Cycle2-high
A94: Cycle2-High | B94: due to increasing trend, try to lower the final slope
B95: first... set initial settings
A96: E | C96: set Main!D32=d5
B97: lower secondary increase a notch, if not too low already
A98: F | C98: if(Main!D33-d13>d17, set Main!d33=Main!D33-d13, otherwise set Main!d33=d17)
A99: Cycle2-High-yr | B99: Now cycle # yrs of secondary increases by dropping years of first increase
A100: G | C100: if(Main!D32-d15>d16, set Main!D32=Main!D32-d15, otherwise set Main!D32=d16)
B101: test to see if it flattened the slope enough
C102: if 2Boost=0, then
C103: if (ABS)d35<=d22, goto Cycle2-constraint
C104: else, it has already been boosted and needs to just hunt for a solution,
A105: H | C105: if (ABS)d35<=d22 and d37<=e42 and d37 >= d42, goto Cycle2-constraint
B106: test to see if flattened slope drops below minimum margin
A107: I | C107: if d30<d8, set 2Boost=1 and goto Cycle2-Boost
B108: test to see if flattened profile falls below ending constraints
A109: J | C109: if flat=0, then if d37<d42, goto Cycle2-Boost
B110: still not flat enough, so try more years of lowered secondary ramp
A111: K | C111: if Main!D32>d16, goto Cycle2-High-yr
B112: Since 1AI-yrs are at minimum, drop secondary ramp value & retry
A113: L | C113: if Main!d33>d17, goto Cycle2-High
B114: Since 1AI-yrs are at minimum and 2AI is at minimum, go to SolverFailure
A115: M | C115: goto SolverFailure
A117: Cycle2-Low | B117: due to decreasing trend, try to increase the final slope
B118: first… set initial settings
A119: E | C119: set Main!D32=d5
B120: increase secondary increase a notch, if not too high already
A121: F | C121: if(Main!D33+d13<d18, set Main!d33=Main!D33+d13, otherwise set Main!d33=d18)
A122: Cycle2-Low-yr | B122: Now test # yrs of secondary increases
A123: G | C123: if(Main!D32-d15>d16, set Main!D32=Main!D32-d15, otherwise set Main!D32=d16)
B124: test to see if it flattened the slope enough
C125: if main!Percent Funded => d19, then
C126: if (ABS)d35<=d21, goto Cycle2-Constraint
C127: else, it not a surplus funded situation,
A128: H | C128: if (ABS)d35<=d22, goto Cycle2-constraint
B129: test to see if flattened profile is too high for ending constraints
A130: I | C130: if flat=0, if d37>e42, goto Cycle2-Trim
B131: still not flat enough, so try more years of raised secondary ramp
A132: J | C132: if Main!D32>d16, goto Cycle2-Low-yr
B133: Since1AI-yrs are at minimum, increase secondary ramp value and retry
A134: K | C134: if Main!d33<d18, goto Cycle2-Low
B135: Since, 1AI yrs are at minimum and 2AI is at maximum, go to SolverFailure
A136: L | C136: goto SolverFailure
A138: Cycle2-Constraint | B138: test to see if flattened profile meets ending criteria
B139: But first, document that it got here (was flat enough)...for use in surplus funded situations,
B140: to avoid ever trimming something that needs to be boosted)
A141: M | C141: set flat = 1
B142: test to see if minimum margin met
A143: N | C143: if d30<d8, set 2Boost=1 and goto Cycle2-Boost
B144: test to see if flattened profile falls below ending constraints
A145: O | C145: if d35<d42, goto Cycle2-Boost
B146: test to see if flattened profile is too high for ending constraints
A147: P | C147: if 2boost=0, if d35>e42, goto Cycle2-Trim
B148: test to see if too many passes
A149: Q | C149: if pass < d71, go to restart
B150: otherwise, must be within acceptable range
C151: goto Cycle3
A153: Cycle2-Boost | B153: flattened profile now too low, so boost contrib a bit
C154: if 2boost=0, then
C155: Increase Main!D30 (contribution) by d7
C156: otherwise increase Main!d30 (contribution) by d14
B157: try again to flatten it out and pass the min ending balance criteria
C158: goto-Cycle2
A160: Cycle2-Trim | B160: flattened profile now too high, so trim contrib a bit
C161: Decrease Main!D30 (contribution) by d7
B162: try again to see if it has dropped down enough to pass along
C163: goto-Cycle2
A165: Cycle3 | B165: Now make minor adjustments to polish contrib & tune in to 100% zone at end
B166: Assume no more slope changes necessary. Contrib tweak only
B167: set Cycle3 counter
C168: set cycle3=cycle3+1
B169: test to see if it is looping almost endlessly
C170: if cycle3=>d46, goto solverfailure
B171: test to see if too low, & if so, boost contribution a bit
C172: if d37<d43, goto Cycle3-Boost
B173: test to see if too high, & if so, drop contribution a bit
C174: if d37>e43, goto Cycle3-Trim
B175: Now create a rounded "final candidate" contribution
C176: Round contribution to nearest d12
B177: otherwise, must be good. Finished
C178: goto SolverDone
A180: Cycle3-Boost | B180: Final year slightly too low, so boost contrib a bit
C181: increase contribution by d20
C182: goto Cycle3
A184: Cycle3-Trim | B184: Final year slightly too high, so trim contrib a bit
C185: decrease contribution by d20
C186: goto Cycle3
A188: SolverFailure | B188: Indicate failure
C189: set Main!d55="Failure"
C190: goto Display
A192: SolverDone | B192: Indicate Success
C193: set Main!d55="Success"
C194: goto Display
A196: Display | B196: Show # of cycles
C197: set Main!d56=Cycle1
C198: set Main!d57=Cycle2
C199: set Main!d58=Cycle3

Sheet Coding-B
A1: Note: all cell references refer to "Solver" worksheet unless otherwise designated
A2: Baseline Solver
A4: Start | B4: Set Cycle Counters
C5: set cycle1 = 0
C6: set cycle2 = 0
B7: Set Annual Increases
C8: set 1AI = d4
C9: set 1AIY=d5
B10: Note: only one ramp that goes 30 yrs. No need for 2AI or 2AIY
B11: Set initial contribution rate
C12: Set contribution (Main!RecommendedContrib) to d2
B13: check to see if min margin met
C14: set margin1 = N
C15: set margin2 = N
B16: set initial special assessment
C17: set special assessment yr 1 (Main!SpecialAssessment) = $0.00
B18: if crash in first few (as defined by 0-d11) yrs, then special assessment
C19: if d27<0, goto Special Assess
C20: Goto Cycle1
A23: Special Assess | B23: set special assmt amount needed to keep from going negative
C24: Set special assessment yr 1 (Main!SpecialAssessment) = +d27
C25: divide by d3 to get individual owner special assessment
C26: round above up to nearest d9.
C27: set special assmt yr1 = rounded up individual unit owner special assessment x d3
C28: Goto-Cycle1
A30: Special Assess Small | B30: small nudges to increase special assessment
C31: if d32>0, set special assmt yr1 = special assessment yr 1 + d32, otherwise…
C32: If special assmt yr1 = 0, set special assmt to d2, otherwise…
C33: SA = SA x (1+d10)
C34: divide by d3 to get individual owner special assessment
C35: round above up to nearest d9.
C36: set special assmt yr1 = rounded up individual unit owner special assessment x d3
C37: goto-Cycle1
A39: Cycle1 | B39: begin adjusting
A40: A | C40: set cycle1 = cycle1 + 1
B41: test to see if too many cycles (looping broken)
A42: B | C42: if cycle1>d44 goto SolverFailure
B43: test to see if early min bal is not met and small special assessment is needed
A44: C | C44: if d27<d23, goto Special Assess Small
B45: test to see if min bal is not met and ending is too high
A46: D | C46: if d39<d23 and d37>e41, go to Special Assess Small
B47: test to see if min bal is not met and contrib needs increasing
A48: E | C48: if d39<d23 goto-Cycle1-low
B49: test to see if min bal is met and contrib needs reducing
A50: F | C50: if d39>=d23 goto-Cycle1-high
B51: if here, must be a problem
A52: G | C52: goto SolverFailure
A54: Cycle1-low | B54: first - check if there was prior success & only dipped low this first time
C55: if margin1 = Y, goto-Cycle2
B56: otherwise, confirm unsuccessful Marginmet setting
C57: set margin1 = N
B58: contrib needs to be increased
C59: increase Main!D30 by d6
B60: return to Cycle1 adjustments
C61: goto-Cycle1
A63: Cycle1-high | B63: contrib needs to be decreased
C64: decrease Main!D30 by d6
B65: confirm successful Marginmet setting
C66: set margin1 = Y
B67: return to Cycle1 adjustments
C68: goto-Cycle1
A70: Cycle2 | B70: Now make minor adjustments to polish contrib
B71: set Cycle2 counter
C72: set cycle2=cycle2+1
B73: test to see if it is looping almost endlessly
C74: if cycle2=>d46, goto solverfailure
B75: test to see if successful margin
C76: if d39<d23 goto-Cycle2-Boost
B77: test to see if too high, & if so, drop contribution a bit
C78: if d39>=d23 goto Cycle2-Trim
A81: Cycle2-Boost | B81: Contrib slightly too low, so boost contrib a bit
C82: increase contribution by d20
B83: check to see if that was enough to provide a solution
C84: if d39>=d23 and Margin2=N, goto Cycle3
B85: otherwise, confirm unsuccessful Marginmet setting
C86: set margin2 = N
C87: goto Cycle2
A89: Cycle2-Trim | B89: Final year slightly too high, so trim contrib a bit
C90: decrease contribution by d20
C91: goto Cycle2
A93: Cycle3 | B93: Trim any overfunding
C94: Set Main!d32=d5
B95: lower secondary increase a substantial notch
C96: if(Main!D33-(2*d13)>d17, set Main!d33=Main!D33-(2*d13), otherwise set Main!d33=d17)
A97: Cycle3yrs | B97: Now cycle # yrs of secondary increases by dropping years of first increase | K97: Do While d39>=d23 and Main!d32>d16
C98: if(Main!D32-d15>d16, set Main!D32=Main!D32-d15, otherwise set Main!D32=d16) | L98: This is the only action inside the loop
B99: test to see if margin is still ok & we can drop further | K99: Loop
C100: if d39>=d23 and Main!d32>d16, goto Cycle3yrs
B101: test to see if we went too far and we need to back up away from sensitive yr. | K101: After exiting the loop, perform this check one time and move on regardless of the outcome.
C102: if d39<d23, set Main!d32=Main!d32+d15.
A103: Cycle3AI | B103: If here, must still be ok. So try a lower 2AI
C104: if(Main!D33-d13>d17, set Main!d33=Main!D33-d13, otherwise set Main!d33=d17) | K104: This works exactly the same way as Cycle3yrs
B105: test to see if margin is still ok & we can drop further
C106: if d39>=d23 and Main!d33>d17, goto Cycle3AI
B107: test to see if we went too far and we need to back up
C108: if d39<d23, set Main!d33=Main!d33+d13.
B109: If here, must be ok. Time to wrap it up.
C110: Goto Finisher
A112: Finisher | B112: Now create a rounded "final candidate" contribution
C113: Roundup contribution to nearest d12
B114: Must be good. Finished
C115: goto SolverDone
A117: SolverFailure | B117: Indicate failure
C118: set Main!d55="Failure"
C119: goto Display
A121: SolverDone | B121: Indicate Success
C122: set Main!d55="Success"
C123: goto Display
A125: Display | B125: Show # of cycles
C126: set Main!d56=Cycle1
C127: set Main!d57=Cycle2

Sheet Output-F
A1: Cycle 2 # | B1: Contrib | C1: 1AI Yrs | D1: 2AI % | E1: Slope | F1: % Funded | G1: At the End of Branch | H1: Last Operation
B2: 752.48 | C2: 30 | D2: 0.03 | E2: -0.01132523782 | F2: 1.198447096 | G2: Cycle 2 | H2: Reset 2AI
A3: 1 | B3: 748.72 | C3: 25 | D3: 0.035 | E3: -0.01120482843 | F3: 1.185584228 | G3: Cycle 2 Low | H3: Trim
B4: 748.72 | C4: 25 | D4: 0.03 | E4: -0.01180556102 | F4: 1.184522666 | G4: Cycle 2 | H4: Reset 2AI
A5: 2 | B5: 744.97 | C5: 25 | D5: 0.035 | E5: -0.01168575463 | F5: 1.171724085 | G5: Cycle 2 Low | H5: Trim
B6: 744.97 | C6: 25 | D6: 0.03 | E6: -0.01228348355 | F6: 1.17066783 | G6: Cycle 2 | H6: Reset 2AI
A7: 3 | B7: 741.25 | C7: 25 | D7: 0.035 | E7: -0.01216427773 | F7: 1.157933198 | G7: Cycle 2 Low | H7: Trim
B8: 741.25 | C8: 25 | D8: 0.03 | E8: -0.012759018 | F8: 1.156882225 | G8: Cycle 2 | H8: Reset 2AI
A9: 4 | B9: 737.54 | C9: 25 | D9: 0.035 | E9: -0.01264041051 | F9: 1.1442112 | G9: Cycle 2 Low | H9: Trim
B10: 737.54 | C10: 25 | D10: 0.03 | E10: -0.01323217706 | F10: 1.143165481 | G10: Cycle 2 | H10: Reset 2AI
A11: 5 | B11: 733.86 | C11: 25 | D11: 0.035 | E11: -0.01311415298 | F11: 1.130558089 | G11: Cycle 2 Low | H11: Trim
B12: 733.86 | C12: 25 | D12: 0.03 | E12: -0.01370296073 | F12: 1.129517599 | G12: Cycle 2 | H12: Reset 2AI
A13: 6 | B13: 730.19 | C13: 25 | D13: 0.035 | E13: -0.0135855307 | F13: 1.11697313 | G13: Cycle 2 Low | H13: Trim
B14: 730.19 | C14: 25 | D14: 0.03 | E14: -0.01417139442 | F14: 1.115937843 | G14: Cycle 2 | H14: Reset 2AI
A15: 7 | B15: 726.53 | C15: 25 | D15: 0.035 | E15: -0.01405455646 | F15: 1.103455954 | G15: Cycle 2 Low | H15: Trim
B16: 726.53 | C16: 25 | D16: 0.03 | E16: -0.01463749084 | F16: 1.102425843 | G16: Cycle 2 | H16: Reset 2AI
A17: 8 | B17: 722.9 | C17: 25 | D17: 0.035 | E17: -0.01452123024 | F17: 1.090006561 | G17: Cycle 2 Low | H17: Trim
B18: 722.9 | C18: 25 | D18: 0.03 | E18: -0.01510124997 | F18: 1.088981601 | G18: Cycle 2 | H18: Reset 2AI
A19: 9 | B19: 722.9 | C19: 25 | D19: 0.035 | E19: -0.01452123024 | F19: 1.090006561 | G19: Cycle 2 Low | H19: No Boost or Trim

Sheet Output-B
A1: Loop # | B1: Contrib | C1: Special Assmt | D1: Margin1 | E1: MinEndBalMargin | F1: 1AI Yrs | G1: 2AI % | H1: Cycle # | I1: Last Operation
A2: 1 | B2: 14446.01 | C2: 0 | D2: TRUE | E2: 1 | F2: 30 | G2: 0.035 | H2: Cycle 1 | I2: Cycle1-high
A3: 2 | B3: 14301.55 | C3: 0 | D3: TRUE | E3: 1 | F3: 30 | G3: 0.035 | H3: Cycle 1 | I3: Cycle1-high
A4: 3 | B4: 14158.54 | C4: 0 | D4: TRUE | E4: 1 | F4: 30 | G4: 0.035 | H4: Cycle 1 | I4: Cycle1-high
A5: 4 | B5: 14016.95 | C5: 0 | D5: TRUE | E5: 1 | F5: 30 | G5: 0.035 | H5: Cycle 1 | I5: Cycle1-high
A6: 5 | B6: 13876.78 | C6: 0 | D6: TRUE | E6: 1 | F6: 30 | G6: 0.035 | H6: Cycle 1 | I6: Cycle1-high
A7: 6 | B7: 13738.01 | C7: 0 | D7: TRUE | E7: 1 | F7: 30 | G7: 0.035 | H7: Cycle 1 | I7: Cycle1-high
A8: 7 | B8: 13600.63 | C8: 0 | D8: TRUE | E8: 1 | F8: 30 | G8: 0.035 | H8: Cycle 1 | I8: Cycle1-high
A9: 8 | B9: 13464.63 | C9: 0 | D9: TRUE | E9: 1 | F9: 30 | G9: 0.035 | H9: Cycle 1 | I9: Cycle1-high
A10: 9 | B10: 13329.98 | C10: 0 | D10: TRUE | E10: 1 | F10: 30 | G10: 0.035 | H10: Cycle 1 | I10: Cycle1-high
A11: 10 | B11: 13196.68 | C11: 0 | D11: TRUE | E11: 1 | F11: 30 | G11: 0.035 | H11: Cycle 1 | I11: Cycle1-high
A12: 11 | B12: 13064.71 | C12: 0 | D12: TRUE | E12: 1 | F12: 30 | G12: 0.035 | H12: Cycle 1 | I12: Cycle1-high
A13: 12 | B13: 12934.07 | C13: 0 | D13: TRUE | E13: 1 | F13: 30 | G13: 0.035 | H13: Cycle 1 | I13: Cycle1-high
A14: 13 | B14: 12804.73 | C14: 0 | D14: TRUE | E14: 1 | F14: 30 | G14: 0.035 | H14: Cycle 1 | I14: Cycle1-high
A15: 14 | B15: 12676.68 | C15: 0 | D15: TRUE | E15: 1 | F15: 30 | G15: 0.035 | H15: Cycle 1 | I15: Cycle1-high
A16: 15 | B16: 12549.91 | C16: 0 | D16: TRUE | E16: 1 | F16: 30 | G16: 0.035 | H16: Cycle 1 | I16: Cycle1-high
A17: 16 | B17: 12424.41 | C17: 0 | D17: TRUE | E17: 1 | F17: 30 | G17: 0.035 | H17: Cycle 1 | I17: Cycle1-high
A18: 17 | B18: 12300.17 | C18: 0 | D18: TRUE | E18: 1 | F18: 30 | G18: 0.035 | H18: Cycle 1 | I18: Cycle1-high
A19: 18 | B19: 12177.17 | C19: 0 | D19: TRUE | E19: 1 | F19: 30 | G19: 0.035 | H19: Cycle 1 | I19: Cycle1-high
A20: 19 | B20: 12055.39 | C20: 0 | D20: TRUE | E20: 1 | F20: 30 | G20: 0.035 | H20: Cycle 1 | I20: Cycle1-high
A21: 20 | B21: 11934.84 | C21: 0 | D21: TRUE | E21: 1 | F21: 30 | G21: 0.035 | H21: Cycle 1 | I21: Cycle1-high
A22: 21 | B22: 11815.49 | C22: 0 | D22: TRUE | E22: 1 | F22: 30 | G22: 0.035 | H22: Cycle 1 | I22: Cycle1-high
A23: 22 | B23: 11697.34 | C23: 0 | D23: TRUE | E23: 1 | F23: 30 | G23: 0.035 | H23: Cycle 1 | I23: Cycle1-high
A24: 23 | B24: 11580.36 | C24: 0 | D24: TRUE | E24: 1 | F24: 30 | G24: 0.035 | H24: Cycle 1 | I24: Cycle1-high
A25: 24 | B25: 11464.56 | C25: 0 | D25: TRUE | E25: 1 | F25: 30 | G25: 0.035 | H25: Cycle 1 | I25: Cycle1-high
A26: 25 | B26: 11349.91 | C26: 0 | D26: TRUE | E26: 1 | F26: 30 | G26: 0.035 | H26: Cycle 1 | I26: Cycle1-high
A27: 26 | B27: 11236.42 | C27: 0 | D27: TRUE | E27: 1 | F27: 30 | G27: 0.035 | H27: Cycle 1 | I27: Cycle1-high
A28: 27 | B28: 11124.05 | C28: 0 | D28: TRUE | E28: 1 | F28: 30 | G28: 0.035 | H28: Cycle 1 | I28: Cycle1-high
A29: 28 | B29: 11012.81 | C29: 0 | D29: TRUE | E29: 1 | F29: 30 | G29: 0.035 | H29: Cycle 1 | I29: Cycle1-high
A30: 29 | B30: 10902.68 | C30: 0 | D30: TRUE | E30: 1 | F30: 30 | G30: 0.035 | H30: Cycle 1 | I30: Cycle1-high
A31: 30 | B31: 10793.66 | C31: 0 | D31: TRUE | E31: 1 | F31: 30 | G31: 0.035 | H31: Cycle 1 | I31: Cycle1-high
A32: 31 | B32: 10685.72 | C32: 0 | D32: TRUE | E32: 1 | F32: 30 | G32: 0.035 | H32: Cycle 1 | I32: Cycle1-high
A33: 32 | B33: 10578.86 | C33: 0 | D33: TRUE | E33: 1 | F33: 30 | G33: 0.035 | H33: Cycle 1 | I33: Cycle1-high
A34: 33 | B34: 10473.07 | C34: 0 | D34: TRUE | E34: 1 | F34: 30 | G34: 0.035 | H34: Cycle 1 | I34: Cycle1-high
A35: 34 | B35: 10368.34 | C35: 0 | D35: TRUE | E35: 1 | F35: 30 | G35: 0.035 | H35: Cycle 1 | I35: Cycle1-high
A36: 35 | B36: 10264.66 | C36: 0 | D36: TRUE | E36: 1 | F36: 30 | G36: 0.035 | H36: Cycle 1 | I36: Cycle1-high
A37: 36 | B37: 10162.01 | C37: 0 | D37: TRUE | E37: 1 | F37: 30 | G37: 0.035 | H37: Cycle 1 | I37: Cycle1-high
A38: 37 | B38: 10060.39 | C38: 0 | D38: TRUE | E38: 1 | F38: 30 | G38: 0.035 | H38: Cycle 1 | I38: Cycle1-high
A39: 38 | B39: 9959.79 | C39: 0 | D39: TRUE | E39: 1 | F39: 30 | G39: 0.035 | H39: Cycle 1 | I39: Cycle1-high
A40: 39 | B40: 9860.19 | C40: 0 | D40: TRUE | E40: 1 | F40: 30 | G40: 0.035 | H40: Cycle 1 | I40: Cycle1-high
A41: 40 | B41: 9761.59 | C41: 0 | D41: TRUE | E41: 1 | F41: 30 | G41: 0.035 | H41: Cycle 1 | I41: Cycle1-high
A42: 41 | B42: 9663.97 | C42: 0 | D42: TRUE | E42: 1 | F42: 30 | G42: 0.035 | H42: Cycle 1 | I42: Cycle1-high
A43: 42 | B43: 9567.33 | C43: 0 | D43: TRUE | E43: 1 | F43: 30 | G43: 0.035 | H43: Cycle 1 | I43: Cycle1-high
A44: 43 | B44: 9471.66 | C44: 0 | D44: TRUE | E44: 1 | F44: 30 | G44: 0.035 | H44: Cycle 1 | I44: Cycle1-high
A45: 44 | B45: 9376.94 | C45: 0 | D45: TRUE | E45: 1 | F45: 30 | G45: 0.035 | H45: Cycle 1 | I45: Cycle1-high
A46: 45 | B46: 9283.17 | C46: 0 | D46: TRUE | E46: 1 | F46: 30 | G46: 0.035 | H46: Cycle 1 | I46: Cycle1-high
A47: 46 | B47: 9190.34 | C47: 0 | D47: TRUE | E47: 1 | F47: 30 | G47: 0.035 | H47: Cycle 1 | I47: Cycle1-high
A48: 47 | B48: 9098.44 | C48: 0 | D48: TRUE | E48: 1 | F48: 30 | G48: 0.035 | H48: Cycle 1 | I48: Cycle1-high
A49: 48 | B49: 9007.45 | C49: 0 | D49: TRUE | E49: 1 | F49: 30 | G49: 0.035 | H49: Cycle 1 | I49: Cycle1-high
A50: 49 | B50: 8917.38 | C50: 0 | D50: TRUE | E50: 1 | F50: 30 | G50: 0.035 | H50: Cycle 1 | I50: Cycle1-high
A51: 50 | B51: 8828.21 | C51: 0 | D51: TRUE | E51: 1 | F51: 30 | G51: 0.035 | H51: Cycle 1 | I51: Cycle1-high
A52: 51 | B52: 8739.92 | C52: 0 | D52: TRUE | E52: 1 | F52: 30 | G52: 0.035 | H52: Cycle 1 | I52: Cycle1-high
A53: 52 | B53: 8652.53 | C53: 0 | D53: TRUE | E53: 1 | F53: 30 | G53: 0.035 | H53: Cycle 1 | I53: Cycle1-high
A54: 53 | B54: 8566 | C54: 0 | D54: TRUE | E54: 1 | F54: 30 | G54: 0.035 | H54: Cycle 1 | I54: Cycle1-high
A55: 54 | B55: 8480.34 | C55: 0 | D55: TRUE | E55: 1 | F55: 30 | G55: 0.035 | H55: Cycle 1 | I55: Cycle1-high
A56: 55 | B56: 8395.54 | C56: 0 | D56: TRUE | E56: 1 | F56: 30 | G56: 0.035 | H56: Cycle 1 | I56: Cycle1-high
A57: 56 | B57: 8311.58 | C57: 0 | D57: TRUE | E57: 1 | F57: 30 | G57: 0.035 | H57: Cycle 1 | I57: Cycle1-high
A58: 57 | B58: 8228.47 | C58: 0 | D58: TRUE | E58: 1 | F58: 30 | G58: 0.035 | H58: Cycle 1 | I58: Cycle1-high
A59: 58 | B59: 8146.18 | C59: 0 | D59: TRUE | E59: 1 | F59: 30 | G59: 0.035 | H59: Cycle 1 | I59: Cycle1-high
A60: 59 | B60: 8064.72 | C60: 0 | D60: TRUE | E60: 1 | F60: 30 | G60: 0.035 | H60: Cycle 1 | I60: Cycle1-high
A61: 60 | B61: 7984.07 | C61: 0 | D61: TRUE | E61: 1 | F61: 30 | G61: 0.035 | H61: Cycle 1 | I61: Cycle1-high
A62: 61 | B62: 7904.23 | C62: 0 | D62: TRUE | E62: 1 | F62: 30 | G62: 0.035 | H62: Cycle 1 | I62: Cycle1-high
A63: 62 | B63: 7825.19 | C63: 0 | D63: TRUE | E63: 1 | F63: 30 | G63: 0.035 | H63: Cycle 1 | I63: Cycle1-high
A64: 63 | B64: 7746.94 | C64: 0 | D64: TRUE | E64: 1 | F64: 30 | G64: 0.035 | H64: Cycle 1 | I64: Cycle1-high
A65: 64 | B65: 7669.47 | C65: 0 | D65: TRUE | E65: 1 | F65: 30 | G65: 0.035 | H65: Cycle 1 | I65: Cycle1-high
A66: 65 | B66: 7592.77 | C66: 0 | D66: TRUE | E66: 1 | F66: 30 | G66: 0.035 | H66: Cycle 1 | I66: Cycle1-high
A67: 66 | B67: 7516.84 | C67: 0 | D67: TRUE | E67: 1 | F67: 30 | G67: 0.035 | H67: Cycle 1 | I67: Cycle1-high
A68: 67 | B68: 7441.68 | C68: 0 | D68: TRUE | E68: 1 | F68: 30 | G68: 0.035 | H68: Cycle 1 | I68: Cycle1-high
A69: 68 | B69: 7367.26 | C69: 0 | D69: TRUE | E69: 1 | F69: 30 | G69: 0.035 | H69: Cycle 1 | I69: Cycle1-high
A70: 69 | B70: 7293.59 | C70: 0 | D70: TRUE | E70: 1 | F70: 30 | G70: 0.035 | H70: Cycle 1 | I70: Cycle1-high
A71: 70 | B71: 7220.65 | C71: 0 | D71: TRUE | E71: 1 | F71: 30 | G71: 0.035 | H71: Cycle 1 | I71: Cycle1-high
A72: 71 | B72: 7148.44 | C72: 0 | D72: TRUE | E72: 1 | F72: 30 | G72: 0.035 | H72: Cycle 1 | I72: Cycle1-high
A73: 72 | B73: 7076.96 | C73: 0 | D73: TRUE | E73: 1 | F73: 30 | G73: 0.035 | H73: Cycle 1 | I73: Cycle1-high
A74: 73 | B74: 7006.19 | C74: 0 | D74: TRUE | E74: 1 | F74: 30 | G74: 0.035 | H74: Cycle 1 | I74: Cycle1-high
A75: 74 | B75: 6936.13 | C75: 0 | D75: TRUE | E75: 1 | F75: 30 | G75: 0.035 | H75: Cycle 1 | I75: Cycle1-high
A76: 75 | B76: 6866.77 | C76: 0 | D76: TRUE | E76: 1 | F76: 30 | G76: 0.035 | H76: Cycle 1 | I76: Cycle1-high
A77: 76 | B77: 6798.1 | C77: 0 | D77: TRUE | E77: 1 | F77: 30 | G77: 0.035 | H77: Cycle 1 | I77: Cycle1-high
A78: 77 | B78: 6730.12 | C78: 0 | D78: TRUE | E78: 1 | F78: 30 | G78: 0.035 | H78: Cycle 1 | I78: Cycle1-high
A79: 78 | B79: 6662.82 | C79: 0 | D79: TRUE | E79: 1 | F79: 30 | G79: 0.035 | H79: Cycle 1 | I79: Cycle1-high
A80: 79 | B80: 6596.19 | C80: 0 | D80: TRUE | E80: 1 | F80: 30 | G80: 0.035 | H80: Cycle 1 | I80: Cycle1-high
A81: 80 | B81: 6530.23 | C81: 0 | D81: TRUE | E81: 1 | F81: 30 | G81: 0.035 | H81: Cycle 1 | I81: Cycle1-high
A82: 81 | B82: 6464.93 | C82: 0 | D82: TRUE | E82: 1 | F82: 30 | G82: 0.035 | H82: Cycle 1 | I82: Cycle1-high
A83: 82 | B83: 6400.28 | C83: 0 | D83: TRUE | E83: 1 | F83: 30 | G83: 0.035 | H83: Cycle 1 | I83: Cycle1-high
A84: 83 | B84: 6336.27 | C84: 0 | D84: TRUE | E84: 1 | F84: 30 | G84: 0.035 | H84: Cycle 1 | I84: Cycle1-high
A85: 84 | B85: 6272.91 | C85: 0 | D85: TRUE | E85: 1 | F85: 30 | G85: 0.035 | H85: Cycle 1 | I85: Cycle1-high
A86: 85 | B86: 6210.18 | C86: 0 | D86: TRUE | E86: 1 | F86: 30 | G86: 0.035 | H86: Cycle 1 | I86: Cycle1-high
A87: 86 | B87: 6148.08 | C87: 0 | D87: TRUE | E87: 1 | F87: 30 | G87: 0.035 | H87: Cycle 1 | I87: Cycle1-high
A88: 87 | B88: 6086.6 | C88: 0 | D88: TRUE | E88: 1 | F88: 30 | G88: 0.035 | H88: Cycle 1 | I88: Cycle1-high
A89: 88 | B89: 6025.73 | C89: 0 | D89: TRUE | E89: 1 | F89: 30 | G89: 0.035 | H89: Cycle 1 | I89: Cycle1-high
A90: 89 | B90: 5965.48 | C90: 0 | D90: TRUE | E90: 1 | F90: 30 | G90: 0.035 | H90: Cycle 1 | I90: Cycle1-high
A91: 90 | B91: 5905.82 | C91: 0 | D91: TRUE | E91: 1 | F91: 30 | G91: 0.035 | H91: Cycle 1 | I91: Cycle1-high
A92: 91 | B92: 5846.76 | C92: 0 | D92: TRUE | E92: 1 | F92: 30 | G92: 0.035 | H92: Cycle 1 | I92: Cycle1-high
A93: 92 | B93: 5788.29 | C93: 0 | D93: TRUE | E93: 1 | F93: 30 | G93: 0.035 | H93: Cycle 1 | I93: Cycle1-high
A94: 93 | B94: 5730.41 | C94: 0 | D94: TRUE | E94: 1 | F94: 30 | G94: 0.035 | H94: Cycle 1 | I94: Cycle1-high
A95: 94 | B95: 5673.11 | C95: 0 | D95: TRUE | E95: 1 | F95: 30 | G95: 0.035 | H95: Cycle 1 | I95: Cycle1-high
A96: 95 | B96: 5616.38 | C96: 0 | D96: TRUE | E96: 1 | F96: 30 | G96: 0.035 | H96: Cycle 1 | I96: Cycle1-high
A97: 96 | B97: 5560.21 | C97: 0 | D97: TRUE | E97: 1 | F97: 30 | G97: 0.035 | H97: Cycle 1 | I97: Cycle1-high
A98: 97 | B98: 5504.61 | C98: 0 | D98: TRUE | E98: 1 | F98: 30 | G98: 0.035 | H98: Cycle 1 | I98: Cycle1-high
A99: 98 | B99: 5449.56 | C99: 0 | D99: TRUE | E99: 1 | F99: 30 | G99: 0.035 | H99: Cycle 1 | I99: Cycle1-high
A100: 99 | B100: 5395.07 | C100: 0 | D100: TRUE | E100: 1 | F100: 30 | G100: 0.035 | H100: Cycle 1 | I100: Cycle1-high
A101: 100 | B101: 5341.12 | C101: 0 | D101: TRUE | E101: 1 | F101: 30 | G101: 0.035 | H101: Cycle 1 | I101: Cycle1-high
A102: 101 | B102: 5287.71 | C102: 0 | D102: TRUE | E102: 1 | F102: 30 | G102: 0.035 | H102: Cycle 1 | I102: Cycle1-high
A103: 102 | B103: 5234.83 | C103: 0 | D103: TRUE | E103: 1 | F103: 30 | G103: 0.035 | H103: Cycle 1 | I103: Cycle1-high
A104: 103 | B104: 5182.48 | C104: 0 | D104: TRUE | E104: 1 | F104: 30 | G104: 0.035 | H104: Cycle 1 | I104: Cycle1-high
A105: 104 | B105: 5130.66 | C105: 0 | D105: TRUE | E105: 1 | F105: 30 | G105: 0.035 | H105: Cycle 1 | I105: Cycle1-high
A106: 105 | B106: 5079.35 | C106: 0 | D106: TRUE | E106: 1 | F106: 30 | G106: 0.035 | H106: Cycle 1 | I106: Cycle1-high
A107: 106 | B107: 5028.56 | C107: 0 | D107: TRUE | E107: 1 | F107: 30 | G107: 0.035 | H107: Cycle 1 | I107: Cycle1-high
A108: 107 | B108: 4978.27 | C108: 0 | D108: TRUE | E108: 1 | F108: 30 | G108: 0.035 | H108: Cycle 1 | I108: Cycle1-high
A109: 108 | B109: 4928.49 | C109: 0 | D109: TRUE | E109: 1 | F109: 30 | G109: 0.035 | H109: Cycle 1 | I109: Cycle1-high
A110: 109 | B110: 4879.2 | C110: 0 | D110: TRUE | E110: 1 | F110: 30 | G110: 0.035 | H110: Cycle 1 | I110: Cycle1-high
A111: 110 | B111: 4830.41 | C111: 0 | D111: TRUE | E111: 1 | F111: 30 | G111: 0.035 | H111: Cycle 1 | I111: Cycle1-high
A112: 111 | B112: 4782.11 | C112: 0 | D112: TRUE | E112: 1 | F112: 30 | G112: 0.035 | H112: Cycle 1 | I112: Cycle1-high
A113: 112 | B113: 4734.29 | C113: 0 | D113: TRUE | E113: 1 | F113: 30 | G113: 0.035 | H113: Cycle 1 | I113: Cycle1-high
A114: 113 | B114: 4686.94 | C114: 0 | D114: TRUE | E114: 1 | F114: 30 | G114: 0.035 | H114: Cycle 1 | I114: Cycle1-high
A115: 114 | B115: 4640.07 | C115: 0 | D115: TRUE | E115: 1 | F115: 30 | G115: 0.035 | H115: Cycle 1 | I115: Cycle1-high
A116: 115 | B116: 4593.67 | C116: 0 | D116: TRUE | E116: 1 | F116: 30 | G116: 0.035 | H116: Cycle 1 | I116: Cycle1-high
A117: 116 | B117: 4547.74 | C117: 0 | D117: TRUE | E117: 1 | F117: 30 | G117: 0.035 | H117: Cycle 1 | I117: Cycle1-high
A118: 117 | B118: 4502.26 | C118: 0 | D118: TRUE | E118: 1 | F118: 30 | G118: 0.035 | H118: Cycle 1 | I118: Cycle1-high
A119: 118 | B119: 4457.24 | C119: 0 | D119: TRUE | E119: 1 | F119: 30 | G119: 0.035 | H119: Cycle 1 | I119: Cycle1-high
A120: 119 | B120: 4412.66 | C120: 0 | D120: TRUE | E120: 1 | F120: 30 | G120: 0.035 | H120: Cycle 1 | I120: Cycle1-high
A121: 120 | B121: 4368.54 | C121: 0 | D121: TRUE | E121: 1 | F121: 30 | G121: 0.035 | H121: Cycle 1 | I121: Cycle1-high
A122: 121 | B122: 4324.85 | C122: 0 | D122: TRUE | E122: 1 | F122: 30 | G122: 0.035 | H122: Cycle 1 | I122: Cycle1-high
A123: 122 | B123: 4281.6 | C123: 0 | D123: TRUE | E123: 1 | F123: 30 | G123: 0.035 | H123: Cycle 1 | I123: Cycle1-high
A124: 123 | B124: 4238.79 | C124: 0 | D124: TRUE | E124: 1 | F124: 30 | G124: 0.035 | H124: Cycle 1 | I124: Cycle1-high
A125: 124 | B125: 4196.4 | C125: 0 | D125: TRUE | E125: 1 | F125: 30 | G125: 0.035 | H125: Cycle 1 | I125: Cycle1-high
A126: 125 | B126: 4154.44 | C126: 0 | D126: TRUE | E126: 1 | F126: 30 | G126: 0.035 | H126: Cycle 1 | I126: Cycle1-high
A127: 126 | B127: 4112.89 | C127: 0 | D127: TRUE | E127: 1 | F127: 30 | G127: 0.035 | H127: Cycle 1 | I127: Cycle1-high
A128: 127 | B128: 4071.76 | C128: 0 | D128: TRUE | E128: 1 | F128: 30 | G128: 0.035 | H128: Cycle 1 | I128: Cycle1-high
A129: 128 | B129: 4031.05 | C129: 0 | D129: TRUE | E129: 1 | F129: 30 | G129: 0.035 | H129: Cycle 1 | I129: Cycle1-high
A130: 129 | B130: 3990.73 | C130: 0 | D130: TRUE | E130: 1 | F130: 30 | G130: 0.035 | H130: Cycle 1 | I130: Cycle1-high
A131: 130 | B131: 3950.83 | C131: 0 | D131: TRUE | E131: 1 | F131: 30 | G131: 0.035 | H131: Cycle 1 | I131: Cycle1-high
A132: 131 | B132: 3911.32 | C132: 0 | D132: TRUE | E132: 1 | F132: 30 | G132: 0.035 | H132: Cycle 1 | I132: Cycle1-high
A133: 132 | B133: 3872.21 | C133: 0 | D133: TRUE | E133: 1 | F133: 30 | G133: 0.035 | H133: Cycle 1 | I133: Cycle1-high
A134: 133 | B134: 3833.48 | C134: 0 | D134: TRUE | E134: 1 | F134: 30 | G134: 0.035 | H134: Cycle 1 | I134: Cycle1-high
A135: 134 | B135: 3795.15 | C135: 0 | D135: TRUE | E135: 1 | F135: 30 | G135: 0.035 | H135: Cycle 1 | I135: Cycle1-high
A136: 135 | B136: 3757.2 | C136: 0 | D136: TRUE | E136: 1 | F136: 30 | G136: 0.035 | H136: Cycle 1 | I136: Cycle1-high
A137: 136 | B137: 3719.63 | C137: 0 | D137: TRUE | E137: 1 | F137: 30 | G137: 0.035 | H137: Cycle 1 | I137: Cycle1-high
A138: 137 | B138: 3682.43 | C138: 0 | D138: TRUE | E138: 1 | F138: 30 | G138: 0.035 | H138: Cycle 1 | I138: Cycle1-high
A139: 138 | B139: 3645.6 | C139: 0 | D139: TRUE | E139: 1 | F139: 30 | G139: 0.035 | H139: Cycle 1 | I139: Cycle1-high
A140: 139 | B140: 3609.15 | C140: 0 | D140: TRUE | E140: 1 | F140: 30 | G140: 0.035 | H140: Cycle 1 | I140: Cycle1-high
A141: 140 | B141: 3573.06 | C141: 0 | D141: TRUE | E141: 1 | F141: 30 | G141: 0.035 | H141: Cycle 1 | I141: Cycle1-high
A142: 141 | B142: 3537.33 | C142: 0 | D142: TRUE | E142: 1 | F142: 30 | G142: 0.035 | H142: Cycle 1 | I142: Cycle1-high
A143: 142 | B143: 3501.95 | C143: 0 | D143: TRUE | E143: 1 | F143: 30 | G143: 0.035 | H143: Cycle 1 | I143: Cycle1-high
A144: 143 | B144: 3466.93 | C144: 0 | D144: TRUE | E144: 1 | F144: 30 | G144: 0.035 | H144: Cycle 1 | I144: Cycle1-high
A145: 144 | B145: 3432.26 | C145: 0 | D145: TRUE | E145: 1 | F145: 30 | G145: 0.035 | H145: Cycle 1 | I145: Cycle1-high
A146: 145 | B146: 3397.94 | C146: 0 | D146: TRUE | E146: 1 | F146: 30 | G146: 0.035 | H146: Cycle 1 | I146: Cycle1-high
A147: 146 | B147: 3363.96 | C147: 0 | D147: TRUE | E147: 1 | F147: 30 | G147: 0.035 | H147: Cycle 1 | I147: Cycle1-high
A148: 147 | B148: 3330.32 | C148: 0 | D148: TRUE | E148: 1 | F148: 30 | G148: 0.035 | H148: Cycle 1 | I148: Cycle1-high
A149: 148 | B149: 3297.02 | C149: 0 | D149: TRUE | E149: 1 | F149: 30 | G149: 0.035 | H149: Cycle 1 | I149: Cycle1-high
A150: 149 | B150: 3264.05 | C150: 0 | D150: TRUE | E150: 1 | F150: 30 | G150: 0.035 | H150: Cycle 1 | I150: Cycle1-high
A151: 150 | B151: 3231.41 | C151: 0 | D151: TRUE | E151: 1 | F151: 30 | G151: 0.035 | H151: Cycle 1 | I151: Cycle1-high
A152: 151 | B152: 3199.1 | C152: 0 | D152: TRUE | E152: 1 | F152: 30 | G152: 0.035 | H152: Cycle 1 | I152: Cycle1-high
A153: 152 | B153: 3167.1 | C153: 0 | D153: TRUE | E153: 1 | F153: 30 | G153: 0.035 | H153: Cycle 1 | I153: Cycle1-high
A154: 153 | B154: 3135.43 | C154: 0 | D154: TRUE | E154: 1 | F154: 30 | G154: 0.035 | H154: Cycle 1 | I154: Cycle1-high
A155: 154 | B155: 3104.08 | C155: 0 | D155: TRUE | E155: 1 | F155: 30 | G155: 0.035 | H155: Cycle 1 | I155: Cycle1-high
A156: 155 | B156: 3073.04 | C156: 0 | D156: TRUE | E156: 1 | F156: 30 | G156: 0.035 | H156: Cycle 1 | I156: Cycle1-high
A157: 156 | B157: 3042.31 | C157: 0 | D157: TRUE | E157: 1 | F157: 30 | G157: 0.035 | H157: Cycle 1 | I157: Cycle1-high
A158: 157 | B158: 3011.88 | C158: 0 | D158: TRUE | E158: 1 | F158: 30 | G158: 0.035 | H158: Cycle 1 | I158: Cycle1-high
A159: 158 | B159: 2981.77 | C159: 0 | D159: TRUE | E159: 1 | F159: 30 | G159: 0.035 | H159: Cycle 1 | I159: Cycle1-high
A160: 159 | B160: 2951.95 | C160: 0 | D160: TRUE | E160: 1 | F160: 30 | G160: 0.035 | H160: Cycle 1 | I160: Cycle1-high
A161: 160 | B161: 2922.43 | C161: 0 | D161: TRUE | E161: 1 | F161: 30 | G161: 0.035 | H161: Cycle 1 | I161: Cycle1-high
A162: 161 | B162: 2893.2 | C162: 0 | D162: TRUE | E162: 1 | F162: 30 | G162: 0.035 | H162: Cycle 1 | I162: Cycle1-high
A163: 162 | B163: 2864.27 | C163: 0 | D163: TRUE | E163: 1 | F163: 30 | G163: 0.035 | H163: Cycle 1 | I163: Cycle1-high
A164: 163 | B164: 2835.63 | C164: 0 | D164: TRUE | E164: 1 | F164: 30 | G164: 0.035 | H164: Cycle 1 | I164: Cycle1-high
A165: 164 | B165: 2807.27 | C165: 0 | D165: TRUE | E165: 1 | F165: 30 | G165: 0.035 | H165: Cycle 1 | I165: Cycle1-high
A166: 165 | B166: 2779.2 | C166: 0 | D166: TRUE | E166: 1 | F166: 30 | G166: 0.035 | H166: Cycle 1 | I166: Cycle1-high
A167: 166 | B167: 2751.41 | C167: 0 | D167: TRUE | E167: 1 | F167: 30 | G167: 0.035 | H167: Cycle 1 | I167: Cycle1-high
A168: 167 | B168: 2723.89 | C168: 0 | D168: TRUE | E168: 1 | F168: 30 | G168: 0.035 | H168: Cycle 1 | I168: Cycle1-high
A169: 168 | B169: 2696.66 | C169: 0 | D169: TRUE | E169: 1 | F169: 30 | G169: 0.035 | H169: Cycle 1 | I169: Cycle1-high
A170: 169 | B170: 2669.69 | C170: 0 | D170: TRUE | E170: 1 | F170: 30 | G170: 0.035 | H170: Cycle 1 | I170: Cycle1-high
A171: 170 | B171: 2642.99 | C171: 0 | D171: TRUE | E171: 1 | F171: 30 | G171: 0.035 | H171: Cycle 1 | I171: Cycle1-high
A172: 171 | B172: 2616.56 | C172: 0 | D172: TRUE | E172: 1 | F172: 30 | G172: 0.035 | H172: Cycle 1 | I172: Cycle1-high
A173: 172 | B173: 2590.4 | C173: 0 | D173: TRUE | E173: 1 | F173: 30 | G173: 0.035 | H173: Cycle 1 | I173: Cycle1-high
A174: 173 | B174: 2564.49 | C174: 0 | D174: TRUE | E174: 1 | F174: 30 | G174: 0.035 | H174: Cycle 1 | I174: Cycle1-high
A175: 174 | B175: 2538.85 | C175: 0 | D175: TRUE | E175: 1 | F175: 30 | G175: 0.035 | H175: Cycle 1 | I175: Cycle1-high
A176: 175 | B176: 2513.46 | C176: 0 | D176: TRUE | E176: 1 | F176: 30 | G176: 0.035 | H176: Cycle 1 | I176: Cycle1-high
A177: 176 | B177: 2488.32 | C177: 0 | D177: TRUE | E177: 1 | F177: 30 | G177: 0.035 | H177: Cycle 1 | I177: Cycle1-high
A178: 177 | B178: 2463.44 | C178: 0 | D178: TRUE | E178: 1 | F178: 30 | G178: 0.035 | H178: Cycle 1 | I178: Cycle1-high
A179: 178 | B179: 2438.81 | C179: 0 | D179: TRUE | E179: 1 | F179: 30 | G179: 0.035 | H179: Cycle 1 | I179: Cycle1-high
A180: 179 | B180: 2414.42 | C180: 0 | D180: TRUE | E180: 1 | F180: 30 | G180: 0.035 | H180: Cycle 1 | I180: Cycle1-high
A181: 180 | B181: 2390.27 | C181: 0 | D181: TRUE | E181: 1 | F181: 30 | G181: 0.035 | H181: Cycle 1 | I181: Cycle1-high
A182: 181 | B182: 2366.37 | C182: 0 | D182: TRUE | E182: 1 | F182: 30 | G182: 0.035 | H182: Cycle 1 | I182: Cycle1-high
A183: 182 | B183: 2342.71 | C183: 0 | D183: TRUE | E183: 1 | F183: 30 | G183: 0.035 | H183: Cycle 1 | I183: Cycle1-high
A184: 183 | B184: 2319.28 | C184: 0 | D184: TRUE | E184: 1 | F184: 30 | G184: 0.035 | H184: Cycle 1 | I184: Cycle1-high
A185: 184 | B185: 2296.09 | C185: 0 | D185: TRUE | E185: 1 | F185: 30 | G185: 0.035 | H185: Cycle 1 | I185: Cycle1-high
A186: 185 | B186: 2273.13 | C186: 0 | D186: TRUE | E186: 1 | F186: 30 | G186: 0.035 | H186: Cycle 1 | I186: Cycle1-high
A187: 186 | B187: 2250.4 | C187: 0 | D187: TRUE | E187: 1 | F187: 30 | G187: 0.035 | H187: Cycle 1 | I187: Cycle1-high
A188: 187 | B188: 2227.89 | C188: 0 | D188: TRUE | E188: 1 | F188: 30 | G188: 0.035 | H188: Cycle 1 | I188: Cycle1-high
A189: 188 | B189: 2205.61 | C189: 0 | D189: TRUE | E189: 1 | F189: 30 | G189: 0.035 | H189: Cycle 1 | I189: Cycle1-high
A190: 189 | B190: 2183.56 | C190: 0 | D190: TRUE | E190: 1 | F190: 30 | G190: 0.035 | H190: Cycle 1 | I190: Cycle1-high
A191: 190 | B191: 2161.72 | C191: 0 | D191: TRUE | E191: 1 | F191: 30 | G191: 0.035 | H191: Cycle 1 | I191: Cycle1-high
A192: 191 | B192: 2140.1 | C192: 0 | D192: TRUE | E192: 1 | F192: 30 | G192: 0.035 | H192: Cycle 1 | I192: Cycle1-high
A193: 192 | B193: 2118.7 | C193: 0 | D193: TRUE | E193: 1 | F193: 30 | G193: 0.035 | H193: Cycle 1 | I193: Cycle1-high
A194: 193 | B194: 2097.52 | C194: 0 | D194: TRUE | E194: 1 | F194: 30 | G194: 0.035 | H194: Cycle 1 | I194: Cycle1-high
A195: 194 | B195: 2076.54 | C195: 0 | D195: TRUE | E195: 1 | F195: 30 | G195: 0.035 | H195: Cycle 1 | I195: Cycle1-high
A196: 195 | B196: 2055.78 | C196: 0 | D196: TRUE | E196: 1 | F196: 30 | G196: 0.035 | H196: Cycle 1 | I196: Cycle1-high
A197: 196 | B197: 2035.22 | C197: 0 | D197: TRUE | E197: 1 | F197: 30 | G197: 0.035 | H197: Cycle 1 | I197: Cycle1-high
A198: 197 | B198: 2014.87 | C198: 0 | D198: TRUE | E198: 1 | F198: 30 | G198: 0.035 | H198: Cycle 1 | I198: Cycle1-high
A199: 198 | B199: 1994.72 | C199: 0 | D199: TRUE | E199: 1 | F199: 30 | G199: 0.035 | H199: Cycle 1 | I199: Cycle1-high
A200: 199 | B200: 1974.77 | C200: 0 | D200: TRUE | E200: 1 | F200: 30 | G200: 0.035 | H200: Cycle 1 | I200: Cycle1-high
... 137 more rows

Sheet SA Risk

Sheet wksCommandBars (hidden)
A1: Command Bar Name | B1: Control Caption | C1: Control Caption | D1: Control Caption | E1: Position | F1: IsMenubar | G1: Visible | H1: Width | I1: Protection | J1: IsTemporary | K1: IsEnabled | L1: OnAction | M1: Control ID | N1: Control Type | O1: Control Style | P1: Face ID | Q1: Begin Group | R1: Before | S1: Tooltip | T1: Shortcut Text | U1: Tag | V1: Parameter | W1: State | X1: ListRange | Y1: Lists
A2: Worksheet Menu Bar
B3: &ARI | N3: =msoControlPopup -> 10 | R3: Window
C4: &Insert Data Table Row | L4: InsertDataSheetRow | M4: 1 | N4: =msoControlButton -> 1 | O4: =msoButtonIconAndCaption -> 3 | P4: 296 | T4: Ctrl+Shift+I
C5: &Delete Data Table Row | L5: DeleteDataSheetRow | M5: 1 | N5: 1 | O5: 3 | P5: 293 | T5: Ctrl+Shift+D
C6: &Remove Unused Data Rows | L6: RemoveUnusedDataSheetRows | M6: 1 | N6: 1 | O6: 3 | P6: 541 | T6: Ctrl+Shift+R
C7: &Sort Data Table | L7: SortDataSheet | M7: 1 | N7: 1 | O7: 3 | P7: 210 | Q7: TRUE
C8: Restore Data Table &Format | L8: ReformatDataInputArea | M8: 1 | N8: 1 | O8: 3 | P8: 369
C9: &Print Analysis… | L9: PrintReports | M9: 1 | N9: 1 | O9: 3 | P9: 4 | Q9: TRUE
C10: &Export Summary Report | L10: ExportSummaryReport | M10: 1 | N10: 1 | O10: 3 | P10: 1950 | Q10: TRUE
C11: &Update Wizard | L11: UpdateWizard | M11: 1 | N11: =msoControlButton -> 1 | O11: =msoButtonIconAndCaption -> 3 | P11: 1952
A12: Stop
A14: ARI Toolbar | E14: =msoBarTop -> 1 | F14: FALSE | G14: TRUE | J14: FALSE
B15: Prev | L15: NavigateSheets | M15: 1 | N15: =msoControlButton -> 1 | O15: =msoButtonIcon -> 1 | P15: picPrev | S15: Previous Sheet | U15: 2
B16: Next | L16: NavigateSheets | M16: 1 | N16: 1 | O16: 1 | P16: picNext | S16: Next Sheet | U16: 1
B17: Insert Data Table Row | L17: InsertDataSheetRow | M17: 1 | N17: 1 | O17: 1 | P17: 296 | Q17: TRUE | S17: Insert Data Table Row | T17: Ctrl+Shift+I
B18: Delete Data Table Row | L18: DeleteDataSheetRow | M18: 1 | N18: 1 | O18: 1 | P18: 293 | S18: Delete Data Table Row | T18: Ctrl+Shift+D
B19: Remove Unused Data Rows | L19: RemoveUnusedDataSheetRows | M19: 1 | N19: 1 | O19: 1 | P19: 541 | S19: Remove Unused Data Rows | T19: Ctrl+Shift+R
B20: Sort Data Table | L20: SortDataSheet | M20: 1 | N20: 1 | O20: 1 | P20: 210 | Q20: TRUE | S20: Sort Data Table
B21: Restore Data Table Format | L21: ReformatDataInputArea | M21: 1 | N21: 1 | O21: 1 | P21: 369 | S21: Restore Data Table Format
B22: Print Analysis | L22: PrintReports | M22: 1 | N22: 1 | O22: 1 | P22: 4 | Q22: TRUE | S22: Print Reports
B23: Export Summary Report | L23: ExportSummaryReport | M23: 1 | N23: 1 | O23: 1 | P23: 1950 | Q23: TRUE | S23: Export Summary Report
B24: &Update Wizard | L24: UpdateWizard | M24: 1 | N24: =msoControlButton -> 1 | O24: =msoButtonIcon -> 1 | P24: 1952 | Q24: TRUE | S24: Update Wizard
B25: << ARI Report Controls | L25: Instructions | M25: 1 | N25: 1 | O25: =msoButtonCaption -> 2 | Q25: TRUE | S25: Instructions | U25: 1
A26: Stop
